Workbook

Sheet Tables
A1: Tables
A2: Table 1: SEBI Registered Market Intermediaries/Institutions
A3: Table 2: Company-Wise Capital Raised through Public and Rights Issues (Equity) during July-2017
A4: Table 3: Open Offers under SEBI Takeover Code closed during July-2017
A5: Table 4: Substantial Acquisition of Shares and Takeovers
A6: Table 5: Capital Raised from the Primary Market through though Public and Rights Issues
A7: Table 6: Issues Listed on SME Platform
A8: Table 7: Industry-wise Classification of Capital Raised through Public and Rights Issues
A9: Table 8: Sector-wise and Region-wise Distribution of Capital Mobilised through Public and Rights Issues
A10: Table 9: Size-wise Classification of Capital Raised through Public and Rights Issues
A11: Table 10: Capital Raised by Listed Companies from the Primary Market through QIPs
A12: Table 11: Preferential Allotments Listed at BSE and NSE
A13: Table 12: Private Placement of Corporate Debt Reported to BSE and NSE
A14: Table 13: Trading in the Corporate Debt Market
A15: Table 14: Ratings Assigned for Long-term Corporate Debt Securities (Maturity ≥ 1 year)
A16: Table 15: Review of Accepted Ratings of Corporate Debt Securities (Maturity ≥ 1 year)
A17: Table 16: Distribution of Turnover on Cash Segments of Exchanges (₹ crore)
A18: Table 17: Trends in Cash Segment of BSE
A19: Table 18: Trends in Cash Segment of NSE
A20: Table 19: City-wise Distribution of Turnover on Cash Segments of BSE and NSE
A21: Table 20: Category-wise Share of Turnover in Cash Segment of BSE
A22: Table 21: Category-wise Share of Turnover in Cash Segment of NSE
A23: Table 22: Component Stocks: S&P BSE Sensex during July-2017
A24: Table 23: Component Stocks: Nifty 50 Index during July-2017
A25: Table 24: Advances/Declines in Cash Segment of BSE and NSE
A26: Table 25: Trading Frequency in Cash Segment of BSE and NSE
A27: Table 26: Daily Volatility of Major Indices (percent)
A28: Table 27: Percentage Share of Top ‘N’ Securities/Members in Turnover of Cash Segment (percent)
A29: Table 28: Settlement Statistics for Cash Segment of BSE
A30: Table 29: Settlement Statistics for Cash Segment of NSE
A31: Table 30: Trends in Equity Derivatives Segment at BSE (Turnover in Notional Value)
A32: Table 31: Trends in Equity Derivatives Segment at NSE
A33: Table 32: Settlement Statistics in Equity Derivatives Segment at BSE and NSE (₹ crore)
A34: Table 33: Category-wise Share of Turnover & Open Interest in Equity Derivative Segment of BSE
A35: Table 34: Category-wise Share of Turnover & Open Interest in Equity Derivative Segment of NSE
A36: Table 35: Instrument-wise Turnover in Index Derivatives at BSE
A37: Table 36: Instrument-wise Turnover in Index Derivatives at NSE
A38: Table 37: Trends in Currency Derivatives Segment at NSE
A39: Table 38: Trends in Currency Derivatives Segment at MSEI
A40: Table 39: Trends in Currency Derivatives Segment at BSE
A41: Table 40: Settlement Statistics of Currency Derivatives Segment (₹ crore)
A42: Table 41: Instrument-wise Turnover in Currency Derivatives of NSE
A43: Table 42: Instrument-wise Turnover in Currency Derivative Segment of MSEI
A44: Table 43: Instrument-wise Turnover in Currency Derivative Segment of BSE
A45: Table 44: Maturity-wise Turnover in Currency Derivative Segment of NSE (₹ crore)
A46: Table 45: Maturity-wise Turnover in Currency Derivative Segment of MSEI (₹ crore)
A47: Table 46: Maturity-wise Turnover in Currency Derivative Segment of BSE (₹ crore)
A48: Table 47: Trading Statistics of Interest Rate Futures at BSE, NSE and MSEI
A49: Table 48: Settlement Statistics in Interest Rate Futures at BSE, NSE and MSEI (₹ crore)
A50: Table 49: Trends in Foreign Portfolio Investment
A51: Table 50: Notional Value of Offshore Derivative Instruments (ODIs) Vs Assets Under Custody (AUC) of FPIs/Deemed FPIs (₹ crore)
A52: Table 51: Assets under the Custody of Custodians
A53: Table 52: Trends in Resource Mobilization by Mutual Funds (₹ crore)
A54: Table 53: Type-wise Resource Mobilisation by Mutual Funds: Open-ended and Close-ended (₹ crore)
A55: Table 54: Scheme-wise Resource Mobilisation and Assets under Management by Mutual Funds (₹ crore)
A56: Table 55: Number of Schemes and Folios by Investment Objective
A57: Table 56: Trends in Transactions on Stock Exchanges by Mutual Funds (₹ crore)
A58: Table 57: Asset Under Management by Portfolio Manager
A59: Table 58: Progress Report of NSDL & CDSl as on end of July-2017 (Listed Companies)
A60: Table 59: Progress of Dematerialisation at NSDL and CDSL (Listed and Unlisted Companies)
A61: Table 60: Depository Statistics for July-2017
A62: Table 61: Commoditiy Exchanges - Number of Permitted Commodities for trading
A63: Table 62: Trends in MCXCOMDEX of MCX and Dhaanya of NCDEX
A64: Table 63: Trends in Commodity Futures at MCX
A65: Table 64: Trends in Commodity Futures at NCDEX
A66: Table 65: Trends in Commodity Futures at NMCE
A67: Table 66: Category-wise Share in Turnover at MCX and NCDEX (percent)
A68: Table 67: Category-wise Percentage Share of Turnover & Open Interest at MCX
A69: Table 68: Category-wise Percentage Share of Turnover & Open Interest at NCDEX
A70: Table 69: Category-wise Percentage Share of Turnover & Open Interest at NMCE
A71: Table 70: Commodity-wise Trends at MCX
A72: Table 71: Commodity-wise Trends at NCDEX
A73: Table 72: Commodity-wise Trends at NMCE
A74: Table 73: Macro Economic Indicators
A76: N.B.:
A77: 1. Na = Not Applicable
A78: 2. NA: Not Available
A79: 3. 1 crore = 10 million = 100 lakh.
A80: 4. The total provided in the Annexure and Statistical Tables may not always match with the sum total of the break-ups due to decimal differences.
A81: 5. The data for the current month is provisional.

Sheet 1
A1: Table 1: SEBI Registered Market Intermediaries/Institutions
A2: Market Intermediaries | B2: 2016-17 | C2: 2017-18$
A3: Stock Exchanges (Cash Market) | B3: 5 | C3: 5
A4: Stock Exchanges (Equity Derivatives Market) | B4: 3 | C4: 3
A5: Stock Exchanges (Currency Derivatives Market) | B5: 3 | C5: 3
A6: Stock Exchanges (Commodity Derivatives Market) | B6: 10 | C6: 9
A7: Brokers (Cash Segment)* | B7: 3192 | C7: 3190
A8: Corporate Brokers (Cash Segment)* | B8: 2775 | C8: 2774
A9: Brokers (Equity Derivatives Market) | B9: 2651 | C9: 2638
A10: Brokers (Currency Derivatives Market) | B10: 1985 | C10: 1985
A11: Brokers (Debt Segment) | B11: 6 | C11: 6
A12: Brokers (Commodity Derivatives Market) | B12: 1162 | C12: 1185
A13: Sub-brokers (Cash Segment)* | B13: 30610 | C13: **
A14: Foreign Portfolio Investors (FPIs) | B14: 7807 | C14: 8511
A15: Deemed FPIs | B15: 974 | C15: 263
A16: Custodians | B16: 19 | C16: 19
A17: Depositories | B17: 2 | C17: 2
A18: Depository Participants-NSDL | B18: 276 | C18: 279
A19: Depository Participants-CDSL | B19: 588 | C19: 588
A20: Merchant Bankers | B20: 189 | C20: 186
A21: Bankers to an Issue | B21: 64 | C21: 64
A22: Underwriters | B22: 2 | C22: 2
A23: Debenture Trustees | B23: 32 | C23: 32
A24: Credit Rating Agencies | B24: 7 | C24: 7
A25: KYC Registration Agency (KRA) | B25: 5 | C25: 5
A26: Registrars to an Issue & Share Transfer Agents | B26: 73 | C26: 73
A27: Venture Capital Funds | B27: 198 | C27: 182
A28: Foreign Venture Capital Investors | B28: 218 | C28: 218
A29: Alternative Investment Funds | B29: 303 | C29: 344
A30: Portfolio Managers | B30: 218 | C30: 251
A31: Mutual Funds | B31: 45 | C31: 45
A32: Investment Advisors | B32: 577 | C32: 697
A33: Research Analysts | B33: 351 | C33: 413
A34: Infrastructure Investment Trusts (InVIT) | B34: 6 | C34: 6
A35: Collective Investment Management Company | B35: 1 | C35: 1
A36: Approved Intermediaries (Stock Lending Schemes) | B36: 2 | C36: 2
A37: STP (Centralised Hub) | B37: 1 | C37: 1
A38: STP Service Providers | B38: 2 | C38: 2
A39: Notes:
A40: 1. *Stock brokers/sub-brokers pertaining to active stock exchanges.
A41: 2. **Sub-brokers (Cash Segment) : The data regarding sub-broker could not be obtained as their systems are not functioning after migration in share portal.
A42: $ indicates as on July 31, 2017
A43: Source: SEBI, NSDL.
A44: NA - Data not available

Sheet 2
A1: Table 2: Company-Wise Capital Raised through Public and Rights Issues (Equity) during July-2017
A2: S.No. | B2: Name of the Issuer/ Company | C2: Date of Opening | D2: Type of Issue | E2: Type of Instrument | F2: No. of Shares Issued | G2: Face Value (`) | H2: Premium Value (`) | I2: Issue Price (`) | J2: Size of Issue (₹ crore)
A3: 1 | B3: 7NR Retail Limited | C3: 2017-07-05 | D3: IPO (SME) | E3: Equity Shares | F3: 1896000 | G3: 10 | H3: 17 | I3: 27 | J3: 5.1192
A4: 2 | B4: Shrenik Limited | C4: 2017-07-06 | D4: IPO (SME) | E4: Equity Shares | F4: 5400000 | G4: 10 | H4: 30 | I4: 40 | J4: 21.6
A5: 3 | B5: Salasar Techno Engineering Limited | C5: 2017-07-12 | D5: IPO | E5: Equity Shares | F5: 3321000 | G5: 10 | H5: 98 | I5: 108 | J5: 35.8668
A6: 4 | B6: Univastu India Limited | C6: 2017-07-14 | D6: IPO (SME) | E6: Equity Shares | F6: 1497000 | G6: 10 | H6: 30 | I6: 40 | J6: 5.988
A7: 5 | B7: Jigar Cables Limited | C7: 2017-07-18 | D7: IPO (SME) | E7: Equity Shares | F7: 1864000 | G7: 10 | H7: 20 | I7: 30 | J7: 5.592
A8: 6 | B8: Captain Technocast Limited | C8: 2017-07-20 | D8: IPO (SME) | E8: Equity Shares | F8: 1425000 | G8: 10 | H8: 30 | I8: 40 | J8: 5.7
A9: 7 | B9: Shanti Overseas (India) Limited | C9: 2017-07-21 | D9: IPO (SME) | E9: Equity Shares | F9: 2004000 | G9: 10 | H9: 40 | I9: 50 | J9: 10.02
A10: 8 | B10: Keerti Knowledge and Skills Limited | C10: 2017-07-24 | D10: IPO (SME) | E10: Equity Shares | F10: 780000 | G10: 10 | H10: 42 | I10: 52 | J10: 4.056
A11: 9 | B11: Total Transport Systems Limited | C11: 2017-07-25 | D11: IPO (SME) | E11: Equity Shares | F11: 3780000 | G11: 10 | H11: 35 | I11: 45 | J11: 17.01
A12: 10 | B12: GlobalSpace Technologies Limited | C12: 2017-07-26 | D12: IPO (SME) | E12: Equity Shares | F12: 3034000 | G12: 10 | H12: 56 | I12: 66 | J12: 20.0244
A13: 11 | B13: Surevin BPO Services Limited | C13: 2017-07-28 | D13: IPO (SME) | E13: Equity Shares | F13: 912000 | G13: 10 | H13: 28 | I13: 38 | J13: 3.4656
A14: 12 | B14: Security and Intelligence Services (India) Limited | C14: 2017-07-31 | D14: IPO | E14: Equity Shares | F14: 9620619 | G14: 10 | H14: 795 | I14: 805 | J14: 774.4598295
A15: 13 | B15: Intellect Design Arena Limited | C15: 2017-07-26 | D15: Rights | E15: Equity Shares | F15: 23135710 | G15: 5 | H15: 81 | I15: 86 | J15: 198.967106
A17: Note: 1. All the issues are compiled from the Prospectus’ of Issuer Companies filed with SEBI.
A18: Source: SEBI.

Sheet 3
A1: Table 3: Open Offers under SEBI Takeover Code closed during July-2017
A2: S.No. | B2: Target Company | C2: Acquirer | D2: Offer Opening Date | E2: Offer Closing Date | F2: Offer Size | H2: Offer Price (`) per share
F3: No. of Shares | G3: Percent of Equity Capital
A4: 1 | B4: GOLDEN GOENKA FINCORP LTD | C4: DEEPAK KOTHARI AND OTHERS | D4: 2017-06-19 | E4: 2017-07-03 | F4: 49461966 | G4: 26 | H4: 5.63
A5: 2 | B5: PIONEER AGRO EXTRACTS LIMITED | C5: JAGAT MOHAN AGGARWAL AND OTHERS | D5: 2017-06-20 | E5: 2017-07-04 | F5: 2236817 | G5: 51.63 | H5: 10
A6: 3 | B6: REGENCY INVESTMENTS LTD. | C6: GAURAV KUMAR AND RAJIV VASHIISHT | D6: 2017-07-03 | E6: 2017-07-14 | F6: 780052 | G6: 26 | H6: 10
A7: 4 | B7: UPASANA FINANCE LTD | C7: REKHA JAIN AND OTHERS | D7: 2017-07-07 | E7: 2017-07-20 | F7: 1112300 | G7: 26 | H7: 40
A9: Source: SEBI.

Sheet 4
A1: Table 4: Substantial Acquisition of Shares and Takeovers
A2: Year/Month | B2: Open Offers
B3: Objectives | H3: Total
B4: Change in Control of Management | D4: Consolidation of Holdings | F4: Substantial Acquisition | H4: No. of offers | I4: Amount (₹ crore)
B5: No. of offers | C5: Amount (₹ crore) | D5: No. of offers | E5: Amount (₹ crore) | F5: No. of offers | G5: Amount (₹ crore)
A6: 2016-17 | B6: 42 | C6: 5338.1431 | D6: 4 | E6: 78.2977 | F6: 3 | G6: 365.6304 | H6: 49 | I6: 5782.0712
A7: 2017-18$ | B7: 21 | C7: 1110.83 | D7: 1 | E7: 2.9 | F7: 1 | G7: 2.24 | H7: 23 | I7: 1115.97
A8: 2017-04-01 | B8: 9 | C8: 586.93 | D8: 0 | E8: 0 | F8: 0 | G8: 0 | H8: 9 | I8: 586.93
A9: 2017-05-01 | B9: 4 | C9: 438.1 | D9: 1 | E9: 2.9 | F9: 0 | G9: 0 | H9: 5 | I9: 441
A10: 2017-06-01 | B10: 5 | C10: 72.62 | D10: 0 | E10: 0 | F10: 1 | G10: 2.24 | H10: 6 | I10: 74.86
A11: 2017-07-01 | B11: 3 | C11: 13.18 | D11: 0 | E11: 0 | F11: 0 | G11: 0 | H11: 3 | I11: 13.18
A13: $ indicates as on July 31, 2017
A14: Source: SEBI.

Sheet 5
A1: Table 5: Capital Raised from the Primary Market through though Public and Rights Issues
A2: Year/ Month | B2: Total | D2: Category-wise | H2: Issue-type | L2: Instrument-wise
D3: Public | F3: Rights | H3: Listed | J3: IPOs | L3: Equities | P3: CCPS/FCDs* | R3: Debt
L4: At Par | N4: At Premium
B5: No. of issues | C5: Amount (₹ crore) | D5: No. of issues | E5: Amount (₹ crore) | F5: No. of issues | G5: Amount (₹ crore) | H5: No. of issues | I5: Amount (₹ crore) | J5: No. of issues | K5: Amount (₹ crore) | L5: No. of issues | M5: Amount (₹ crore) | N5: No. of issues | O5: Amount (₹ crore) | P5: No. of issues | Q5: Amount (₹ crore) | R5: No. of issues | S5: Amount (₹ crore)
A6: 2016-17 | B6: 133 | C6: 61848.23 | D6: 121 | E6: 58432.85 | F6: 12 | G6: 3415.38 | H6: 28 | I6: 32753.13 | J6: 105 | K6: 29095.23 | L6: 1 | M6: 2.6 | N6: 117 | O6: 32517.99 | P6: 0 | Q6: 0 | R6: 15 | S6: 29327.64
A7: 2017-18$ | B7: 49 | C7: 13150.09 | D7: 45 | E7: 12463.57 | F7: 4 | G7: 686.52 | H7: 7 | I7: 4385.44 | J7: 42 | K7: 8764.65 | L7: 0 | M7: 0 | N7: 46 | O7: 9451.17 | P7: 0 | Q7: 0 | R7: 3 | S7: 3698.92
A8: 2017-04-30 | B8: 12 | C8: 3200.37 | D8: 10 | E8: 2832.53 | F8: 2 | G8: 367.84 | H8: 3 | I8: 2336.56 | J8: 9 | K8: 863.81 | L8: 0 | M8: 0 | N8: 11 | O8: 1231.65 | P8: 0 | Q8: 0 | R8: 1 | S8: 1968.72
A9: 2017-05-31 | B9: 7 | C9: 1480.08 | D9: 7 | E9: 1480.08 | F9: 0 | G9: 0 | H9: 0 | I9: 0 | J9: 7 | K9: 1480.08 | L9: 0 | M9: 0 | N9: 7 | O9: 1480.08 | P9: 0 | Q9: 0 | R9: 0 | S9: 0
A10: 2017-06-30 | B10: 15 | C10: 5631.56 | D10: 14 | E10: 5511.85 | F10: 1 | G10: 119.71 | H10: 1 | I10: 119.71 | J10: 14 | K10: 5511.85 | L10: 0 | M10: 0 | N10: 15 | O10: 5631.56 | P10: 0 | Q10: 0 | R10: 0 | S10: 0
A11: 2017-07-31 | B11: 15 | C11: 2838.08 | D11: 14 | E11: 2639.11 | F11: 1 | G11: 198.97 | H11: 3 | I11: 1929.17 | J11: 12 | K11: 908.91 | L11: 0 | M11: 0 | N11: 13 | O11: 1107.88 | P11: 0 | Q11: 0 | R11: 2 | S11: 1730.2
A13: Notes: 1. The total provides category-wise total of any of the three sub-categories viz. public plus rights or issuer-type(listed plus IPOs) or instrument-wise(equities plus CCPS/FCDs plus debt). 2. Amount for public debt issue for last two months is provisional and may get updated 3. All the Issues are compiled from the Prospectus’ of Issuer Companies filed with SEBI. 4. * CCPS: Compulsory Convertible Preference Shares, FCDs: Fully Convertible Debentures.
A14: 5. Equity public issues also includes issues listed on SME platform.
A15: 6. The figures of public debt issue have been taken as per the closing dates of the issues.
A16: $ indicates as on July 31, 2017
A17: Source: SEBI.

Sheet 6
A1: Table 6: Issues Listed on SME Platform
A2: Year/ Month | B2: Total
B4: No. of issue | C4: Amount (₹ crore)
A5: 2016-17 | B5: 79 | C5: 1105.2845
A6: 2017-18$ | B6: 32 | C6: 350.5736
A7: 2017-04-30 | B7: 8 | C7: 135.2606
A8: 2017-05-31 | B8: 5 | C8: 44.048
A9: 2017-06-30 | B9: 9 | C9: 72.6898
A10: 2017-07-31 | B10: 10 | C10: 98.5752
A12: $ indicates as on July 31, 2017
A13: Source: SEBI

Sheet 7
A1: Table 7: Industry-wise Classification of Capital Raised through Public and Rights Issues
A2: Industry | B2: 2017-18$ | D2: 2017-07-01
B3: No. of issues | C3: Amount (₹ crore) | D3: No. of issues | E3: Amount (₹ crore)
A4: Airlines | B4: 0 | C4: 0 | D4: 0 | E4: 0
A5: Automobile | B5: 0 | C5: 0 | D5: 0 | E5: 0
A6: Banking and Finance | B6: 3 | C6: 3698.92 | D6: 2 | E6: 1730.2
A7: Cement & Construction | B7: 4 | C7: 532.21 | D7: 1 | E7: 5.99
A8: Chemical | B8: 2 | C8: 19.58 | D8: 0 | E8: 0
A9: Consumer Services | B9: 2 | C9: 791.47 | D9: 2 | E9: 791.47
A10: Electrical Equipment/ Production | B10: 1 | C10: 5.59 | D10: 1 | E10: 5.59
A11: Engineering | B11: 4 | C11: 54.69 | D11: 2 | E11: 41.57
A12: Electronics | B12: 0 | C12: 0 | D12: 0 | E12: 0
A13: Entertainment | B13: 1 | C13: 484.8 | D13: 0 | E13: 0
A14: Financial Services | B14: 3 | C14: 3660.85 | D14: 0 | E14: 0
A15: Food Processing | B15: 1 | C15: 10.02 | D15: 1 | E15: 10.02
A16: Healthcare and pharma | B16: 3 | C16: 1922.07 | D16: 0 | E16: 0
A17: Hotels | B17: 0 | C17: 0 | D17: 0 | E17: 0
A18: Information Technology | B18: 6 | C18: 277.88 | D18: 4 | E18: 226.52
A19: Misc. | B19: 15 | C19: 169.13 | D19: 2 | E19: 26.72
A20: Roads & Highways | B20: 0 | C20: 0 | D20: 0 | E20: 0
A21: Telecommunication | B21: 1 | C21: 776.69 | D21: 0 | E21: 0
A22: Textile | B22: 2 | C22: 17.6 | D22: 0 | E22: 0
A23: Plastic | B23: 0 | C23: 0 | D23: 0 | E23: 0
A24: Power | B24: 0 | C24: 0 | D24: 0 | E24: 0
A25: Printing | B25: 0 | C25: 0 | D25: 0 | E25: 0
A26: Oil & Natural Gas | B26: 1 | C26: 728.56 | D26: 0 | E26: 0
A27: Insurance | B27: 0 | C27: 0 | D27: 0 | E27: 0
A28: Total | B28: 49 | C28: 13150.06 | D28: 15 | E28: 2838.08
A30: $ indicates as on July 31, 2017
A31: Source: SEBI.

Sheet 8
A1: Table 8: Sector-wise and Region-wise Distribution of Capital Mobilised through Public and Rights Issues
A2: Year/ Month | B2: Total | D2: Sector-wise | H2: Region-wise
D3: Private | F3: Public | H3: Northern | J3: Eastern | L3: Western | N3: Southern
B4: No. of issue | C4: Amount (₹ crore) | D4: No. of issue | E4: Amount (₹ crore) | F4: No. of issue | G4: Amount (₹ crore) | H4: No. of issue | I4: Amount (₹ crore) | J4: No. of issue | K4: Amount (₹ crore) | L4: No. of issue | M4: Amount (₹ crore) | N4: No. of issue | O4: Amount (₹ crore)
A5: 2016-17 | B5: 133 | C5: 61848.23 | D5: 117 | E5: 31396.6 | F5: 16 | G5: 30451.63 | H5: 21 | I5: 5480.04 | J5: 8 | K5: 1215.34 | L5: 80 | M5: 44374.51 | N5: 24 | O5: 10778.34
A6: 2017-18$ | B6: 49 | C6: 13150.09 | D6: 45 | E6: 8226.82 | F6: 4 | G6: 4923.27 | H6: 13 | I6: 4822.38 | J6: 1 | K6: 579.67 | L6: 31 | M6: 4683.94 | N6: 4 | O6: 3064.09
A7: 2017-04-30 | B7: 12 | C7: 3200.37 | D7: 11 | E7: 1231.65 | F7: 1 | G7: 1968.72 | H7: 3 | I7: 833.19 | J7: 0 | K7: 0 | L7: 8 | M7: 398.46 | N7: 1 | O7: 1968.72
A8: 2017-05-31 | B8: 7 | C8: 1480.08 | D8: 6 | E8: 255.73 | F8: 1 | G8: 1224.35 | H8: 3 | I8: 1247.13 | J8: 0 | K8: 0 | L8: 4 | M8: 232.94 | N8: 0 | O8: 0
A9: 2017-06-30 | B9: 15 | C9: 5631.56 | D9: 15 | E9: 5631.56 | F9: 0 | G9: 0 | H9: 3 | I9: 1918.24 | J9: 0 | K9: 0 | L9: 10 | M9: 2816.92 | N9: 2 | O9: 896.4
A10: 2017-07-31 | B10: 15 | C10: 2838.08 | D10: 13 | E10: 1107.88 | F10: 2 | G10: 1730.2 | H10: 4 | I10: 823.82 | J10: 1 | K10: 579.67 | L10: 9 | M10: 1235.62 | N10: 1 | O10: 198.97
A12: $ indicates as on July 31, 2017
A13: Source: SEBI.

Sheet 9
A1: Table 9: Size-wise Classification of Capital Raised through Public and Rights Issues
A2: Year/ Month | B2: Total | D2: < 5 crore | F2: ≥ 5crore - < 10crore | H2: ≥ 10 crore - < 50 crore | J2: ≥ 50 crore - < 100 crore | L2: ≥ 100 crore
B3: No. of issue | C3: Amount (₹ crore) | D3: No. of issue | E3: Amount (₹ crore) | F3: No. of issue | G3: Amount (₹ crore) | H3: No. of issue | I3: Amount (₹ crore) | J3: No. of issue | K3: Amount (₹ crore) | L3: No. of issue | M3: Amount (₹ crore)
A4: 2016-17 | B4: 133 | C4: 61848.23 | D4: 26 | E4: 89.74 | F4: 25 | G4: 175.16 | H4: 33 | I4: 701.98 | J4: 4 | K4: 264.09 | L4: 45 | M4: 60617.26
A5: 2017-18$ | B5: 49 | C5: 13150.09 | D5: 8 | E5: 26.48 | F5: 12 | G5: 72.8 | H5: 12 | I5: 228.66 | J5: 2 | K5: 126.35 | L5: 15 | M5: 12695.8
A6: 2017-04-30 | B6: 12 | C6: 3200.38 | D6: 2 | E6: 6.59 | F6: 3 | G6: 18.81 | H6: 2 | I6: 51.36 | J6: 2 | K6: 126.35 | L6: 3 | M6: 2997.27
A7: 2017-05-31 | B7: 7 | C7: 1480.07 | D7: 2 | E7: 6.8 | F7: 1 | G7: 5.07 | H7: 2 | I7: 32.17 | J7: 0 | K7: 0 | L7: 2 | M7: 1436.03
A8: 2017-06-30 | B8: 15 | C8: 5631.56 | D8: 2 | E8: 5.56 | F8: 4 | G8: 26.52 | H8: 3 | I8: 40.61 | J8: 0 | K8: 0 | L8: 6 | M8: 5558.87
A9: 2017-07-31 | B9: 15 | C9: 2838.08 | D9: 2 | E9: 7.53 | F9: 4 | G9: 22.4 | H9: 5 | I9: 104.52 | J9: 0 | K9: 0 | L9: 4 | M9: 2703.63
A11: $ indicates as on July 31, 2017
A12: Source: SEBI.

Sheet 10
A1: Table 10: Capital Raised by Listed Companies from the Primary Market through QIPs
A2: Year/ Month | B2: Only BSE | D2: Only NSE | F2: Both NSE and BSE | H2: Total
B3: No. of issues | C3: Amount (₹ crore) | D3: No. of issues | E3: Amount (₹ crore) | F3: No. of issues | G3: Amount (₹ crore) | H3: No. of issues | I3: Amount (₹ crore)
A4: 2016-17 | B4: 0 | C4: 0 | D4: 0 | E4: 0 | F4: 20 | G4: 8464.34924 | H4: 20 | I4: 8464.34924
A5: 2017-18$ | B5: 0 | C5: 0 | D5: 1 | E5: 5.63 | F5: 11 | G5: 30273.72689 | H5: 12 | I5: 30279.3518
A6: 2017-04-01 | B6: 0 | C6: 0 | D6: 0 | E6: 0 | F6: 2 | G6: 5206.646888 | H6: 2 | I6: 5206.646888
A7: 2017-05-01 | B7: 0 | C7: 0 | D7: 0 | E7: 0 | F7: 5 | G7: 7298.04 | H7: 5 | I7: 7298.04
A8: 2017-06-01 | B8: 0 | C8: 0 | D8: 0 | E8: 0 | F8: 1 | G8: 15000 | H8: 1 | I8: 15000
A9: 2017-07-01 | B9: - | C9: - | D9: 1 | E9: 5.63 | F9: 3 | G9: 2769.04 | H9: 4 | I9: 2774.664908
A11: Notes: 1. The above data includes both "no. of issues" and "Amount" raised on conversion of convertible securities issued on QIP basis.
A12: $ indicates as on July 31, 2017
A13: Source: BSE and NSE.

Sheet 11
A1: Table 11: Preferential Allotments Listed at BSE and NSE
A2: Year/ Month | B2: Only BSE | D2: Only NSE | F2: Both NSE and BSE | H2: Total
B3: No. of issues | C3: Amount (₹ crore) | D3: No. of issues | E3: Amount (₹ crore) | F3: No. of issues | G3: Amount (₹ crore) | H3: No. of issues | I3: Amount (₹ crore)
A4: 2016-17 | B4: 188 | C4: 2957 | D4: 17 | E4: 1219 | F4: 205 | G4: 40073 | H4: 410 | I4: 44250
A5: 2017-18$ | B5: 75 | C5: 827.85 | D5: 4 | E5: 323.397 | F5: 78 | G5: 8446.26537 | H5: 157 | I5: 9597.51237
A6: 2017-04-01 | B6: 18 | C6: 426.95 | D6: 0 | E6: 0 | F6: 23 | G6: 1407.68 | H6: 41 | I6: 1834.63
A7: 2017-05-01 | B7: 24 | C7: 196.66 | D7: 3 | E7: 315.897 | F7: 21 | G7: 1864.3118 | H7: 48 | I7: 2376.8688
A8: 2017-06-01 | B8: 19 | C8: 108.84 | D8: 0 | E8: 0 | F8: 21 | G8: 4716.43357 | H8: 40 | I8: 4825.27357
A9: 2017-07-01 | B9: 14 | C9: 95.4 | D9: 1 | E9: 7.5 | F9: 13 | G9: 457.84 | H9: 28 | I9: 560.74
A11: $ indicates as on July 31, 2017
A12: Source: BSE and NSE.

Sheet 12
A1: Table 12: Private Placement of Corporate Debt Reported to BSE and NSE
A2: Year/ Month | B2: Only BSE | D2: Only NSE | F2: Both NSE and BSE | H2: Total
B3: No. of Issues | C3: Amount (₹ crore) | D3: No. of Issues | E3: Amount (₹ crore) | F3: No. of Issues | G3: Amount (₹ crore) | H3: No. of Issues | I3: Amount (₹ crore)
A4: 2016-17 | B4: 1023 | C4: 219720.6 | D4: 2177 | E4: 254212.71 | F4: 177 | G4: 166782.2 | H4: 3377 | I4: 640715.51
A5: 2017-18$ | B5: 399 | C5: 67612.93 | D5: 672 | E5: 83793.44 | F5: 63 | G5: 70171.7 | H5: 1134 | I5: 221578.07
A6: 2017-04-01 | B6: 88 | C6: 20353.77 | D6: 194 | E6: 24969.46 | F6: 19 | G6: 18495.5 | H6: 301 | I6: 63818.73
A7: 2017-05-01 | B7: 156 | C7: 12433.26 | D7: 133 | E7: 8226.41 | F7: 12 | G7: 12729.2 | H7: 301 | I7: 33388.87
A8: 2017-06-01 | B8: 95 | C8: 20830.7 | D8: 249 | E8: 29706.62 | F8: 26 | G8: 24800 | H8: 370 | I8: 75337.32
A9: 2017-07-01 | B9: 60 | C9: 13995.2 | D9: 96 | E9: 20890.95 | F9: 6 | G9: 14147 | H9: 162 | I9: 49033.15
A11: $ indicates as on July 31, 2017
A12: Source: SEBI

Sheet 13
A1: Table 13: Trading in the Corporate Debt Market
A2: Year/ Month | B2: BSE | D2: NSE | F2: MSEI
B3: No. of Trades | C3: Traded Value (₹ crore) | D3: No. of Trades | E3: Traded Value (₹ crore) | F3: No. of Trades | G3: Traded Value (₹ crore)
A4: 2016-17 | B4: 24372 | C4: 292153.95 | D4: 64123 | E4: 1178508.53 | F4: 0 | G4: 0
A5: 2017-18$ | B5: 9960 | C5: 159220.23 | D5: 20611 | E5: 437021.66 | F5: 0 | G5: 0
A6: 2017-04-01 | B6: 2287 | C6: 37605.48 | D6: 4718 | E6: 101728.74 | F6: 0 | G6: 0
A7: 2017-05-01 | B7: 2933 | C7: 49041.36 | D7: 4132 | E7: 76901.32 | F7: 0 | G7: 0
A8: 2017-06-01 | B8: 2290 | C8: 35324.66 | D8: 5984 | E8: 134048.72 | F8: 0 | G8: 0
A9: 2017-07-01 | B9: 2450 | C9: 37248.73 | D9: 5777 | E9: 124342.88 | F9: 0 | G9: 0
A11: $ indicates as on July 31, 2017
A12: Source: SEBI

Sheet 14
A1: Table 14: Ratings Assigned for Long-term Corporate Debt Securities (Maturity ≥ 1 year)
A2: Grade Period | B2: Investment Grade | J2: Non-Investment Grade | L2: Total
B3: Highest Safety (AAA) | D3: High Safety (AA) | F3: Adequate Safety (A) | H3: Moderate Safety (BBB)
B4: No. of issue | C4: Amount (₹ crore) | D4: No. of issue | E4: Amount (₹ crore) | F4: No. of issue | G4: Amount (₹ crore) | H4: No. of issue | I4: Amount (₹ crore) | J4: No. of issue | K4: Amount (₹ crore) | L4: No. of issue | M4: Amount (₹ crore)
A5: 2016-17 | B5: 244 | C5: 1308971.35 | D5: 418 | E5: 309641.04 | F5: 252 | G5: 61125.48 | H5: 173 | I5: 10267.57 | J5: 117 | K5: 12714.49 | L5: 1204 | M5: 1700855.69
A6: 2017-18$ | B6: 92 | C6: 739037.6 | D6: 177 | E6: 147169.39 | F6: 54 | G6: 9014.94 | H6: 54 | I6: 4197.52 | J6: 31 | K6: 2983.91 | L6: 408 | M6: 902403.36
A7: 2017-04-01 | B7: 26 | C7: 331327.82 | D7: 44 | E7: 37500.82 | F7: 18 | G7: 3446.02 | H7: 8 | I7: 437.71 | J7: 9 | K7: 788.32 | L7: 105 | M7: 373500.69
A8: 2017-05-01 | B8: 15 | C8: 133934.05 | D8: 29 | E8: 45167.65 | F8: 6 | G8: 1365 | H8: 5 | I8: 363.66 | J8: 9 | K8: 1482.48 | L8: 64 | M8: 182312.84
A9: 2017-06-01 | B9: 28 | C9: 150054.1 | D9: 48 | E9: 27365 | F9: 11 | G9: 1532.25 | H9: 13 | I9: 1346.97 | J9: 7 | K9: 537.77 | L9: 107 | M9: 180836.09
A10: 2017-07-01 | B10: 23 | C10: 123721.63 | D10: 56 | E10: 37135.92 | F10: 19 | G10: 2671.67 | H10: 28 | I10: 2049.18 | J10: 6 | K10: 175.34 | L10: 132 | M10: 165753.74
A12: $ indicates as on July 31, 2017
A13: Source: Credit Rating Agencies.

Sheet 15
A1: Table 15: Review of Accepted Ratings of Corporate Debt Securities (Maturity ≥ 1 year)
A2: Grade Period | B2: Upgraded | D2: Downgraded | F2: Reaffirmed | H2: Rating Watch | J2: Withdrawn/ Suspended | L2: Total
B3: No. of issue | C3: Amount (₹ crore) | D3: No. of issue | E3: Amount (₹ crore) | F3: No. of issue | G3: Amount (₹ crore) | H3: No. of issue | I3: Amount (₹ crore) | J3: No. of issue | K3: Amount (₹ crore) | L3: No. of issue | M3: Amount (₹ crore)
A4: 2016-17 | B4: 368 | C4: 79324.57 | D4: 189 | E4: 177619.89 | F4: 2647 | G4: 9057498.642 | H4: 59 | I4: 50382.75 | J4: 600 | K4: 261346.32 | L4: 3850 | M4: 9889175.152
A5: 2017-18$ | B5: 131 | C5: 53084.67 | D5: 144 | E5: 180166.04 | F5: 1121 | G5: 3253721.099 | H5: 27 | I5: 61853.27 | J5: 303 | K5: 83770.2 | L5: 1726 | M5: 3632595.279
A6: 2017-04-01 | B6: 11 | C6: 19557.17 | D6: 14 | E6: 9678.8 | F6: 181 | G6: 807639.496 | H6: 2 | I6: 1591.26 | J6: 64 | K6: 24349.25 | L6: 272 | M6: 862815.976
A7: 2017-05-01 | B7: 24 | C7: 8266.27 | D7: 27 | E7: 117005.36 | F7: 137 | G7: 545575.65 | H7: 9 | I7: 55832.14 | J7: 87 | K7: 19714.71 | L7: 284 | M7: 746394.13
A8: 2017-06-01 | B8: 40 | C8: 18343.99 | D8: 30 | E8: 19734.28 | F8: 434 | G8: 931612.743 | H8: 3 | I8: 384.87 | J8: 70 | K8: 14682.29 | L8: 577 | M8: 984758.173
A9: 2017-07-01 | B9: 56 | C9: 6917.24 | D9: 73 | E9: 33747.6 | F9: 369 | G9: 968893.21 | H9: 13 | I9: 4045 | J9: 82 | K9: 25023.95 | L9: 593 | M9: 1038627
A11: $ indicates as on July 31, 2017
A12: Source: Credit Rating Agencies.

Sheet 16
A1: Table 16: Distribution of Turnover on Cash Segments of Exchanges (₹ crore)
A2: Stock Exchanges | B2: 2016-17 | C2: 2017-18$ | D2: 2017-07-01
A3: Ahmedabad | B3: 0 | C3: 0 | D3: 0
A4: BSE | B4: 998260.58 | C4: 340505.78 | D4: 88395.24
A5: Calcutta | B5: 0 | C5: 0 | D5: 0
A6: MSEI | B6: 248.0836186 | C6: 156.2214206 | D6: 149.7456184
A7: NSE | B7: 5055913.288 | C7: 2090861.406 | D7: 543944.4736
A9: $ indicates as on July 31, 2017
A10: Source: Exchanges.

Sheet 17
A1: Table 17: Trends in Cash Segment of BSE
A2: Year/ Month | B2: No. of Companies Listed | C2: No. of Companies Permitted* | D2: No. of companies traded | E2: No. of Trading Days | F2: No. of Trades (Lakh) | G2: Traded Quantity (Lakh) | H2: Turnover (₹ crore) | I2: Average Daily Turnover (₹ crore) | J2: Average Trade Size (`) | K2: Demat Securities Traded (Lakh) | L2: Demat Turnover (₹ crore) | M2: Market Capitalisation (₹ crore) | N2: S&P BSE Sensex
N3: High | O3: Low | P3: Close
A4: 2016-17 | B4: 5834 | C4: 70 | D4: 2948 | E4: 248 | F4: 3918.55 | G4: 707231.16 | H4: 998260.58 | I4: 4025.244274 | J4: 25475.25437 | K4: 707231.16 | L4: 998260.42 | M4: 12154525.46 | N4: 29824.62 | O4: 24523.2 | P4: 29620.5
A5: 2017-18$ | B5: 5811 | C5: 56 | D5: 2845 | E5: 82 | F5: 1184.23 | G5: 247086.26 | H5: 340505.78 | I5: 4152.509512 | J5: 28753.34859 | K5: 247086.26 | L5: 340505.72 | M5: 13262245.53 | N5: 32672.66 | O5: 29241.48 | P5: 32514.94
A6: 2017-04-04 | B6: 5828 | C6: 56 | D6: 2978 | E6: 18 | F6: 287.36 | G6: 57778.28 | H6: 75070.4 | I6: 4170.577778 | J6: 26124.16481 | K6: 57778.28 | L6: 75070.38 | M6: 12484962.9 | N6: 30184.22 | O6: 29241.48 | P6: 29918.4
A7: 2017-05-04 | B7: 5783 | C7: 56 | D7: 2829 | E7: 22 | F7: 314.87 | G7: 63338.03 | H7: 91105.62 | I7: 4141.164545 | J7: 28934.36021 | K7: 63338.03 | L7: 91105.61 | M7: 12580118.73 | N7: 31255.28 | O7: 29804.12 | P7: 31145.8
A8: 2017-06-04 | B8: 5794 | C8: 56 | D8: 2725 | E8: 21 | F8: 260.69 | G8: 54576.56 | H8: 85934.52 | I8: 4092.12 | J8: 32964.2564 | K8: 54576.56 | L8: 85934.5 | M8: 12596811.99 | N8: 31522.87 | O8: 30680.66 | P8: 30921.61
A9: 2017-07-04 | B9: 5811 | C9: 56 | D9: 2845 | E9: 21 | F9: 321.31 | G9: 71393.39 | H9: 88395.24 | I9: 4209.297143 | J9: 27510.88979 | K9: 71393.39 | L9: 88395.23 | M9: 13262245.53 | N9: 32672.66 | O9: 31017.11 | P9: 32514.94
A11: Notes: 1. * Excludes Mutual Fund Schemes from Feb 2013. 2. Market capitalisation pertains to the number of companies traded.
A12: $ indicates as on July 31, 2017
A13: Source: BSE .

Sheet 18
A1: Table 18: Trends in Cash Segment of NSE
A2: Year/ Month | B2: No. of Companies Listed | C2: No. of Companies Permitted | D2: No. of Companies Traded | E2: No. of Trading Days | F2: No. of Trades (Lakh) | G2: Traded Quantity (Lakh) | H2: Turnover (₹ crore) | I2: Average Daily Turnover (₹ crore) | J2: Average Trade Size (`) | K2: Demat Securities Traded (Lakh) | L2: Demat Turnover (₹ crore) | M2: Market Capitalisation (₹ crore) | N2: Nifty 50 Index
N3: High | O3: Low | P3: Close
A5: 2016-17 | B5: 1817 | C5: 4 | D5: 1665 | E5: 248 | F5: 19759.71828 | G5: 2624533.688 | H5: 5055913.288 | I5: 20386.74713 | J5: 25586.9705 | K5: 2624533.688 | L5: 5055913.288 | M5: 11978420.9 | N5: 9218.4 | O5: 7516.85 | P5: 9173.75
A6: 2017-18$ | B6: 1837 | C6: 4 | D6: 1685 | E6: 82 | F6: 7406.22733 | G6: 1116569.747 | H6: 2090861.406 | I6: 25498.30983 | J6: 28231.1265 | K6: 1116569.747 | L6: 2090861.406 | M6: 13121441.34 | N6: 10114.85 | O6: 9075.15 | P6: 10077.1
A7: 2017-04-19 | B7: 1831 | C7: 4 | D7: 1668 | E7: 18 | F7: 1673.04198 | G7: 249260.3436 | H7: 472110.1946 | I7: 26228.34414 | J7: 28218.66996 | K7: 249260.3436 | L7: 472110.1946 | M7: 12303874.75 | N7: 9367.15 | O7: 9075.15 | P7: 9304.05
A8: 2017-05-17 | B8: 1814 | C8: 4 | D8: 1669 | E8: 22 | F8: 2093 | G8: 295182 | H8: 588502 | I8: 26750.08281 | J8: 28118.69632 | K8: 295182 | L8: 588502 | M8: 12416788.86 | N8: 9649.6 | O8: 9269 | P8: 9621.25
A9: 2017-06-17 | B9: 1820 | C9: 4 | D9: 1666 | E9: 21 | F9: 1801.70323 | G9: 254139.3297 | H9: 486304.7379 | I9: 23157.36847 | J9: 26991.38958 | K9: 254139.3297 | L9: 486304.7379 | M9: 12430129.17 | N9: 9709.3 | O9: 9448.75 | P9: 9520.9
A10: 2017-07-17 | B10: 1837 | C10: 4 | D10: 1685 | E10: 21 | F10: 1838.48212 | G10: 317988.0738 | H10: 543944.4736 | I10: 25902.11779 | J10: 29586.60668 | K10: 317988.0738 | L10: 543944.4736 | M10: 13121441.34 | N10: 10114.85 | O10: 9543.85 | P10: 10077.1
A12: Notes: 1. Demat turnover includes turnover of all securities which are available for trading in Demat mode. 2. Market capitalisation pertains to the number of companies traded.
A13: $ indicates as on July 31, 2017
A14: Source: NSE

Sheet 19
A1: Table 19: City-wise Distribution of Turnover on Cash Segments of BSE and NSE
A2: (Percentage share in Turnover)
A3: S.No. | B3: City | C3: BSE | E3: NSE
B4: Stock Exchange/City | C4: 2016-17 | D4: 2017-07-01 | E4: 2016-17 | F4: 2017-07-01
A5: 1 | B5: Ahmedabad | C5: 3.172025287 | D5: 3.524174408 | E5: 2.989013847 | F5: 3.334476279
A6: 2 | B6: Bengaluru | C6: 0.3461018596 | D6: 0.3930033175 | E6: 6.304218474 | F6: 5.35609386
A7: 3 | B7: Vadodra | C7: 0.8703025828 | D7: 1.01199215 | E7: 0.3366697024 | F7: 0.3860191892
A8: 4 | B8: Bhubneshwar | C8: 0.017430938 | D8: 0.03009893782 | E8: 0.0002931320432 | F8: 0.0003203711909
A9: 5 | B9: Chennai | C9: 0.6916628168 | D9: 1.172703806 | E9: 1.037228016 | F9: 0.9081510305
A10: 6 | B10: Ernakulum | C10: 0.1130618234 | D10: 0.1228365233 | E10: 1.078520349 | F10: 0.8340738539
A11: 7 | B11: Coimbatore | C11: 0.03758251631 | D11: 0.06297483742 | E11: 0.08624776751 | F11: 0.07995372752
A12: 8 | B12: New Delhi | C12: 3.096543269 | D12: 2.90093917 | E12: 6.707460332 | F12: 6.871088768
A13: 9 | B13: Guwahati | C13: 0.05435037275 | D13: 0.07350870166 | E13: 0.001354365482 | F13: 0.001072933085
A14: 10 | B14: Hyderabad | C14: 0.354715202 | D14: 0.3594442958 | E14: 3.58407483 | F14: 3.644981282
A15: 11 | B15: Indore | C15: 0.3293570791 | D15: 0.4581436604 | E15: 0.452142035 | F15: 0.5801056857
A16: 12 | B16: Jaipur | C16: 0.596848218 | D16: 0.7822499981 | E16: 0.4767818096 | F16: 0.5831463675
A17: 13 | B17: Kanpur | C17: 0.3325801708 | D17: 0.3230159537 | E17: 0.1150845214 | F17: 0.09764596444
A18: 14 | B18: Kolkata | C18: 3.48464075 | D18: 3.921380991 | E18: 4.789977434 | F18: 4.878449994
A19: 15 | B19: Ludhiana | C19: 0.0947698688 | D19: 0.1069626292 | E19: 0.1024102559 | F19: 0.07947076829
A20: 16 | B20: Mangalore | C20: 0.01918214114 | D20: 0.02284591056 | E20: 0.0004512396346 | F20: 0.0003962626691
A21: 17 | B21: Mumbai | C21: 55.94202061 | D21: 54.71588714 | E21: 59.97263513 | F21: 60.45489976
A22: 18 | B22: Patna | C22: 0.04971091069 | D22: 0.06489780115 | E22: 0.004983533179 | F22: 0.002716152444
A23: 19 | B23: Pune | C23: 0.3218350593 | D23: 0.3399853582 | E23: 0.148346956 | F23: 0.1451320021
A24: 20 | B24: Rajkot | C24: 1.752971629 | D24: 2.060893107 | E24: 1.240731539 | F24: 1.308561807
A25: 21 | B25: Others | C25: 28.32230689 | D25: 27.5520613 | E25: 10.57137473 | F25: 10.45
B26: Total | C26: 100 | D26: 100 | E26: 100 | F26: 99.99675606
A28: Notes:
A29: 1. The city-wise distribution of turnover is based on the cities uploaded in the UCC database of the Exchange for clientele trades and member's registered office city for proprietary trades.
A31: Source: BSE and NSE.

Sheet 20
A1: Table 20: Category-wise Share of Turnover in Cash Segment of BSE
A2: Year/Month | B2: Percentage Share in Turnover
B3: Proprietary | C3: FPI | D3: Mutual Funds | E3: Banks | F3: Others
A4: 2016-17 | B4: 13.4875528 | C4: 12.85844046 | D4: 4.629159519 | E4: 0.08655631603 | F4: 68.9382909
A5: 2017-18$ | B5: 15.96050337 | C5: 16.25012553 | D5: 7.512700916 | E5: 0.2776549641 | F5: 59.99901522
A6: 2017-04-04 | B6: 18.06079584 | C6: 15.55779494 | D6: 5.665604372 | E6: 0.0771799779 | F6: 60.63862486
A7: 2017-05-04 | B7: 17.34624581 | C7: 15.39574016 | D7: 8.237023711 | E7: 0.06957405839 | F7: 58.95141625
A8: 2017-06-04 | B8: 13.03106545 | C8: 18.59195572 | D8: 8.123079359 | E8: 0.8151243993 | F8: 59.43877507
A9: 2017-07-04 | B9: 15.596469 | C9: 15.44203665 | D9: 7.741444208 | E9: 0.1398636121 | F9: 61.08018653
A11: $ indicates as on July 31, 2017
A12: Source: BSE.

Sheet 21
A1: Table 21: Category-wise Share of Turnover in Cash Segment of NSE
A2: Year/Month | B2: Percentage Share in Turnover
B3: Proprietary | C3: FPI | D3: Mutual Funds | E3: Banks | F3: Others
A4: 2016-17 | B4: 16.91793265 | C4: 20.27118381 | D4: 6.213797739 | E4: 0.4221846683 | F4: 56.59708579
A5: 2017-18$ | B5: 16.99626925 | C5: 17.3756967 | D5: 7.016407385 | E5: 0.5934554991 | F5: 58.01817117
A6: 2017-04-18 | B6: 16.6152857 | C6: 15.49852618 | D6: 7.218107052 | E6: 0.5995079891 | F6: 60.66808106
A7: 2017-05-17 | B7: 17.43130717 | C7: 18.44243651 | D7: 6.882570468 | E7: 0.597030049 | F7: 57.24368585
A8: 2017-06-17 | B8: 16.82955075 | C8: 18.98525185 | D8: 6.853718 | E8: 0.6238426893 | F8: 56.71
A9: 2017-07-17 | B9: 17.00894233 | C9: 16.35545382 | D9: 7.96648843 | E9: 0.4222131872 | F9: 58.24690224
A11: $ indicates as on July 31, 2017
A12: Source: NSE.

Sheet 22
A1: Table 22: Component Stocks: S&P BSE Sensex during July-2017
A2: S.No. | B2: Name of Security | C2: Issued Capital (₹ crore) | D2: Free Float Market Capitalisation (₹ crore) | E2: Weightage (Percent) | F2: Beta | G2: R2 | H2: Daily Volatility (Percent) | I2: Monthly Return (Percent) | J2: Impact Cost (Percent)
A3: 1 | B3: HDFC BANK | C3: 515.03 | D3: 361907.0248 | E3: 11.71004874 | F3: 0.72 | G3: 0.317525 | H3: 0.86 | I3: 7.934634589 | J3: 0.03
A4: 2 | B4: HDFC | C4: 318.58 | D4: 283885.6798 | E4: 9.185550207 | F4: 1.19 | G4: 0.329829 | H4: 1.39 | I4: 10.50515049 | J4: 0.03
A5: 3 | B5: RELIANCE | C5: 3251.74 | D5: 267613.7471 | E5: 8.659047234 | F5: 0.85 | G5: 0.147966 | H5: 1.48 | I5: 16.9244702 | J5: 0.02
A6: 4 | B6: ITC LTD. | C6: 1216.18 | D6: 242467.8384 | E6: 7.845413353 | F6: 1.26 | G6: 0.228815 | H6: 1.76 | I6: -11.94997684 | J6: 0.03
A7: 5 | B7: INFOSYS LTD | C7: 1148.47 | D7: 202092.2536 | E7: 6.53900029 | F7: 0.57 | G7: 0.095632 | H7: 1.23 | I7: 8.085288302 | J7: 0.03
A8: 6 | B8: ICICI BANK | C8: 1282.68 | D8: 193564.3077 | E8: 6.263065711 | F8: 1.63 | G8: 0.346947 | H8: 1.85 | I8: 4.084798345 | J8: 0.03
A9: 7 | B9: LARSEN & TOU | C9: 280.06 | D9: 143519.2543 | E9: 4.643782375 | F9: 0.9 | G9: 0.047111 | H9: 2.78 | I9: 0.1 | J9: 0.03
A10: 8 | B10: TCS LTD. | C10: 191.43 | D10: 132687.3407 | E10: 4.293299441 | F10: 0.49 | G10: 0.050304 | H10: 1.45 | I10: 5.485651448 | J10: 0.03
A11: 9 | B11: KOTAK MAH.BK | C11: 951.78 | D11: 110614.9298 | E11: 3.579113226 | F11: 0.74 | G11: 0.186619 | H11: 1.15 | I11: 6.729813177 | J11: 0.05
A12: 10 | B12: STATE BANK | C12: 863.21 | D12: 107917.8891 | E12: 3.491846399 | F12: 1.34 | G12: 0.303973 | H12: 1.63 | I12: 14.23611111 | J12: 0.03
A13: 11 | B13: MARUTISUZUK | C13: 151.04 | D13: 102450.3716 | E13: 3.314936606 | F13: 1.23 | G13: 0.363013 | H13: 1.37 | I13: 6.78937087 | J13: 0.03
A14: 12 | B14: AXIS BANK | C14: 479.44 | D14: 87048.61635 | E14: 2.816589539 | F14: 1.4 | G14: 0.286928 | H14: 1.75 | I14: 0.5328424724 | J14: 0.03
A15: 13 | B15: TATA MOTORS | C15: 577.47 | D15: 85989.55446 | E15: 2.782321991 | F15: 1.72 | G15: 0.325781 | H15: 2.01 | I15: 2.774566474 | J15: 0.04
A16: 14 | B16: HIND UNI LT | C16: 216.45 | D16: 82376.35139 | E16: 2.665411345 | F16: 0.64 | G16: 0.153847 | H16: 1.09 | I16: 6.633690828 | J16: 0.04
A17: 15 | B17: MAH & MAH | C17: 310.55 | D17: 65307.8238 | E17: 2.113133339 | F17: 1.09 | G17: 0.298238 | H17: 1.34 | I17: 4.03294624 | J17: 0.04
A18: 16 | B18: SUN PHARMA. | C18: 239.92 | D18: 57404.69806 | E18: 1.857415762 | F18: 0.69 | G18: 0.065976 | H18: 1.81 | I18: -4.111812444 | J18: 0.04
A19: 17 | B19: BHARTI ARTL | C19: 1998.7 | D19: 55113.75276 | E19: 1.783288764 | F19: 0.78 | G19: 0.099258 | H19: 1.66 | I19: 10.19385467 | J19: 0.05
A20: 18 | B20: ASIAN PAINTS | C20: 95.92 | D20: 52270.67969 | E20: 1.691296838 | F20: 1.03 | G20: 0.228074 | H20: 1.44 | I20: 5.008377485 | J20: 0.06
A21: 19 | B21: POWER GRID | C21: 5231.59 | D21: 49010.05828 | E21: 1.585794505 | F21: 0.8 | G21: 0.167934 | H21: 1.31 | I21: 5.936832106 | J21: 0.07
A22: 20 | B22: HEROMOTOCO | C22: 39.94 | D22: 46701.61969 | E22: 1.511101486 | F22: 1.05 | G22: 0.253443 | H22: 1.39 | I22: -1.152379149 | J22: 0.04
A23: 21 | B23: ONGC CORPN | C23: 6416.62 | D23: 45639.47529 | E23: 1.476734198 | F23: 0.68 | G23: 0.025728 | H23: 2.83 | I23: 7.660521297 | J23: 0.05
A24: 22 | B24: NTPC LTD | C24: 8245.46 | D24: 40592.42419 | E24: 1.313429232 | F24: 0.72 | G24: 0.138807 | H24: 1.29 | I24: 3.565793626 | J24: 0.06
A25: 23 | B25: BAJAJ AUTO | C25: 289.37 | D25: 38184.19105 | E25: 1.235507209 | F25: 0.88 | G25: 0.241931 | H25: 1.2 | I25: 0.6127934062 | J25: 0.05
A26: 24 | B26: TATA STEEL | C26: 971.22 | D26: 38033.70205 | E26: 1.23063791 | F26: 1.65 | G26: 0.323944 | H26: 1.94 | I26: 4.26196381 | J26: 0.03
A27: 25 | B27: WIPRO LTD. | C27: 973.28 | D27: 36562.45525 | E27: 1.183033497 | F27: 0.5 | G27: 0.005111 | H27: 4.67 | I27: 11.69082126 | J27: 0.06
A28: 26 | B28: ADANI PORTS | C28: 414.19 | D28: 35295.33848 | E28: 1.142034019 | F28: 1.7 | G28: 0.288863 | H28: 2.11 | I28: 9.353014209 | J28: 0.05
A29: 27 | B29: COAL INDIA | C29: 6207.41 | D29: 30931.51905 | E29: 1.000836046 | F29: 0.59 | G29: 0.089651 | H29: 1.33 | I29: 2.027027027 | J29: 0.05
A30: 28 | B30: DR.REDDY'S | C30: 82.88 | D30: 29246.28725 | E30: 0.9463078241 | F30: 0.41 | G30: 0.04064 | H30: 1.37 | I30: -11.07673383 | J30: 0.05
A31: 29 | B31: CIPLA LTD. | C31: 160.93 | D31: 28316.09702 | E31: 0.9162101135 | F31: 0.6 | G31: 0.08299 | H31: 1.38 | I31: 0.7756832326 | J31: 0.06
A32: 30 | B32: LUPIN LTD. | C32: 90.35 | D32: 24706.2379 | E32: 0.7994076658 | F32: 0.72 | G32: 0.088547 | H32: 1.62 | I32: -2.678234628 | J32: 0.04
A33: 31 | B33: TATAMTRTDVR | C33: 101.7 | D33: 13116.52941 | E33: 0.4244051323 | F33: 1.64 | G33: 0.310868 | H33: 1.97 | I33: -0.0104 | J33: 0.09
A35: Notes: 1. Beta & R2 are calculated for the trailing 12 months. Beta measures the degree to which any portfolio of stocks is affected as compared to the effect on the market as a whole.
A36: 2. The coefficient of determination (R2) measures the strength of relationship between two variables the return on a security versus that of the market.
A37: 3. Volatility is the standard deviation of the daily returns for the trailing 12 months.
A38: 4. Impact cost is calculated as the difference between actual buy price and ideal buy price, divided by ideal buy price, multiplied by 100. Hence ideal price is calculated as (best buy + best sell)/2.
A39: 5. The above is calculated for a month for the portfolio size of ` 5 lakh. It is calculated for the current month.
A40: Source: BSE.

Sheet 23
A1: Table 23: Component Stocks: Nifty 50 Index during July-2017
A2: S.No. | B2: Name of Security | C2: Issued Capital (₹ crore) | D2: Free Float Market Capitalisation (₹ crore) | E2: Weightage (Percent) | F2: Beta | G2: R2 | H2: Daily Volatility (Percent) | I2: Monthly Return (Percent) | J2: Impact Cost (Percent)
A3: 1 | B3: HDFC BANK LTD. | C3: 5129818234 | D3: 361569.08 | E3: 9.49 | F3: 0.74 | G3: 0.33 | H3: 0.7 | I3: 8.01 | J3: 0.03
A4: 2 | B4: HOUSING DEVELOPMENT FINANCE CORPORATION LTD. | C4: 3177763090 | D4: 284290.63 | E4: 7.46 | F4: 1.16 | G4: 0.32 | H4: 1.49 | I4: 10.79 | J4: 0.01
A5: 3 | B5: RELIANCE INDUSTRIES LTD. | C5: 32514345720 | D5: 267837.57 | E5: 7.03 | F5: 0.79 | G5: 0.13 | H5: 1.43 | I5: 17.04 | J5: 0.02
A6: 4 | B6: I T C LTD. | C6: 12147383072 | D6: 242552.87 | E6: 6.37 | F6: 1.12 | G6: 0.19 | H6: 3.34 | I6: -11.86 | J6: 0.02
A7: 5 | B7: INFOSYS LTD. | C7: 11484723320 | D7: 202072.33 | E7: 5.3 | F7: 0.54 | G7: 0.09 | H7: 1.27 | I7: 8.09 | J7: 0.02
A8: 6 | B8: ICICI BANK LTD. | C8: 12818101330 | D8: 193937.87 | E8: 5.09 | F8: 1.53 | G8: 0.33 | H8: 1.29 | I8: 4.29 | J8: 0.02
A9: 7 | B9: LARSEN & TOUBRO LTD. | C9: 2799271384 | D9: 147056.36 | E9: 3.86 | F9: 1.13 | G9: 0.37 | H9: 0.89 | I9: 6.12 | J9: 0.03
A10: 8 | B10: TATA CONSULTANCY SERVICES LTD. | C10: 1970427941 | D10: 132567.63 | E10: 3.48 | F10: 0.47 | G10: 0.05 | H10: 1.53 | I10: 5.48 | J10: 0.02
A11: 9 | B11: KOTAK MAHINDRA BANK LTD. | C11: 9205141265 | D11: 124138.51 | E11: 3.26 | F11: 0.79 | G11: 0.22 | H11: 0.93 | I11: 6.9 | J11: 0.02
A12: 10 | B12: STATE BANK OF INDIA | C12: 8632050393 | D12: 115993.18 | E12: 3.04 | F12: 1.33 | G12: 0.31 | H12: 1.19 | I12: 14.2 | J12: 0.02
A13: 11 | B13: MARUTI SUZUKI INDIA LTD. | C13: 1510400300 | D13: 103009.97 | E13: 2.7 | F13: 1.25 | G13: 0.38 | H13: 0.71 | I13: 7.38 | J13: 0.01
A14: 12 | B14: AXIS BANK LTD. | C14: 4793137128 | D14: 88447.28 | E14: 2.32 | F14: 1.34 | G14: 0.28 | H14: 1.46 | I14: 0.47 | J14: 0.02
A15: 13 | B15: TATA MOTORS LTD. | C15: 5774696856 | D15: 83441.48 | E15: 2.19 | F15: 1.74 | G15: 0.35 | H15: 1.19 | I15: 2.79 | J15: 0.02
A16: 14 | B16: HINDUSTAN UNILEVER LTD. | C16: 2164349639 | D16: 82547.75 | E16: 2.17 | F16: 0.62 | G16: 0.15 | H16: 0.87 | I16: 7.05 | J16: 0.02
A17: 15 | B17: INDUSIND BANK LTD. | C17: 5982921560 | D17: 82709.7 | E17: 2.17 | F17: 1.23 | G17: 0.38 | H17: 0.93 | I17: 11.28 | J17: 0.02
A18: 16 | B18: YES BANK LTD. | C18: 4569894450 | D18: 66153.79 | E18: 1.74 | F18: 1.54 | G18: 0.32 | H18: 1.9 | I18: 23.64 | J18: 0.02
A19: 17 | B19: MAHINDRA & MAHINDRA LTD. | C19: 3105461920 | D19: 65368.42 | E19: 1.72 | F19: 1.12 | G19: 0.32 | H19: 0.92 | I19: 4.06 | J19: 0.02
A20: 18 | B20: SUN PHARMACEUTICAL INDUSTRIES LTD. | C20: 2399291181 | D20: 58676.83 | E20: 1.54 | F20: 0.67 | G20: 0.07 | H20: 1.58 | I20: -4.33 | J20: 0.02
A21: 19 | B21: BHARTI AIRTEL LTD. | C21: 19987000510 | D21: 55265.46 | E21: 1.45 | F21: 0.77 | G21: 0.1 | H21: 1.78 | I21: 10.34 | J21: 0.02
A22: 20 | B22: ASIAN PAINTS LTD. | C22: 959197790 | D22: 52372.1 | E22: 1.37 | F22: 1.04 | G22: 0.24 | H22: 0.95 | I22: 5.33 | J22: 0.02
A23: 21 | B23: VEDANTA LTD. | C23: 3717194239 | D23: 52012.84 | E23: 1.37 | F23: 1.72 | G23: 0.25 | H23: 1.61 | I23: 12.37 | J23: 0.02
A24: 22 | B24: HCL TECHNOLOGIES LTD. | C24: 2853975808 | D24: 50966.3 | E24: 1.34 | F24: 0.46 | G24: 0.06 | H24: 1.11 | I24: 4.94 | J24: 0.02
A25: 23 | B25: POWER GRID CORPORATION OF INDIA LTD. | C25: 52315896480 | D25: 49064.99 | E25: 1.29 | F25: 0.78 | G25: 0.16 | H25: 1.07 | I25: 6.06 | J25: 0.03
A26: 24 | B26: OIL & NATURAL GAS CORPORATION LTD. | C26: 64166175900 | D26: 47826.9 | E26: 1.26 | F26: 0.54 | G26: 0.07 | H26: 1.29 | I26: 7.69 | J26: 0.02
A27: 25 | B27: HERO MOTOCORP LTD. | C27: 399393676 | D27: 47452.71 | E27: 1.25 | F27: 1.09 | G27: 0.28 | H27: 1 | I27: -1.23 | J27: 0.02
A28: 26 | B28: ULTRATECH CEMENT LTD. | C28: 2745117460 | D28: 42319.33 | E28: 1.11 | F28: 1.3 | G28: 0.33 | H28: 1.27 | I28: 2.47 | J28: 0.02
A29: 27 | B29: NTPC LTD. | C29: 82454644000 | D29: 40617.16 | E29: 1.07 | F29: 0.73 | G29: 0.15 | H29: 0.95 | I29: 3.3 | J29: 0.03
A30: 28 | B30: EICHER MOTORS LTD. | C30: 272102490 | D30: 40107.33 | E30: 1.05 | F30: 1.32 | G30: 0.25 | H30: 1.19 | I30: 11.25 | J30: 0.02
A31: 29 | B31: BAJAJ AUTO LTD. | C31: 2893670200 | D31: 38196.98 | E31: 1 | F31: 0.91 | G31: 0.27 | H31: 0.75 | I31: 0.62 | J31: 0.02
A32: 30 | B32: TATA STEEL LTD. | C32: 9712154390 | D32: 38003.56 | E32: 1 | F32: 1.71 | G32: 0.35 | H32: 1.22 | I32: 3.91 | J32: 0.02
A33: 31 | B33: INDIABULLS HOUSING FINANCE LTD. | C33: 848625648 | D33: 37899.2 | E33: 0.99 | F33: 1.21 | G33: 0.19 | H33: 1.57 | I33: 9.21 | J33: 0.03
A34: 32 | B34: INDIAN OIL CORPORATION LTD. | C34: 48559049640 | D34: 37490.74 | E34: 0.98 | F34: 1.12 | G34: 0.19 | H34: 1.11 | I34: -4.56 | J34: 0.02
A35: 33 | B35: BHARAT PETROLEUM CORPORATION LTD. | C35: 21692527440 | D35: 36793.56 | E35: 0.97 | F35: 0.9 | G35: 0.15 | H35: 0.74 | I35: 10.53 | J35: 0.02
A36: 34 | B36: WIPRO LTD. | C36: 9729725632 | D36: 36485.01 | E36: 0.96 | F36: 0.47 | G36: 0.07 | H36: 1.83 | I36: 11.65 | J36: 0.03
A37: 35 | B37: COAL INDIA LTD. | C37: 62074091770 | D37: 32471.58 | E37: 0.85 | F37: 0.64 | G37: 0.1 | H37: 1.49 | I37: 1.99 | J37: 0.03
A38: 36 | B38: ADANI PORTS AND SPECIAL ECONOMIC ZONE LTD. | C38: 4141903522 | D38: 31975.7 | E38: 0.84 | F38: 1.72 | G38: 0.3 | H38: 0.62 | I38: 9.05 | J38: 0.02
A39: 37 | B39: HINDALCO INDUSTRIES LTD. | C39: 2243352013 | D39: 32028.9 | E39: 0.84 | F39: 1.76 | G39: 0.28 | H39: 1.41 | I39: 15.03 | J39: 0.02
A40: 38 | B40: ZEE ENTERTAINMENT ENTERPRISES LTD. | C40: 960448720 | D40: 29658.42 | E40: 0.78 | F40: 1.25 | G40: 0.24 | H40: 1.35 | I40: 10.26 | J40: 0.02
A41: 39 | B41: DR. REDDY'S LABORATORIES LTD. | C41: 828708565 | D41: 28834.68 | E41: 0.76 | F41: 0.41 | G41: 0.04 | H41: 1.87 | I41: -11.41 | J41: 0.02
A42: 40 | B42: CIPLA LTD. | C42: 1609099350 | D42: 28389.58 | E42: 0.75 | F42: 0.57 | G42: 0.07 | H42: 1.03 | I42: 0.81 | J42: 0.02
A43: 41 | B43: BHARTI INFRATEL LTD. | C43: 18496082460 | D43: 28212.44 | E43: 0.74 | F43: 0.63 | G43: 0.04 | H43: 1.97 | I43: 7.17 | J43: 0.03
A44: 42 | B44: LUPIN LTD. | C44: 903342124 | D44: 24704.6 | E44: 0.65 | F44: 0.75 | G44: 0.1 | H44: 1.88 | I44: -2.63 | J44: 0.02
A45: 43 | B45: GAIL (INDIA) LTD. | C45: 16913032000 | D45: 24213.54 | E45: 0.64 | F45: 0.81 | G45: 0.13 | H45: 1.43 | I45: 4.23 | J45: 0.03
A46: 44 | B46: TECH MAHINDRA LTD. | C46: 4871539365 | D46: 24059.95 | E46: 0.63 | F46: 0.79 | G46: 0.1 | H46: 1.12 | I46: 1.01 | J46: 0.02
A47: 45 | B47: BOSCH LTD. | C47: 305207400 | D47: 22138.01 | E47: 0.58 | F47: 1.15 | G47: 0.29 | H47: 0.82 | I47: 3.65 | J47: 0.03
A48: 46 | B48: AUROBINDO PHARMA LTD. | C48: 585882409 | D48: 20208.72 | E48: 0.53 | F48: 1.4 | G48: 0.2 | H48: 1.97 | I48: 4.97 | J48: 0.02
A49: 47 | B49: AMBUJA CEMENTS LTD. | C49: 3971290458 | D49: 19333.33 | E49: 0.51 | F49: 1.47 | G49: 0.4 | H49: 0.99 | I49: 6.73 | J49: 0.03
A50: 48 | B50: BANK OF BARODA | C50: 4608319196 | D50: 15686.83 | E50: 0.41 | F50: 1.48 | G50: 0.19 | H50: 1.42 | I50: 2.72 | J50: 0.03
A51: 49 | B51: TATA POWER CO. LTD. | C51: 2704773510 | D51: 14860.03 | E51: 0.39 | F51: 0.99 | G51: 0.23 | H51: 0.68 | I51: 1.8 | J51: 0.04
A52: 50 | B52: ACC LTD. | C52: 1877871730 | D52: 14646.27 | E52: 0.38 | F52: 1.3 | G52: 0.35 | H52: 1.22 | I52: 10.53 | J52: 0.02
A53: 51 | B53: TATA MOTORS LTD DVR | C53: 1017004582 | D53: 13246.48 | E53: 0.35 | F53: 1.7 | G53: 0.35 | H53: 1.09 | I53: -1.06 | J53: 0.03
A55: Notes: 1. Beta & R2 are calculated for the the trailing 12 months. Beta measures the degree to which any portfolio of stocks is affected as compared to the effect on the market as a whole.
A56: 2. The coefficient of determination (R2) measures the strength of relationship between two variables the return on a security versus that of the market.
A57: 3. Volatility is the standard deviation of the daily returns for the the trailing 12 months.
A58: 4. Impact cost is calculated as the difference between actual buy price and ideal buy price, divided by ideal buy price, multiplied by 100. Hence ideal price is calculated as (best buy + best sell)/2.
A59: 5. The above is calculated for a month for the portfolio size of `5 lakh. It is calculated for the current month.
A60: 6. As per NSE circular dated February 22, 2016, the equity securities with Differential Voting Rights (DVRs) would be eligible for inclusion in an index subject to fulfilment of the eligibility criteria laid down by NSE.
A61: Source: NSE.

Sheet 24
A1: Table 24: Advances/Declines in Cash Segment of BSE and NSE
A2: Year/ Month | B2: BSE | E2: NSE
B3: Advances | C3: Declines | D3: Advance / Decline Ratio | E3: Advances | F3: Declines | G3: Advance / Decline Ratio
A4: 2016-17 | B4: 2137 | C4: 1650 | D4: 1.295151515 | E4: 993 | F4: 627 | G4: 1.583732057
A5: 2017-18$ | B5: 2415 | C5: 1346 | D5: 1.794205052 | E5: 1138 | F5: 449 | G5: 2.53
A6: 2017-04-04 | B6: 2511 | C6: 1077 | D6: 2.331476323 | E6: 1327 | F6: 351 | G6: 3.780626781
A7: 2017-05-01 | B7: 1616 | C7: 1941 | D7: 0.8325605358 | E7: 766 | F7: 931 | G7: 0.82
A8: 2017-06-04 | B8: 1310 | C8: 2171 | D8: 0.6034085675 | E8: 668 | F8: 1022 | G8: 0.6536203523
A9: 2017-07-04 | B9: 2005 | C9: 1411 | D9: 1.42097803 | E9: 1060 | F9: 634 | G9: 1.65
A11: Note: Advance/Decline is calculated based on the average price methodology. | L11: `
A12: Source: BSE and NSE

Sheet 25
A1: Table 25: Trading Frequency in Cash Segment of BSE and NSE
A2: Month | B2: BSE | E2: NSE
B3: No. of Companies Listed | C3: No. of companies Traded | D3: Percent of Traded to Listed | E3: No. of Companies Listed | F3: No. of companies Traded | G3: Percent of Traded to Listed
A5: 2016-17 | B5: 5834 | C5: 2948 | D5: 50.53136784 | E5: 1817 | F5: 1665 | G5: 91.63456247
A6: 2017-18$ | B6: 5828 | C6: 2978 | D6: 51.09814688 | E6: 1831 | F6: 1668 | G6: 91.09776079
A7: 2017-04-04 | B7: 5828 | C7: 2978 | D7: 51.09814688 | E7: 1831 | F7: 1668 | G7: 91.09776079
A8: 2017-05-05 | B8: 5783 | C8: 2829 | D8: 48.91924607 | E8: 1814 | F8: 1669 | G8: 92.00661521
A9: 2017-06-05 | B9: 5794 | C9: 2725 | D9: =C9/B9*100 -> 47.03141181 | E9: 1820 | F9: 1666 | G9: =F9/E9*100 -> 91.53846154
A10: 2017-07-05 | B10: 5811 | C10: 2845 | D10: =C10/B10*100 -> 48.95887111 | E10: 1837 | F10: 1685 | G10: =F10/E10*100 -> 91.72563963
A11: Note: At NSE, number of companies traded also includes the number of companies not available for trading but permitted to trade only in the first week of every month.
A13: $ indicates as on July 31, 2017
A14: Source: BSE and NSE

Sheet 26
A1: Table 26: Daily Volatility of Major Indices (percent)
A2: Year/ Month | B2: BSE Sensex | C2: BSE 100 | D2: BSE 500 | E2: Nifty 50 | F2: Nifty Next 50 | G2: Nifty 500
A3: 2016-17 | B3: 0.7680748725 | C3: 0.8021802533 | D3: 0.7964401685 | E3: 0.7826642418 | F3: 0.9689422824 | G3: 0.8020996798
A4: 2017-18$ | B4: 0.5085843742 | C4: 0.5082888595 | D4: 0.523739439 | E4: 0.48 | F4: 0.73 | G4: 0.52
A5: 2017-04-04 | B5: 0.5764199871 | C5: 0.513858132 | D5: 0.4873061183 | E5: 0.484007982 | F5: 0.5802374817 | G5: 0.4536745923
A6: 2017-05-04 | B6: 0.5804323386 | C6: 0.6403064292 | D6: 0.7098349695 | E6: 0.5675048529 | F6: 1.018546315 | G6: 0.6883916656
A7: 2017-06-04 | B7: 0.3384528306 | C7: 0.3544128098 | D7: 0.3867092865 | E7: 0.34 | F7: 0.53 | G7: 0.38
A8: 2017-07-04 | B8: 0.498978419 | C8: 0.4642570385 | D8: 0.4381585285 | E8: 0.42 | F8: 0.54 | G8: 0.39
A9: Note: Volatility is calculated as the standard deviation of the natural log of daily returns in indices for the respective period.
A11: $ indicates as on July 31, 2017.
A12: Source: BSE and NSE.

Sheet 27
A1: Table 27: Percentage Share of Top ‘N’ Securities/Members in Turnover of Cash Segment (percent)
A2: Year/Month | B2: BSE | G2: NSE
A3: Top | B3: 5 | C3: 10 | D3: 25 | E3: 50 | F3: 100 | G3: 5 | H3: 10 | I3: 25 | J3: 50 | K3: 100
A4: Securities
A5: 2016-17 | B5: 10.0146 | C5: 15.5944 | D5: 28.3171 | E5: 40.9935 | F5: 55.7935 | G5: 10.74170344 | H5: 19.20319449 | I5: 33.79531623 | J5: 48.85941968 | K5: 67.72209163
A6: 2017-18$ | B6: 11.2665 | C6: 17.3116 | D6: 29.3891 | E6: 41.4337 | F6: 56.4984 | G6: 9.703661918 | H6: 16.92392265 | I6: 31.08504972 | J6: 45.42645692 | K6: 64.23444782
A7: 2017-04-04 | B7: 12.8415 | C7: 18.7198 | D7: 30.6358 | E7: 42.706 | F7: 56.6357 | G7: 13.89261825 | H7: 24.33490908 | I7: 40.59969657 | J7: 57.2439742 | K7: 74.51137923
A8: 2017-05-04 | B8: 11.9795 | C8: 18.3444 | D8: 30.544 | E8: 43.4907 | F8: 59.6738 | G8: 10.11044052 | H8: 17.16678666 | I8: 32.2062193 | J8: 47.99942662 | K8: 67.25844155
A9: 2017-06-04 | B9: 23.3194 | C9: 29.7717 | D9: 39.9772 | E9: 50.4278 | F9: 63.5222 | G9: 10.20247937 | H9: 17.4141845 | I9: 32.74787178 | J9: 48.06053754 | K9: 66.84471382
A10: 2017-07-04 | B10: 14.0266 | C10: 20.4713 | D10: 32.0159 | E10: 44.255 | F10: 59.5597 | G10: 11.24202004 | H10: 18.52836394 | I10: 33.27231044 | J10: 48.09159319 | K10: 66.4718955
A11: Members
A12: 2016-17 | B12: 19.38 | C12: 29.36 | D12: 49.27 | E12: 66.13 | F12: 80.4 | G12: 18.49895624 | H12: 28.89772652 | I12: 50.72231927 | J12: 67.89510659 | K12: 81.70442569
A13: 2017-18$ | B13: 21.51 | C13: 33.39 | D13: 55.45 | E13: 70.4 | F13: 82.85 | G13: 18.91617267 | H13: 30.30231471 | I13: 51.18581957 | J13: 68.0091459 | K13: 81.5081617
A14: 2017-04-04 | B14: 20.44 | C14: 31.98 | D14: 53.6 | E14: 69.22 | F14: 81.63 | G14: 18.09342361 | H14: 29.43433098 | I14: 51.40370474 | J14: 69.18009205 | K14: 82.78272068
A15: 2017-05-04 | B15: 22.77 | C15: 35.02 | D15: 54.74 | E15: 70.41 | F15: 83.03 | G15: 19.27607242 | H15: 30.5402729 | I15: 52.24749154 | J15: 69.12200019 | K15: 82.17860094
A16: 2017-06-04 | B16: 32.63 | C16: 43.36 | D16: 63.64 | E16: 76.61 | F16: 86.61 | G16: 19.23960226 | H16: 31.74543066 | I16: 52.80988384 | J16: 69.27223737 | K16: 82.03347318
A17: 2017-07-04 | B17: 20.6 | C17: 32.57 | D17: 53.4 | E17: 69.04 | F17: 81.79 | G17: 18.82694875 | H17: 30.13218043 | I17: 50.04287393 | J17: 67.32684066 | K17: 81.10462567
A18: Notes: 1. Data for Top N scrips has been compiled for all markets except Auction market & Retail Debt Market and includes series EQ, BE,BT, BL and IL.
A19: $ indicates as on July 31, 2017
A20: Source: BSE and NSE

Sheet 28
A1: Table 28: Settlement Statistics for Cash Segment of BSE
A2: Year/ Month | B2: No. of Trades(Lakh) | C2: Quantity Settled (Lakh) | D2: Delivered Quantity (Lakh) | E2: Percent of Delivered Quantity to Traded Quantity | F2: Value Settled (` crore) | G2: Delivered Value (` crore) | H2: Percent of Delivered Value to Total Turnover | I2: Delivered Quantity in Demat Mode (Lakh) | J2: Percent of Demat Delivered Quantity to Total Delivered Quantity | K2: Delivered Value in Demat Mode (` crore) | L2: Percent of Demat Delivered Value to Total Delivered Value | M2: Short Delivery (Auctioned quantity) (Lakh) | N2: Percent of Short Delivery to Delivery Quantity | O2: Funds Pay-in (` crore) | P2: Securities Pay-in (` crore) | Q2: SettlementGuarantee Fund (`crore)
A3: 2016-17 | B3: 3918.50883 | C3: 707223 | D3: 303781.6063 | E3: 41.94223772 | F3: 998260.58 | G3: 464996.2974 | H3: 37.43805885 | I3: 303449.1679 | J3: 99.94442953 | K3: 464969.7468 | L3: 99.99 | M3: 714.67051 | N3: 0.2445689484 | O3: 117489.538 | P3: 298363.24 | Q3: 148.66
A4: 2017-18$ | B4: =SUM(B5:B8) -> 1184.21257 | C4: =SUM(C5:C8) -> 247048 | D4: 97966.11249 | E4: =AVERAGE(E5:E8) -> 39.78380833 | F4: =SUM(F5:F8) -> 340505.78 | G4: =SUM(G5:G8) -> 125799.402 | H4: =AVERAGE(H5:H8) -> 36.94700113 | I4: =SUM(I5:I8) -> 97965.95183 | J4: =AVERAGE(J5:J8) -> 99.9925 | K4: =SUM(K5:K8) -> 125799.2681 | L4: =AVERAGE(L5:L8) -> 99.9925 | M4: =SUM(M5:M8) -> 183.18801 | N4: =AVERAGE(N5:N8) -> 0.1861423731 | O4: =SUM(O5:O8) -> 48380.04835 | P4: =SUM(P5:P8) -> 97966.11249 | Q4: 182.86
A5: 2017-04-04 | B5: 287.35 | C5: 57778 | D5: 23452.3835 | E5: 40.59050763 | F5: 75070.4 | G5: 26771.10015 | H5: 35.6613261 | I5: 23452.25747 | J5: 99.99 | K5: 26770.97559 | L5: 99.99 | M5: 41.57 | N5: 0.1772537252 | O5: 10589.51401 | P5: 23452.3835 | Q5: 149.62
A6: 2017-05-04 | B6: 314.87893 | C6: 63339 | D6: 25591.07049 | E6: 40.40333837 | F6: 91105.62 | G6: 32596.85559 | H6: 35.77919298 | I6: 25591.07049 | J6: 99.99 | K6: 32596.85559 | L6: 99.99 | M6: 47.61238 | N6: 0.1860507556 | O6: 13409.23446 | P6: 25591.07049 | Q6: 180.7
A7: 2017-06-04 | B7: 260.68967 | C7: 54577 | D7: 22232.7089 | E7: 40.73640709 | F7: 85934.52 | G7: 36881.54949 | H7: 42.91820039 | I7: 22232.7089 | J7: 100 | K7: 36881.54949 | L7: 100 | M7: 38.67563 | N7: 0.173958244 | O7: 13886.1303 | P7: 22232.7089 | Q7: 181.73
A8: 2017-07-04 | B8: 321.29397 | C8: 71354 | D8: 26689.9496 | E8: 37.40498024 | F8: 88395.24 | G8: 29549.89676 | H8: 33.42928506 | I8: 26689.91497 | J8: 99.99 | K8: 29549.88739 | L8: 99.99 | M8: 55.33 | N8: 0.2073067676 | O8: 10495.16958 | P8: 26689.9496 | Q8: 182.86
A9: $ indicates as on July 31, 2017
A10: Source: BSE.

Sheet 29
A1: Table 29: Settlement Statistics for Cash Segment of NSE
A2: Year/ Month | B2: No. of Trades (Lakh) | C2: Quantity Settled (Lakh) | D2: Delivered Quantity (Lakh) | E2: Percent of Delivered Quantity to Traded Quantity | F2: Value Settled (` crore) | G2: Delivered Value (` crore) | H2: Percent of Delivered Value to Total Turnover | I2: Delivered Quantity in Demat Mode (Lakh) | J2: Percent of Demat Delivered Quantity to Total Delivered Quantity | K2: Delivered Value in Demat Mode (` crore) | L2: Percent of Demat Delivered Value to Total Delivered Value | M2: Short Delivery (Auctioned quantity) (Lakh) | N2: Percent of Short Delivery to Delivery Quantity | O2: Funds Pay-in (` crore) | P2: Securities Pay-in (` crore) | Q2: Settlement Guarantee Fund (` crore)
A3: 2016-17 | B3: 19728.3405 | C3: 2584979.494 | D3: 725682.1391 | E3: 28.09964605 | F3: 4998105.692 | G3: 1479963.126 | H3: 29.56786991 | I3: 724494.5039 | J3: 100 | K3: 1478866.697 | L3: 100 | M3: 1187.636965 | N3: 0.1741982789 | O3: 409421.97 | P3: 1479963.126 | Q3: 197.17
A4: 2017-18$ | B4: 7406.86618 | C4: 1107696.925 | D4: 302699.5056 | E4: =AVERAGE(E5:E8) -> 27.35592786 | F4: 2088754.348 | G4: 611167.2142 | H4: =AVERAGE(H5:H8) -> 29.30387877 | I4: 302218.8246 | J4: =AVERAGE(J5:J8) -> 100 | K4: 610710.2307 | L4: =AVERAGE(L5:L8) -> 100 | M4: 480.681 | N4: =AVERAGE(N5:N8) -> 0.1563913776 | O4: 148336.04 | P4: 611167.2142 | Q4: 204.54
A5: 2017-04-14 | B5: 1678.94715 | C5: 249467.1359 | D5: 72463.98224 | E5: 29.04750639 | F5: 474912.1023 | G5: 143865.507 | H5: 30.29308083 | I5: 72373.59786 | J5: 100 | K5: 143748.4913 | L5: 100 | M5: 90.38438 | N5: 0.124885846 | O5: 31734.77 | P5: 143865.507 | Q5: 197.84
A6: 2017-05-17 | B6: 2051.2987 | C6: 289353.4848 | D6: 78718.36561 | E6: 27.20491362 | F6: 581636.726 | G6: 166371.4452 | H6: 28.60401308 | I6: 78619.32414 | J6: 100 | K6: 166252.2027 | L6: 100 | M6: 99.04147 | N6: 0.1259759876 | O6: 39228.17 | P6: 166371.4452 | Q6: 202.73
A7: 2017-06-19 | B7: 1847.10666 | C7: 252857.1932 | D7: 66111.92089 | E7: 26.14595221 | F7: 495032.0786 | G7: 144966.7346 | H7: 29.28431123 | I7: 66014.00775 | J7: 100 | K7: 144866.9799 | L7: 100 | M7: 97.91314 | N7: 0.1483217628 | O7: 37937.43 | P7: 144966.7346 | Q7: 200
A8: 2017-07-22 | B8: 1829.51367 | C8: 316019.1115 | D8: 85405.23688 | E8: 27.02533922 | F8: 537173.4408 | G8: 155963.5274 | H8: 29.03410994 | I8: 85211.89487 | J8: 100 | K8: 155842.5568 | L8: 100 | M8: 193.34201 | N8: 0.2263819141 | O8: 39435.67 | P8: 155963.5274 | Q8: 204.54
A9: $ indicates as on July 31, 2017
A10: Source: NSE.

Sheet 30
A1: Table 30: Trends in Equity Derivatives Segment at BSE (Turnover in Notional Value)
A2: Year/ Month | B2: No. of Trading Days | C2: Index Futures | E2: Stock Futures | G2: Index Options | K2: Stock Options | O2: Total | Q2: Open Interest at the end of month
G3: Call | I3: Put | K3: Call | M3: Put
C4: No. of Contracts | D4: Turnover (` crore) | E4: No. of Contracts | F4: Turnover (` crore) | G4: No. of Contracts | H4: Turnover (` crore) | I4: No. of Contracts | J4: Turnover (` crore) | K4: No. of Contracts | L4: Turnover (` crore) | M4: No. of Contracts | N4: Turnover (` crore) | O4: No. of Contracts | P4: Turnover (` crore) | Q4: No. of Contracts | R4: Value (` crore)
A5: 2016-17 | B5: 248 | C5: 32288 | D5: 2266.958876 | E5: 2901 | F5: 203.0703815 | G5: 24433 | H5: 1254.894012 | I5: 63916 | J5: 3214.450981 | K5: 0 | L5: 0 | M5: 0 | N5: 0 | O5: 123538 | P5: 6939.37425 | Q5: 107 | R5: 7.71
A6: 2017-18$ | B6: 82 | C6: 43841 | D6: 3196.091481 | E6: 222 | F6: 17.51635275 | G6: 82 | H6: 5.920746 | I6: 32 | J6: 2.284462875 | K6: 1 | L6: 0.063855 | M6: 0 | N6: 0 | O6: 44178 | P6: 3221.876897 | Q6: 117 | R6: 9.18
A7: 2017-04-04 | B7: 18 | C7: 18597 | D7: 1330.182557 | E7: 51 | F7: 4.34145825 | G7: 82 | H7: 5.920746 | I7: 32 | J7: 2.284462875 | K7: 0 | L7: 0 | M7: 0 | N7: 0 | O7: 18762 | P7: 1342.729224 | Q7: 91 | R7: 6.52
A8: 2017-05-04 | B8: 22 | C8: 14812 | D8: 1080.579984 | E8: 69 | F8: 5.400565 | G8: 0 | H8: 0 | I8: 0 | J8: 0 | K8: 0 | L8: 0 | M8: 0 | N8: 0 | O8: 14881 | P8: 1085.980549 | Q8: 281 | R8: 21.06
A9: 2017-06-04 | B9: 21 | C9: 6267 | D9: 468.0082673 | E9: 43 | F9: 3.4235345 | G9: 0 | H9: 0 | I9: 0 | J9: 0 | K9: 0 | L9: 0 | M9: 0 | N9: 0 | O9: 6310 | P9: 471.4318018 | Q9: 66 | R9: 5
A10: 2017-07-04 | B10: 21 | C10: 4165 | D10: 317.3206725 | E10: 59 | F10: 4.350795 | G10: 0 | H10: 0 | I10: 0 | J10: 0 | K10: 1 | L10: 0.063855 | M10: 0 | N10: 0 | O10: 4225 | P10: 321.7353225 | Q10: 117 | R10: 9.18
A11: Note: 1. Notional Turnover = (Strike Price + Premium) * Quantity.
A12: $ indicates as on July 31, 2017
A13: Source: BSE.
Q16: `

Sheet 31
A1: Table 31: Trends in Equity Derivatives Segment at NSE (Turnover in Notional Value)
A2: Year/ Month | B2: No. of Trading Days | C2: Index Futures | E2: Stock Futures | G2: Index Options | K2: Stock Options | O2: Total | Q2: Open Interest at the end of month
G3: Call | I3: Put | K3: Call | M3: Put
C4: No. of Contracts | D4: Turnover (` crore) | E4: No. of Contracts | F4: Turnover (` crore) | G4: No. of Contracts | H4: Turnover (` crore) | I4: No. of Contracts | J4: Turnover (` crore) | K4: No. of Contracts | L4: Turnover (` crore) | M4: No. of Contracts | N4: Turnover (` crore) | O4: No. of Contracts | P4: Turnover (` crore) | Q4: No. of Contracts | R4: Value (` crore)
A5: 2016-17 | B5: 248 | C5: 66535071 | D5: 4335940.867 | E5: 173860130 | F5: 11129587.19 | G5: 548735127 | H5: 38097964.38 | I5: 518509789 | J5: 34699323.31 | K5: 61205774 | L5: 4147487.925 | M5: 30900238 | N5: 1959997.94 | O5: 1399746129 | P5: 94370301.62 | Q5: 3542404 | R5: 249497.4754
A6: 2017-18$ | B6: 82 | C6: 17267075 | D6: 1359403.983 | E6: 67740981 | F6: 4907555.077 | G6: 212397177 | H6: 18031360.35 | I6: 215155071 | J6: 17700534.81 | K6: 26445708 | L6: 2042787.197 | M6: 12682989 | N6: 924150.8132 | O6: 551689001 | P6: 44965792.24 | Q6: 3997987 | R6: 303766.9552
A7: 2017-04-14 | B7: 18 | C7: 4174077 | D7: 314579.8914 | E7: 15323013 | F7: 1160682.481 | G7: 46181751 | H7: 3729736.053 | I7: 45548822 | J7: 3554410.943 | K7: 6024771 | L7: 487146.9431 | M7: 2823557 | N7: 213125.2427 | O7: 120075991 | P7: 9459681.554 | Q7: 3718137 | R7: 263898.8491
A8: 2017-05-17 | B8: 22 | C8: 4816269 | D8: 375948.8303 | E8: 19724492 | F8: 1402147.883 | G8: 55223511 | H8: 4617328.236 | I8: 57343652 | J8: 4630977.84 | K8: 7598657 | L8: 580166.6691 | M8: 3814715 | N8: 274832.9243 | O8: 148521296 | P8: 11881402.38 | Q8: 4312372 | R8: 312587.6945
A9: 2017-06-17 | B9: 21 | C9: 4052219 | D9: 322143.5969 | E9: 15718759 | F9: 1110361.737 | G9: 56299371 | H9: 4863586.137 | I9: 53752489 | J9: 4520106.946 | K9: 5627829 | L9: 425458.79 | M9: 2655447 | N9: 190610.0891 | O9: 138106114 | P9: 11432267.3 | Q9: 3687855 | R9: 263318.857
A10: 2017-07-17 | B10: 21 | C10: 4224510 | D10: 346731.6644 | E10: 16974717 | F10: 1234362.977 | G10: 54692544 | H10: 4820709.928 | I10: 58510108 | J10: 4995039.078 | K10: 7194451 | L10: 550014.7945 | M10: 3389270 | N10: 245582.5572 | O10: 144985600 | P10: 12192441 | Q10: 3997987 | R10: 303766.9552
A12: Note: 1. Notional Turnover = (Strike Price + Premium) * Quantity.
A13: $ indicates as on July 31, 2017
A14: Source: NSE.

Sheet 32
A1: Table 32: Settlement Statistics in Equity Derivatives Segment at BSE and NSE (` crore)
A2: Year/ Month | B2: BSE | H2: NSE
B3: Index/Stock Futures | D3: Index/Stock Options | F3: Total | G3: Settlement Gurantee Fund | H3: Index/Stock Futures | J3: Index/Stock Options | L3: Total | M3: Settlement Gurantee Fund
B4: MTM Settlement | C4: Final Settlement | D4: Premium Settlement | E4: Exercise Settlement | H4: MTM Settlement | I4: Final Settlement | J4: Premium Settlement | K4: Exercise Settlement
A5: 2016-17 | B5: 15.1 | C5: 1.11 | D5: 33.38 | E5: 0.01 | F5: 49.6 | G5: 192.09 | H5: 70441.81 | I5: 2049.23 | J5: 15021.65 | K5: 2579.88 | L5: 90092.57 | M5: 1051.99
A6: 2017-18$ | B6: 8.52 | C6: 0.27 | D6: 0.05 | E6: 0 | F6: 8.84 | G6: 17.06 | H6: 27398.38 | I6: 781.59 | J6: 5496.98 | K6: 988.2 | L6: 34665.15 | M6: 1196.51
A7: 2017-04-04 | B7: 2.08 | C7: 0.04 | D7: 0.05 | E7: 0.01 | F7: 2.17 | G7: 16.73 | H7: 5356.92 | I7: 79.83 | J7: 1278.31 | K7: 244.02 | L7: 6959.08 | M7: 1100.35
A8: 2017-05-04 | B8: 2.41 | C8: 0.07 | D8: 0.05 | E8: 0 | F8: 2.48 | G8: 16.84 | H8: 10259.5 | I8: 394.85 | J8: 1239.48 | K8: 192.7 | L8: 12086.53 | M8: 1132.63
A9: 2017-06-04 | B9: 2.71 | C9: 0.12 | D9: 0.05 | E9: 0 | F9: 2.83 | G9: 16.95 | H9: 5229.8 | I9: 144.04 | J9: 1329.6 | K9: 407.73 | L9: 7111.17 | M9: 1146.38
A10: 2017-07-04 | B10: 1.32 | C10: 0.04 | D10: 0.05 | E10: 0 | F10: 1.36 | G10: 17.06 | H10: 6552.16 | I10: 162.87 | J10: 1649.59 | K10: 143.75 | L10: 8508.37 | M10: 1196.51
A11: $ indicates as on July 31, 2017
A12: Source: BSE and NSE

Sheet 33
A1: Table 33: Category-wise Share of Turnover & Open Interest in Equity Derivative Segment of BSE
A2: Month | B2: Percentage Share in Turnover | G2: Percentage Share in Open Interest
B3: Pro | C3: FII | D3: Mutual Funds | E3: Banks | F3: Others | G3: Pro | H3: FII | I3: Mutual Funds | J3: Banks | K3: Others
A4: 2016-17 | B4: 72.46182578 | C4: 0 | D4: 0 | E4: 0 | F4: 27.53817422 | G4: 65.88785047 | H4: 0 | I4: 0 | J4: 0 | K4: 34.11214953
A5: 2017-18$ | B5: 91.34535282 | C5: 1.563265786 | D5: 0 | E5: 0 | F5: 7.091381392 | G5: 25.0931 | H5: 0 | I5: 0 | J5: 0 | K5: 74.9069
A6: 2017-04-04 | B6: 94.93904741 | C6: 0.1764741418 | D6: 0 | E6: 0 | F6: 4.884478443 | G6: 91.03 | H6: 0 | I6: 0 | J6: 0 | K6: 8.97
A7: 2017-05-04 | B7: 95.74258497 | C7: 0 | D7: 0 | E7: 0 | F7: 4.257415031 | G7: 94.3308 | H7: 0 | I7: 0 | J7: 0 | K7: 5.6692
A8: 2017-06-04 | B8: 81.41976395 | C8: 8.156319969 | D8: 0 | E8: 0 | F8: 10.42391608 | G8: 45.55 | H8: 0 | I8: 0 | J8: 0 | K8: 54.45
A9: 2017-07-04 | B9: 76.04883813 | C9: 2.966862031 | D9: 0 | E9: 0 | F9: 20.98429984 | G9: 25.0931 | H9: 0 | I9: 0 | J9: 0 | K9: 74.9069
A10: $ indicates as on July 31, 2017
A11: Source: BSE.

Sheet 34
A1: Table 34: Category-wise Share of Turnover & Open Interest in Equity Derivative Segment of NSE
A2: Month | B2: Percentage Share in Turnover | G2: Percentage Share in Open Interest
B3: Pro | C3: FII | D3: Mutual Funds | E3: Banks | F3: Others | G3: Pro | H3: FII | I3: Mutual Funds | J3: Banks | K3: Others
A4: 2016-17 | B4: 42.06696664 | C4: 13.74733923 | D4: 0.403701418 | E4: 0 | F4: 43.78368626 | G4: 13.24015082 | H4: 31.23721383 | I4: 8.679193192 | J4: 0 | K4: 46.84344215
A5: 2017-18$ | B5: 41.99898572 | C5: 11.01313532 | D5: 0.4284690643 | E5: 0 | F5: 46.5594099 | G5: 15.06029536 | H5: 24.23540253 | I5: 10.22632395 | J5: 0 | K5: 50.47797816
A6: 2017-04-01 | B6: 41.72366767 | C6: 10.82097879 | D6: 0.4775833522 | E6: 0 | F6: 46.97777019 | G6: 14.31780602 | H6: 26.2394786 | I6: 9.237141944 | J6: 0 | K6: 50.20557344
A7: 2017-05-17 | B7: 41.39281172 | C7: 11.83577908 | D7: 0.3950157508 | E7: 0 | F7: 46.37639345 | G7: 15.44207172 | H7: 26.19249061 | I7: 8.714404592 | J7: 0 | K7: 49.65038379
A8: 2017-06-17 | B8: 41.71159579 | C8: 10.70141934 | D8: 0.4097506388 | E8: 0 | F8: 47.18 | G8: 13.70737562 | H8: 27.42326567 | I8: 9.720354982 | J8: 0 | K8: 49.14832583
A9: 2017-07-17 | B9: 42.96347283 | C9: 10.71205341 | D9: 0.417081626 | E9: 0 | F9: 45.90739213 | G9: 15.06029536 | H9: 24.23540253 | I9: 10.22632395 | J9: 0 | K9: 50.47797816
A10: $ indicates as on July 31, 2017
A11: Source: NSE.

Sheet 35
A1: Table 35: Instrument-wise Turnover in Index Derivatives at BSE
A2: Month | B2: Turnover (in Percentage)
B3: BSE 30 SENSEX | C3: BSE BANKEX | D3: BSE OIL & GAS INDEX | E3: BSE TECK INDEX | F3: BSE100 | G3: HANG SENG Index Futures | H3: MICEX Index Futures | I3: FTSE/JSE Top 40 Futures | J3: IBOVESPA Futures
A4: 2016-17 | B4: 3.319691208 | C4: 0 | D4: 0 | E4: 0 | F4: 5.866236227e-05 | G4: 0.005635137716 | H4: 0 | I4: 0 | J4: 0
A5: 2017-18$ | B5: 0 | C5: 0 | D5: 0 | E5: 0 | F5: 0 | G5: 5.866236227e-05 | H5: 0 | I5: 0 | J5: 0
A6: 2017-04-04 | B6: 0 | C6: 0 | D6: 0 | E6: 0 | F6: 0 | G6: 5.866236227e-05 | H6: 0 | I6: 0 | J6: 0
A7: 2017-05-05 | B7: 0 | C7: 0 | D7: 0 | E7: 0 | F7: 0 | G7: 5.866236227e-05 | H7: 0 | I7: 0 | J7: 0
A8: 2017-06-05 | B8: 0 | C8: 0 | D8: 0 | E8: 0 | F8: 0 | G8: 5.866236227e-05 | H8: 0 | I8: 0 | J8: 0
A9: 2017-07-05 | B9: 0 | C9: 0 | D9: 0 | E9: 0 | F9: 0 | G9: 5.866236227e-05 | H9: 0 | I9: 0 | J9: 0
A10: $ indicates as on July 31, 2017
A11: Source: BSE.

Sheet 36
A1: Table 36: Instrument-wise Turnover in Index Derivatives at NSE
A2: Month | B2: Turnover (in Percentage)
B3: NIFTY | C3: CNXIT | D3: BANKNIFTY | E3: NFTYMCAP50 | F3: CNXPSE | G3: CNXINFRA | H3: FTSE100 | I3: S&P500 | J3: DJIA | K3: India VIX
A4: 2016-17 | B4: 54.46601422 | C4: 0.005027588363 | D4: 45.51838663 | E4: 1.524862918e-06 | F4: 6.978600663e-07 | G4: 1.419005169e-06 | H4: 2.810257707e-06 | I4: 0.005700738139 | J4: 0.004112411067 | K4: 1.915707791e-05
A5: 2017-18$ | B5: 36.70445393 | C5: 0.003877780414 | D5: 63.28493213 | E5: 1.382733257e-05 | F5: 0 | G5: 0 | H5: 0 | I5: 0.005029293391 | J5: 0.001675013518 | K5: 0
A6: 2017-04-16 | B6: 38.23717445 | C6: 0.0050561464 | D6: 61.74978571 | E6: 0 | F6: 0 | G6: 0 | H6: 0 | I6: 0.004160317721 | J6: 0.002946741814 | K6: 0
A7: 2017-05-17 | B7: 38.76215482 | C7: 0.004378848587 | D7: 61.22659859 | E7: 0 | F7: 9.527594696e-06 | G7: 0 | H7: 0 | I7: 0.004451428427 | J7: 0.002264514055 | K7: 0
A8: 2017-06-17 | B8: 34.45 | C8: 0.004989477682 | D8: 65.54 | E8: 0 | F8: 0 | G8: 1.235480814e-05 | H8: 0 | I8: 0.004633731767 | J8: 0.001680302743 | K8: 0
A9: 2017-07-17 | B9: 36.70445393 | C9: 0.003877780414 | D9: 63.28493213 | E9: 1.382733257e-05 | F9: 0 | G9: 0 | H9: 0 | I9: 0.005029293391 | J9: 0.001675013518 | K9: 0
A10: $ indicates as on July 31, 2017
A11: Source: NSE.

Sheet 37
A1: Table 37: Trends in Currency Derivatives Segment at NSE
A2: Year/ Month | C2: Currency Futures | E2: Currency Options | I2: Total
B3: No. of Trading Days | C3: No. of Contracts | D3: Turnover (` crore) | E3: Call | G3: Put | I3: No. of Contracts | J3: Turnover (` crore) | K3: Open Interest at the end of
D4: Turnover (` crore) | E4: No. of Contracts | F4: Turnover (` crore) | G4: No. of Contracts | H4: Turnover (` crore) | K4: No. of Contracts | L4: Value (` crore)
A5: 2016-17 | B5: 242 | C5: 362615931 | D5: 2489778.936 | E5: 205484781 | F5: 1396641.054 | G5: 144350727 | H5: 970655.8649 | I5: 712451439 | J5: 4857075.855 | K5: 4734914 | L5: 30871.42925
A6: 2017-18$ | B6: 81 | C6: 104162275 | D6: 688667.609 | E6: 66283730 | F6: 432765.417 | G6: 48962871 | H6: 316903.6054 | I6: 219408876 | J6: 1438336.631 | K6: 4636459 | L6: 30103.98601
A7: 2017-04-14 | B7: 18 | C7: 27621713 | D7: 181185.6294 | E7: 18853378 | F7: 123279.4286 | G7: 14430861 | H7: 93539.26978 | I7: 60905952 | J7: 398004.3278 | K7: 4675628 | L7: 30260.30696
A8: 2017-05-17 | B8: 21 | C8: 27752227 | D8: 182960.4647 | E8: 17856365 | F8: 116543.0349 | G8: 14483328 | H8: 93619.01167 | I8: 60091920 | J8: 393122.5113 | K8: 4430643 | L8: 28809.46189
A9: 2017-06-17 | B9: 21 | C9: 24883610 | D9: 165606.9226 | E9: 14766432 | F9: 96352.87181 | G9: 9704177 | H9: 62771.73816 | I9: 49354219 | J9: 324731.5325 | K9: 3881086 | L9: 25366.88169
A10: 2017-07-17 | B10: 21 | C10: 23904725 | D10: 158914.5923 | E10: 14807555 | F10: 96590.0817 | G10: 10344505 | H10: 66973.58584 | I10: 49056785 | J10: 322478.2598 | K10: 4636459 | L10: 30103.98601
A11: Notes: 1. Trading Value :- For Futures, Value of contract = Traded Qty*Traded Price. 2. For Options, Value of contract = Traded Qty*(Strike Price+Traded Premium)
A12: $ indicates as on July 31, 2017
A13: Source: NSE.

Sheet 38
A1: Table 38: Trends in Currency Derivatives Segment at MSEI
A2: Year/ Month | B2: No. of Trading Days | C2: Currency Futures | E2: Currency Options | I2: Total | K2: Open Interest at the end of
E3: Call | G3: Put
C4: No. of Contracts | D4: Turnover (` crore) | E4: No. of Contracts | F4: Turnover (` crore) | G4: No. of Contracts | H4: Turnover (` crore) | I4: No. of Contracts | J4: Turnover (` crore) | K4: No. of Contracts | L4: Value (` crore)
A5: 2016-17 | B5: 242 | C5: 42223837 | D5: 285472.8428 | E5: 954966 | F5: 6432.813287 | G5: 877609 | H5: 6022.018027 | I5: 44056412 | J5: 297927.6741 | K5: 232589 | L5: 1518.351434
A6: 2017-18$ | B6: 81 | C6: 7267365 | D6: 47059.36087 | E6: 297504 | F6: 1945.425803 | G6: 246246 | H6: 1606.423336 | I6: 7811115 | J6: 50611.21001 | K6: 321444 | L6: 2083.119914
A7: 2017-04-01 | B7: 18 | C7: 1471757 | D7: 9535.469075 | E7: 57763 | F7: 377.9840852 | G7: 39504 | H7: 256.3452735 | I7: 1569024 | J7: 10169.79843 | K7: 231735 | L7: 1503.566905
A8: 2017-05-01 | B8: 21 | C8: 1992752 | D8: 12902.94265 | E8: 51486 | F8: 338.2519687 | G8: 51822 | H8: 341.1540608 | I8: 2096060 | J8: 13582.34868 | K8: 292390 | L8: 1906.213555
A9: 2017-06-01 | B9: 21 | C9: 1981564 | D9: 12832.31002 | E9: 123257 | F9: 801.9618605 | G9: 87099 | H9: 568.2704352 | I9: 2191920 | J9: 14202.54231 | K9: 225653 | L9: 1475.587687
A10: 2017-07-01 | B10: 21 | C10: 1821292 | D10: 11788.63914 | E10: 64998 | F10: 427.2278887 | G10: 67821 | H10: 440.6535662 | I10: 1954111 | J10: 12656.52059 | K10: 321444 | L10: 2083.119914
A11: $ indicates as on July 31, 2017
A12: Source: MSEI

Sheet 39
A1: Table 39: Trends in Currency Derivatives Segment at BSE
A2: Year/ Month | B2: No. of Trading Days | C2: Currency Futures | E2: Currency Options | I2: Total | K2: Open Interest at the end of
E3: Call | G3: Put
C4: No. of Contracts | D4: Turnover (` crore) | E4: No. of Contracts | F4: Turnover (` crore) | G4: No. of Contracts | H4: Turnover (` crore) | I4: No. of Contracts | J4: Turnover (` crore) | K4: No. of Contracts | L4: Value (` crore)
A5: 2016-17 | B5: 242 | C5: 268339687 | D5: 1807828.531 | E5: 111541346 | F5: 758231.2708 | G5: 90544169 | H5: 605588.1356 | I5: 470425202 | J5: 3171647.937 | K5: 1598346 | L5: 10381.87
A6: 2017-18$ | B6: 81 | C6: 82790469 | D6: 536448.8302 | E6: 70366311 | F6: 461007.8321 | G6: 69519888 | H6: 445713.3088 | I6: 222676668 | J6: 1443169.971 | K6: 1704163 | L6: 10936.3991
A7: 2017-04-04 | B7: 18 | C7: 20518735 | D7: 132905.016 | E7: 17411265 | F7: 114292.9985 | G7: 14234398 | H7: 91523.0905 | I7: 52164398 | J7: 338721.105 | K7: 1456658 | L7: 9363.42934
A8: 2017-05-04 | B8: 21 | C8: 22099454 | D8: 143176.7204 | E8: 18403355 | F8: 120531.741 | G8: 19125359 | H8: 122579.4723 | I8: 59628168 | J8: 386287.9337 | K8: 1396753 | L8: 9023.05
A9: 2017-06-04 | B9: 21 | C9: 20163249 | D9: 130748.0423 | E9: 18063571 | F9: 118403.2807 | G9: 17900534 | H9: 114706.874 | I9: 56127354 | J9: 363858.197 | K9: 1038281 | L9: 6741.29
A10: 2017-07-04 | B10: 21 | C10: 20009031 | D10: 129619.0515 | E10: 16488120 | F10: 107779.8119 | G10: 18259597 | H10: 116903.872 | I10: 54756748 | J10: 354302.7354 | K10: 1704163 | L10: 10936.3991
A11: $ indicates as on July 31, 2017
A12: Source: BSE

Sheet 40
A1: Table 40: Settlement Statistics of Currency Derivatives Segment (` crore)
A2: Year/ Month | B2: NSE | F2: Total | G2: MSEI | K2: Total | L2: BSE | P2: Total
B3: Currency Futures | D3: Currency Options | F3: Total | G3: Currency Futures | I3: Currency options | K3: Total | L3: Currency Futures | N3: Currency Options | P3: Total
B4: MTM Settlement | C4: Final Settlement | D4: Premium Settlement | E4: Exercise Settlement | G4: MTM Settlement | H4: Final Settlement | I4: Premium Settlement | J4: Exercise Settlement | L4: MTM Settlement | M4: Final Settlement | N4: Premium Settlement | O4: Exercise Settlement
E5: Exercise Settlement | J5: Exercise Settlement | O5: Exercise Settlement
A6: 2016-17 | B6: 5131.697013 | C6: 193.0951762 | D6: 1098.314286 | E6: 451.1365427 | F6: 6874.243017 | G6: 562.1709618 | H6: 19.354808 | I6: 14.6116175 | J6: 9.32955545 | K6: 605.4669427 | L6: 3594.3 | M6: 105.16 | N6: 2896.64 | O6: 223.14 | P6: 6819.24
A7: 2017-18$ | B7: 1086.63341 | C7: 29.53246581 | D7: 363.5112078 | E7: 156.1308662 | F7: 1635.80795 | G7: 126.88764 | H7: 5.334 | I7: 5.74 | J7: 2.7 | K7: 140.66164 | L7: 969.88 | M7: 31.11 | N7: 1559.51 | O7: 73.9 | P7: 2634.4
A8: 2017-04-14 | B8: 330.323578 | C8: 16.76868003 | D8: 122.5572205 | E8: 73.55751504 | F8: 543.2069936 | G8: 39.93764 | H8: 2.83 | I8: 1.54 | J8: 0.53 | K8: 44.83764 | L8: 318.99 | M8: 16.06 | N8: 407.52 | O8: 39.05 | P8: 781.62
A9: 2017-05-01 | B9: 417.3638808 | C9: 3.27102645 | D9: 95.928765 | E9: 35.3284269 | F9: 551.8920991 | G9: 49.85 | H9: 0.54 | I9: 1.7 | J9: 0.57 | K9: 52.66 | L9: 353.53 | M9: 4.64 | N9: 494.94 | O9: 10.58 | P9: 863.69
A10: 2017-06-17 | B10: 149.78 | C10: 1.43 | D10: 68.01 | E10: 17.91 | F10: 237.13 | G10: 17.02 | H10: 0.054 | I10: 0.67 | J10: 0.21 | K10: 17.954 | L10: 147.71 | M10: 0.83 | N10: 344.92 | O10: 8.74 | P10: 502.2
A11: 2017-07-17 | B11: 189.1700613 | C11: 8.06473797 | D11: 77.01362825 | E11: 29.33283268 | F11: 303.5812602 | G11: 20.08 | H11: 1.91 | I11: 1.83 | J11: 1.39 | K11: 25.21 | L11: 149.65 | M11: 9.58 | N11: 312.13 | O11: 15.53 | P11: 486.89
A12: $ indicates as on July 31, 2017
A13: Source: Respective stock exchanges

Sheet 41
A1: Table 41: Instrument-wise Turnover in Currency Derivatives of NSE
A2: Month | B2: Turnover (in ₹ crore) | F2: Open Interest as on last day of the month (in lots)
B3: USDINR | C3: EURINR | D3: GBPINR | E3: JPYINR | F3: USDINR | G3: EURINR | H3: GBPINR | I3: JPYINR
A4: 2016-17 | B4: 4507897.788 | C4: 99183.96814 | D4: 183698.5956 | E4: 66295.5029 | F4: 4606551 | G4: 67631 | H4: 43717 | I4: 17015
A5: 2017-18$ | B5: 1326671.371 | C5: 40635.31029 | D5: 56449.561 | E5: 14580.38869 | F5: 4399055 | G5: 150348 | H5: 65561 | I5: 21495
A6: 2017-04-16 | B6: 375224.3865 | C6: 8047.30245 | D6: 11271.90484 | E6: 3460.733965 | F6: 4514665 | G6: 94594 | H6: 48928 | I6: 17441
A7: 2017-05-17 | B7: 366872.0968 | C7: 10063.13914 | D7: 12755.49623 | E7: 3431.779132 | F7: 4285462 | G7: 82866 | H7: 47918 | I7: 14397
A8: 2017-06-17 | B8: 292101.9527 | C8: 10516.07332 | D8: 18247.69552 | E8: 3865.810946 | F8: 3684399 | G8: 117120 | H8: 56481 | I8: 23086
A9: 2017-07-17 | B9: 292472.9354 | C9: 12008.79538 | D9: 14174.46442 | E9: 3822.064648 | F9: 4399055 | G9: 150348 | H9: 65561 | I9: 21495
A10: $ indicates as on July 31, 2017
A11: Source: NSE.

Sheet 42
A1: Table 42: Instrument-wise Turnover in Currency Derivative Segment of MSEI
A2: Month | B2: Turnover (₹ crore) | F2: Open Interest as on last day of the month (in lots)
B3: USDINR | C3: EURINR | D3: GBPINR | E3: JPYINR | F3: USDINR | G3: EURINR | H3: GBPINR | I3: JPYINR
A4: 2016-17 | B4: 289589.3689 | C4: 2173.138413 | D4: 4391.664496 | E4: 1773.490779 | F4: 226074 | G4: 1546 | H4: 3268 | I4: 1701
A5: 2017-18$ | B5: 49874.11804 | C5: 236.433392 | D5: 342.785175 | E5: 157.8734223 | F5: 319547 | G5: 952 | H5: 745 | I5: 200
A6: 2017-04-30 | B6: 9917.624371 | C6: 106.76672 | D6: 118.2574837 | E6: 27.14985875 | F6: 228201 | G6: 138 | H6: 2794 | I6: 602
A7: 2017-05-30 | B7: 13432.29495 | C7: 33.952948 | D7: 90.8457415 | E7: 25.25503425 | F7: 291263 | G7: 128 | H7: 900 | I7: 99
A8: 2017-06-30 | B8: 14084.05389 | C8: 27.767698 | D8: 74.107005 | E8: 16.613743 | F8: 223861 | G8: 607 | H8: 970 | I8: 215
A9: 2017-07-30 | B9: 12440.14484 | C9: 67.946026 | D9: 59.57494475 | E9: 88.85478625 | F9: 319547 | G9: 952 | H9: 745 | I9: 200
A10: $ indicates as on July 31, 2017
A11: Source: MSEI

Sheet 43
A1: Table 43: Instrument-wise Turnover in Currency Derivative Segment of BSE
A2: Month | B2: Turnover (₹ crore) | F2: Open Interest as on last day of the month (in lots)
B3: USDINR | C3: EURINR | D3: GBPINR | E3: JPYINR | F3: USDINR | G3: EURINR | H3: GBPINR | I3: JPYINR
A4: 2016-17 | B4: 3148260.167 | C4: 9756.0035 | D4: 9401.1266 | E4: 4230.64 | F4: 1575230 | G4: 11810 | H4: 9156 | I4: 2150
A5: 2017-18$ | B5: 1433730.897 | C5: 3591.3147 | D5: 5012.6838 | E5: 835.0758 | F5: 1690887 | G5: 9274 | H5: 3319 | I5: 683
A6: 2017-04-13 | B6: 336519.9502 | C6: 667.483 | D6: 1295.1177 | E6: 238.5541 | F6: 1445427 | G6: 6993 | H6: 2533 | I6: 1705
A7: 2017-05-14 | B7: 384078.536 | C7: 887.1942 | D7: 1208.2427 | E7: 113.9608 | F7: 1389505 | G7: 4175 | H7: 2603 | I7: 470
A8: 2017-06-14 | B8: 361085.9156 | C8: 1051.2675 | D8: 1608.113 | E8: 112.9009 | F8: 1022494 | G8: 8718 | H8: 6242 | I8: 827
A9: 2017-07-15 | B9: 352046.495 | C9: 985.37 | D9: 901.2104 | E9: 369.66 | F9: 1690887 | G9: 9274 | H9: 3319 | I9: 683
A10: $ indicates as on July 31, 2017
A11: Source: BSE

Sheet 44
A1: Table 44: Maturity-wise Turnover in Currency Derivative Segment of NSE (₹ crore)
A2: Month | B2: Currency Futures | F2: Currency Options
B3: 1 Month | C3: 2 Month | D3: 3 Month | E3: > 3 months | F3: 1 Month | G3: 2 Month | H3: 3 Month | I3: > 3 months
A4: 2016-17 | B4: 1999419.574 | C4: 429520.3277 | D4: 40831.97761 | E4: 20007.0563 | F4: 1954971.527 | G4: 398290.2409 | H4: 13984.87507 | I4: 50.27651475
A5: 2017-18$ | B5: 526201.893 | C5: 139948.1512 | D5: 15577.46196 | E5: 6940.102809 | F5: 603548.3873 | G5: 139784.8473 | H5: 6186.324253 | I5: 149.4635737
A6: 2017-04-16 | B6: 135414.6572 | C6: 39230.80106 | D6: 4754.742654 | E6: 1785.42844 | F6: 178366.6652 | G6: 38198.92067 | H6: 252.0210635 | I6: 1.0914945
A7: 2017-05-16 | B7: 138347.5135 | C7: 39046.82891 | D7: 3944.549592 | E7: 1621.572703 | F7: 167617.7782 | G7: 41422.29719 | H7: 1118.785546 | I7: 3.18563975
A8: 2017-06-17 | B8: 129961.273 | C8: 30622.6937 | D8: 3417.809811 | E8: 1605.146001 | F8: 128496.799 | G8: 29700.8642 | H8: 841.303657 | I8: 85.6430795
A9: 2017-07-17 | B9: 122478.4492 | C9: 31047.82754 | D9: 3460.359906 | E9: 1927.955664 | F9: 129067.1449 | G9: 30462.76528 | H9: 3974.213986 | I9: 59.54336
A10: $ indicates as on July 31, 2017
A11: Source: NSE.

Sheet 45
A1: Table 45: Maturity-wise Turnover in Currency Derivative Segment of MSEI (₹ crore)
A2: Month | B2: Currency Futures | F2: Currency Options
B3: 1 Month | C3: 2 Month | D3: 3 Month | E3: > 3 months | F3: 1 Month | G3: 2 Month | H3: 3 Month | I3: > 3 months
A4: 2016-17 | B4: 231099.2648 | C4: 52784.17715 | D4: 1532.06609 | E4: 57.3390735 | F4: 12098.31952 | G4: 344.8527935 | H4: 11.6629 | I4: 0
A5: 2017-18$ | B5: 35012.8709 | C5: 10741.16219 | D5: 1295.556998 | E5: 9.7707715 | F5: 2062.004537 | G5: 979.8796045 | H5: 509.965 | I5: 0
A6: 2016-04-30 | B6: 7054.838806 | C6: 2209.634204 | D6: 270.9895095 | E6: 0.00654 | F6: 527.173674 | G6: 60.101684 | H6: 47.054 | I6: 0
A7: 2017-05-30 | B7: 9551.712533 | C7: 3207.015243 | D7: 144.017863 | E7: 0.19699 | F7: 118.745901 | G7: 124.437127 | H7: 436.223 | I7: 0
A8: 2017-06-30 | B8: 9278.532281 | C8: 2775.282799 | D8: 769.2546935 | E8: 9.2402415 | F8: 1152.326589 | G8: 191.2177065 | H8: 26.688 | I8: 0
A9: 2017-07-30 | B9: 9127.787278 | C9: 2549.229945 | D9: 111.294932 | E9: 0.327 | F9: 263.758373 | G9: 604.123087 | H9: 0 | I9: 0
A10: $ indicates as on July 31, 2017
A11: Source: MSEI

Sheet 46
A1: Table 46: Maturity-wise Turnover in Currency Derivative Segment of BSE (₹ crore)
A2: Month | B2: Currency Futures | F2: Currency Options
B3: 1 Month | C3: 2 Month | D3: 3 Month | E3: > 3 months | F3: 1 Month | G3: 2 Month | H3: 3 Month | I3: > 3 months
A4: 2016-17 | B4: 1570858.134 | C4: 222641.9087 | D4: 13202.43388 | E4: 1118.434679 | F4: 1221761.19 | G4: 137286.8355 | H4: 4461.485166 | I4: 309.19625
A5: 2017-18$ | B5: 521851.94 | C5: 80984.22 | D5: 5727.57 | E5: 795.24 | F5: 727608.8 | G5: 103384.26 | H5: 2234.13 | I5: 581.1
A6: 2017-04-04 | B6: 180181.69 | C6: 25587.92 | D6: 42.36 | E6: 4.87 | F6: 110665.27 | G6: 19729.88 | H6: 1995.48 | I6: 513.61
A7: 2017-05-04 | B7: 122794.78 | C7: 18298.56 | D7: 1764.56 | E7: 317.94 | F7: 199364.44 | G7: 43611.35 | H7: 123.8 | I7: 11.3
A8: 2017-06-04 | B8: 111195.43 | C8: 17370.46 | D8: 1913.48 | E8: 267.76 | F8: 211236.96 | G8: 21828.69 | H8: 30.88 | I8: 13.3
A9: 2017-07-04 | B9: 107680.04 | C9: 19727.28 | D9: 2007.17 | E9: 204.67 | F9: 206342.13 | G9: 18214.34 | H9: 83.97 | I9: 42.89
A10: $ indicates as on July 31, 2017
A11: Source: BSE

Sheet 47
A1: Table 47: Trading Statistics of Interest Rate Futures at BSE, NSE and MSEI
A2: Year/ Month | B2: No. of Trading Days | C2: BSE | G2: NSE | K2: MSEI
C3: Interest RateFutures | E3: Open Interest at the end of | G3: Interest RateFutures | I3: Open Interest at the end of | K3: Interest RateFutures | M3: Open Interest at the end of
C5: No. of Contracts | D5: Traded Value (₹ crore) | E5: No. of Contracts | F5: Value (₹ crore) | G5: No. of Contracts | H5: Traded Value (₹ crore) | I5: No. of Contracts | J5: Value (₹ crore) | K5: No. of Contracts | L5: Traded Value (₹ crore) | M5: No. of Contracts | N5: Value (₹ crore)
A7: 2016-17 | B7: 242 | C7: 6185341 | D7: 127979.4124 | E7: 18044 | F7: 377.6807 | G7: 14807039 | H7: 307809.3201 | I7: 120422 | J7: 2482.449753 | K7: 125175.4976 | L7: 2551.852131 | M7: 0 | N7: 0
A8: 2017-18$ | B8: 81 | C8: 3100072 | D8: 63923.5149 | E8: 6406 | F8: 132.0295 | G8: 5071809 | H8: 104322.0702 | I8: 88671 | J8: 1824.448533 | K8: 10376 | L8: 213.195081 | M8: 0 | N8: 0
A9: 2017-04-04 | B9: 18 | C9: 534693 | D9: 11046.7248 | E9: 13550 | F9: 279.0231 | G9: 1596049 | H9: 32824.3629 | I9: 88000 | J9: 1803.513356 | K9: 0 | L9: 0 | M9: 0 | N9: 0
A10: 2017-05-04 | B10: 21 | C10: 595544 | D10: 12230.2824 | E10: 4158 | F10: 84.7266 | G10: 1082509 | H10: 22208.39154 | I10: 91173 | J10: 1871.28679 | K10: 0 | L10: 0 | M10: 0 | N10: 0
A11: 2017-06-04 | B11: 21 | C11: 902593 | D11: 18656.9916 | E11: 5410 | F11: 111.7904 | G11: 1298346 | H11: 26851.83214 | I11: 87169 | J11: 1797.472961 | K11: 0 | L11: 0 | M11: 0 | N11: 0
A12: 2017-07-04 | B12: 21 | C12: 1067242 | D12: 21989.5161 | E12: 6406 | F12: 132.0295 | G12: 1094905 | H12: 22437.48364 | I12: 88671 | J12: 1824.448533 | K12: 10376 | L12: 213.195081 | M12: 0 | N12: 0
A13: $ indicates as on July 31, 2017
A14: Source: BSE, NSE and MSEI

Sheet 48
A1: Table 48: Settlement Statistics in Interest Rate Futures at BSE, NSE and MSEI (₹ crore)
A2: Year/ Month | B2: BSE | D2: NSE | F2: MSEI
B3: MTM Settlement | C3: Physical Delivery Settlement | D3: MTM Settlement | E3: Physical Delivery Settlement | F3: MTM Settlement | G3: Physical Delivery Settlement
A4: 2016-17 | B4: 101.699842 | C4: 8.376342 | D4: 1128.371703 | E4: 41.86266336 | F4: 10.030167 | G4: 0
A5: 2017-18$ | B5: 69.88015 | C5: 2.699896 | D5: 234.5211945 | E5: 6.19723668 | F5: 0.0281 | G5: 0
A6: 2017-04-04 | B6: 24.581016 | C6: 1.24733 | D6: 75.886162 | E6: 1.77860424 | F6: 0 | G6: 0
A7: 2017-05-04 | B7: 22.984909 | C7: 0.930761 | D7: 65.1442585 | E7: 2.0008222 | F7: 0 | G7: 0
A8: 2017-06-04 | B8: 11.013454 | C8: 0.146349 | D8: 56.66 | E8: 1.53 | F8: 0 | G8: 0
A9: 2017-07-04 | B9: 11.300771 | C9: 0.375456 | D9: 36.830774 | E9: 0.88781024 | F9: 0.0281 | G9: 0
A10: $ indicates as on July 31, 2017
A11: Source: NSE, BSE and MSEI

Sheet 49
A1: Table 49: Trends in Foreign Portfolio Investment
A2: Year/Month | B2: Gross Purchase (₹ crore) | C2: Gross Sales (₹ crore) | D2: Net Investment (₹ crore) | E2: Net Investment (US $ mn.) | F2: Cumulative Net Investment (US $ mn.)
A3: 2016-17 | B3: 1507027.7 | C3: 1458616.67 | D3: 48411.03 | E3: 7599.65 | F3: 231187.35
A4: 2017-18$ | B4: 583171.92 | C4: 480217.73 | D4: 102954.19 | E4: 15963.49 | F4: 247150.84
A5: 2017-04-01 | B5: 121630.47 | C5: 98872.23 | D5: 22758.24 | E5: 3513.38 | F5: 234700.73
A6: 2017-05-01 | B6: 148177.26 | C6: 121311.1 | D6: 26866.16 | E6: 4169.96 | F6: 238870.69
A7: 2017-06-01 | B7: 169484.3 | C7: 140182.37 | D7: 29301.93 | E7: 4548.13 | F7: 243418.82
A8: 2017-07-01 | B8: 143879.89 | C8: 119852.03 | D8: 24027.86 | E8: 3732.02 | F8: 247150.84
A9: $ indicates as on July 31, 2017
A10: Source: NSDL, CDSL

Sheet 50
A1: Table 50: Notional Value of Offshore Derivative Instruments (ODIs) Vs Assets Under Custody (AUC) of FPIs/Deemed FPIs (₹ crore)
A2: Year/ Month | B2: Notional value of ODIs on Equity, Debt & Derivatives | C2: Notional value of ODIs on Equity & Debt excluding Derivatives | D2: Assets Under Custody of FPIs/Deemed FPIs | E2: Notional value of ODIs on Equity, Debt & Derivatives as % of Assets Under Custody of FPIs/Deemed FPIs | F2: Notional value of ODIs on Equity & Debt excluding Derivatives as % of Assets Under Custody of FPIs/Deemed FPIs
A3: 2016-17 | B3: 178437 | C3: 124277 | D3: 2705729 | E3: 6.6 | F3: 4.6
A4: 2017-18$ | B4: 135297 | C4: 127075 | D4: 3055984 | E4: 4.4 | F4: 4.2
A5: 2017-04-01 | B5: 168545 | C5: 128380 | D5: 2786083 | E5: 6 | F5: 4.6
A6: 2017-05-01 | B6: 180718 | C6: 133045 | D6: 2856637 | E6: 6.3 | F6: 4.7
A7: 2017-06-01 | B7: 165241 | C7: 132785 | D7: 2883104 | E7: 5.7 | F7: 4.6
A8: 2017-07-01 | B8: 135297 | C8: 127075 | D8: 3055984 | E8: 4.4 | F8: 4.2
A9: Notes: 1. Figures are compiled based on reports submitted by FPIs/deemed FPIs issuing ODIs. 2. Column 4 Figures are compiled on the basis of reports submitted by custodians & does not includes positions taken by FPIs/deemed FPIs in derivatives. 3. The total value of ODIs excludes the unhedged positions & portfolio hedging positions taken by the FPIs/deemed FPIs issuing ODIs.
A10: $ indicates as on July 31, 2017
A11: Source: SEBI.

Sheet 51
A1: Table 51: Assets under the Custody of Custodians
A2: Client Period | B2: FPIs | D2: Foreign Depositories | F2: FDI Investments | H2: Foreign Venture Capital Investments | J2: OCBs | L2: NRIs | N2: Mutual Funds | P2: Corporates | R2: Banks | T2: Insurance Companies | V2: Local Pension Funds | X2: Financial Institutions | Z2: Others | AB2: Total
B3: No. | C3: Amount (₹ crore) | D3: No. | E3: Amount (₹ crore) | F3: No. | G3: Amount (₹ crore) | H3: No. | I3: Amount (₹ crore) | J3: No. | K3: Amount (₹ crore) | L3: No. | M3: Amount (₹ crore) | N3: No. | O3: Amount (₹ crore) | P3: No. | Q3: Amount (₹ crore) | R3: No. | S3: Amount (₹ crore) | T3: No. | U3: Amount (₹ crore) | V3: No. | W3: Amount (₹ crore) | X3: No. | Y3: Amount (₹ crore) | Z3: No. | AA3: Amount (₹ crore) | AB3: No. | AC3: Amount (₹ crore)
A4: 2016-17 | B4: 8956 | C4: 2705728.63 | D4: 64 | E4: 272829.5 | F4: 1532 | G4: 591977.26 | H4: 188 | I4: 31695.23 | J4: 22 | K4: 2174.73 | L4: 330 | M4: 2848.76 | N4: 1663 | O4: 1536949.49 | P4: 434 | Q4: 73926.82 | R4: 115 | S4: 303380.12 | T4: 766 | U4: 1440522.63 | V4: 96 | W4: 227369.36 | X4: 29 | Y4: 74173.72 | Z4: 11320 | AA4: 543186.91 | AB4: 25515 | AC4: 7806763.16
A5: 2017-18$ | B5: 8904 | C5: 3055983.627 | D5: 63 | E5: 299895.2694 | F5: 1576 | G5: 633314.9631 | H5: 190 | I5: 31965.36704 | J5: 22 | K5: 2334.65 | L5: 334 | M5: 2775.98 | N5: 1534 | O5: 1736264.587 | P5: 454 | Q5: 79600.1434 | R5: 112 | S5: 319683.445 | T5: 796 | U5: 1521446.891 | V5: 117 | W5: 281285.3812 | X5: 29 | Y5: 72289.42 | Z5: 12726 | AA5: 582997.103 | AB5: 26857 | AC5: 8619836.827
A6: 2017-04-30 | B6: 8884 | C6: 2786082.88 | D6: 63 | E6: 273675.52 | F6: 1541 | G6: 587640.11 | H6: 190 | I6: 31661.56 | J6: 22 | K6: 2187.26 | L6: 334 | M6: 2943.76 | N6: 1646 | O6: 1664012.38 | P6: 436 | Q6: 76733.59 | R6: 110 | S6: 307675.35 | T6: 774 | U6: 1468849.19 | V6: 115 | W6: 228105.69 | X6: 29 | Y6: 75704.04 | Z6: 11603 | AA6: 551698.94 | AB6: 25747 | AC6: 8056970.27
A7: 2017-05-31 | B7: 8750 | C7: 2856637.184 | D7: 63 | E7: 287842.9829 | F7: 1547 | G7: 599259.5426 | H7: 189 | I7: 31595.51345 | J7: 22 | K7: 2226.695 | L7: 331 | M7: 2847.27 | N7: 1634 | O7: 1656901.779 | P7: 444 | Q7: 78055.54775 | R7: 111 | S7: 308179.8451 | T7: 779 | U7: 1479654.677 | V7: 114 | W7: 245604.4743 | X7: 29 | Y7: 79189.47 | Z7: 11901 | AA7: 557451.0305 | AB7: 25914 | AC7: 8185446.012
A8: 2017-06-30 | B8: 8914 | C8: 2882134.384 | D8: 63 | E8: 284149.1471 | F8: 1566 | G8: 602120.931 | H8: 190 | I8: 31645.9476 | J8: 22 | K8: 2156.905 | L8: 332 | M8: 2892.83 | N8: 1553 | O8: 1619245.814 | P8: 451 | Q8: 79201.01454 | R8: 111 | S8: 307084.293 | T8: 783 | U8: 1482775.633 | V8: 114 | W8: 277223.4203 | X8: 29 | Y8: 77531.26 | Z8: 12401 | AA8: 569590.0665 | AB8: 26529 | AC8: 8217751.646
A9: 2017-07-31 | B9: 8904 | C9: 3055983.627 | D9: 63 | E9: 299895.2694 | F9: 1576 | G9: 633314.9631 | H9: 190 | I9: 31965.36704 | J9: 22 | K9: 2334.65 | L9: 334 | M9: 2775.98 | N9: 1534 | O9: 1736264.587 | P9: 454 | Q9: 79600.1434 | R9: 112 | S9: 319683.445 | T9: 796 | U9: 1521446.891 | V9: 117 | W9: 281285.3812 | X9: 29 | Y9: 72289.42 | Z9: 12726 | AA9: 582997.103 | AB9: 26857 | AC9: 8619836.827
A10: Notes: 1. With the commencement of FPI Regime from June 1, 2014, the erstwhile FIIs, Sub Accounts and QFIs are merged into a new investor class termed as “Foreign Portfolio Investors (FPIs)”.
A11: 2. "Others" include Portfolio manager, partnership firm, trusts, depository receipts, AIFs, FCCB, HUFs, Brokers etc.
A12: $ indicates as on July 31, 2017
A13: Source: Custodians.

Sheet 52
A1: Table 52: Trends in Resource Mobilization by Mutual Funds (₹ crore)
A2: Year/ Month | B2: Gross Mobilisation | E2: Redemption | H2: Net Inflow/Outflow | K2: Assets at the End of Period
B3: Pvt. Sector | C3: Public Sector | D3: Total | E3: Pvt. Sector | F3: Public Sector | G3: Total | H3: Pvt. Sector | I3: Public Sector | J3: Total
A4: 2016-17 | B4: 14247937.3 | C4: 3367611.559 | D4: 17615548.86 | E4: 13968549.08 | F4: 3303950.879 | G4: 17272499.96 | H4: 279388.2213 | I4: 63660.68016 | J4: 343048.9015 | K4: 1754619.082
A5: 2017-18$ | B5: 5455664.601 | C5: 1193964.495 | D5: 6649629.097 | E5: 5334614.705 | F5: 1158110.175 | G5: 6492724.88 | H5: 121049.8965 | I5: 35854.32041 | J5: 156904.2169 | K5: 1996905.335
A6: 2017-04-30 | B6: 1361008.412 | C6: 276212.0344 | D6: 1637220.446 | E6: 1233420.267 | F6: 253097.0221 | G6: 1486517.289 | H6: 127588.1442 | I6: 23115.0123 | J6: 150703.1565 | K6: 1926302.283
A7: 2017-05-31 | B7: 1358637.885 | C7: 300816.6635 | D7: 1659454.549 | E7: 1399131.861 | F7: 301033.7455 | G7: 1700165.606 | H7: -40493.9755 | I7: -217.0820089 | J7: -40711.05751 | K7: 1903975.405
A8: 2017-06-30 | B8: 1267002.767 | C8: 285368.8585 | D8: 1552371.625 | E8: 1281396.594 | F8: 287567.6128 | G8: 1568964.207 | H8: -14393.8276 | I8: -2198.754286 | J8: -16592.58188 | K8: 1896290.72
A9: 2017-07-31 | B9: 1469015.538 | C9: 331566.9389 | D9: 1800582.477 | E9: 1420665.983 | F9: 316411.7945 | G9: 1737077.777 | H9: 48349.5554 | I9: 15155.1444 | J9: 63504.69981 | K9: 1996905.335
A10: $ indicates as on July 31, 2017
A11: Source: SEBI.
F16: `

Sheet 53
A1: Table 53: Type-wise Resource Mobilisation by Mutual Funds: Open-ended and Close-ended (₹ crore)
A2: Scheme | B2: 2016-17 | E2: 2017-18$ | H2: Jul-17 | K2: Assets at the end of period
B3: Sale | C3: Purchase | D3: Net | E3: Sale | F3: Purchase | G3: Net | H3: Sale | I3: Purchase | J3: Net | N3: Sale | O3: Purchase | P3: Net
A4: Open-ended | B4: 17229415.46 | C4: 17587220.53 | D4: 357805.0687 | E4: 11173716.4 | F4: 11472314.02 | G4: 298597.6144 | H4: 6452550.395 | I4: 6634139.218 | J4: 181588.8223 | K4: 1834334.443 | N4: 15184479.49 | O4: 15601374.01 | P4: 416894.5134
A5: Close-ended | B5: 39079.68494 | C5: 28028.80421 | D5: -11050.88073 | E5: 73047.83901 | F5: 26357.12165 | G5: -46690.71736 | H5: 39305.3363 | I5: 15487.5437 | J5: -23817.7926 | K5: 158760.633 | N5: 36891.82748 | O5: 21155.67758 | P5: -15736.1499
A6: Interval | B6: 4004.813506 | C6: 299.5302272 | D6: -3705.283278 | E6: 1607.742808 | F6: 4.579785209 | G6: -1603.163022 | H6: 869.148006 | I6: 2.335201669 | J6: -866.8128043 | K6: 3810.259179 | N6: 3521.712396 | O6: 295.1884329 | P6: -3226.523963
A7: Total | B7: 17272499.96 | C7: 17615548.86 | D7: 343048.9047 | E7: 11248371.98 | F7: 11498675.72 | G7: 250303.734 | H7: 6492724.88 | I7: 6649629.097 | J7: 156904.2169 | K7: 1996905.335 | N7: 15224893.03 | O7: 15622824.87 | P7: 397931.8395
A8: $ indicates as on July 31, 2017
A9: Source: SEBI.

Sheet 54
A1: Table 54: Scheme-wise Resource Mobilisation and Assets under Management by Mutual Funds (₹ crore)
A2: Type | B2: 2016-17 | F2: 2017-18$ | J2: Jul-17 | O2: Upto Jan 17
B3: Sale | C3: Purchase | D3: Net | E3: Assets at the end of Period | F3: Sale | G3: Purchase | H3: Net | I3: Assets at the end of Period | J3: Sale | K3: Purchase | L3: Net | O3: Sale | P3: Purchase | Q3: Net
A4: A. Income/Debt Oriented Schemes (i+ii+iii+iv) | B4: 17090456.11 | C4: 17303610.26 | D4: 213154.1487 | E4: 1074652.031 | F4: 6420697.726 | G4: 6502656.183 | H4: 81958.45729 | I4: 1186615.643 | J4: 1716859.992 | K4: 1758083.034 | L4: 41223.04161 | O4: 15070850.59 | P4: 15356527.84 | Q4: 285677.2503
A5: i. Liquid/Money Market | B5: 16327426.65 | C5: 16423252.87 | D5: 95826.21906 | E5: 314085.8906 | F5: 6131486.738 | G5: 6133947.556 | H5: 2460.818039 | I5: 323351.3385 | J5: 1656605.13 | K5: 1637093.862 | L5: -19511.26841 | O5: 14453105.18 | P5: 14564078.29 | Q5: 110973.1092
A6: ii. Gilt | B6: 15312.64455 | C6: 12007.24917 | D6: -3305.39538 | E6: 14875.23865 | F6: 2146.277587 | G6: 2274.607689 | H6: 128.3301015 | I6: 15606.23245 | J6: 461.3659629 | K6: 1111.441277 | L6: 650.0753142 | O6: 13908.45814 | P6: 11732.89148 | Q6: -2175.566662
A7: iii. Debt (other than assured return) | B7: 747716.8194 | C7: 868350.1444 | D7: 120633.325 | E7: 743782.9564 | F7: 287064.71 | G7: 366234.0191 | H7: 79169.30915 | I7: 845483.6326 | J7: 59793.49552 | K7: 119877.7302 | L7: 60084.23471 | O7: 603836.9443 | P7: 780716.6521 | Q7: 176879.7078
A8: iv. Debt (assured return) | B8: 0 | C8: 0 | D8: 0 | E8: 0 | F8: 0 | G8: 0 | H8: 0 | I8: 0 | J8: 0 | K8: 0 | L8: 0 | O8: 0 | P8: 0 | Q8: 0
A9: v. Infrastructure Development | B9: 0 | C9: 0 | D9: 0 | E9: 1907.945479 | F9: 0 | G9: 200 | H9: 200 | I9: 2174.439548 | J9: 0 | K9: 0 | L9: 0 | O9: 0 | P9: 0 | Q9: 0
A10: B. Growth/Equity Oriented Schemes (i+ii) | B10: 149182.6568 | C10: 219549.9679 | D10: 70367.31107 | E10: 543541.2643 | F10: 57701.45384 | G10: 98761.95289 | H10: 41060.49905 | I10: 629456.0598 | J10: 15310.50493 | K10: 28038.99823 | L10: 12728.4933 | O10: 127702.8825 | P10: 189854.029 | Q10: 62151.14658
A11: i. ELSS | B11: 4526.605015 | C11: 14623.56784 | D11: 10096.96283 | E11: 61403.1873 | F11: 2183.866116 | G11: 4703.676358 | H11: 2519.810242 | I11: 70047.16655 | J11: 586.9606511 | K11: 1277.185717 | L11: 690.2250659 | O11: 3705.196375 | P11: 10895.43507 | Q11: 7190.238696
A12: ii. Others | B12: 144656.0518 | C12: 204926.4001 | D12: 60270.34824 | E12: 482138.0769 | F12: 55517.58772 | G12: 94058.27653 | H12: 38540.68881 | I12: 559408.8933 | J12: 14723.54428 | K12: 26761.81251 | L12: 12038.26824 | O12: 123997.6861 | P12: 178958.594 | Q12: 54960.90789
A13: C. Balanced Schemes | B13: 14011.10232 | C13: 50620.51336 | D13: 36609.41104 | E13: 84763.02229 | F13: 7250.185814 | G13: 37371.24369 | H13: 30121.05788 | I13: 121243.1393 | J13: 3009.624593 | K13: 10873.85146 | L13: 7864.22687 | O13: 11068.73614 | P13: 41727.24506 | Q13: 30658.50892
A14: D. Exchange Traded Fund (i+ii) | B14: 17281.5077 | C14: 41335.3018 | D14: 23278.46173 | E14: 49915.46843 | F14: 6878.914335 | G14: 10780.72541 | H14: 3901.811072 | I14: 57920.52861 | J14: 1859.664229 | K14: 3574.889585 | L14: 1715.225356 | O14: 13853.70331 | P14: 34308.75513 | Q14: 19760.27461
A15: i. Gold ETF | B15: 861.5137754 | C15: 86.18141099 | D15: -775.3323645 | E15: 5479.812265 | F15: 268.5441494 | G15: 12.7345448 | H15: -255.8096046 | I15: 5097.769254 | J15: 38.37356611 | K15: 1.2832022 | L15: -37.09036391 | O15: 779.905932 | P15: 85.12871947 | Q15: -694.7772126
A16: ii. Other ETFs | B16: 17281.5077 | C16: 41335.3018 | D16: 24053.7941 | E16: 44435.65616 | F16: 6610.370186 | G16: 10767.99086 | H16: 4157.620677 | I16: 52822.75935 | J16: 1821.290663 | K16: 3573.606382 | L16: 1752.31572 | O16: 13853.70331 | P16: 34308.75513 | Q16: 20455.05182
A17: E. Fund of Funds Investing Overseas | B17: 707.0640777 | C17: 346.6362661 | D17: -360.4278116 | E17: 1747.296412 | F17: 196.6000436 | G17: 58.99165975 | H17: -137.6083838 | I17: 1669.964524 | J17: 37.99148004 | K17: 11.70414833 | L17: -26.28733171 | O17: 637.2179394 | P17: 321.8770725 | Q17: -315.3408669
A18: Total (A+B+C+D+E) | B18: 17271638.44 | C18: 17615462.68 | D18: 343048.9047 | E18: 1754619.082 | F18: 6492724.88 | G18: 6649629.097 | H18: 156904.2169 | I18: 1996905.335 | J18: 1737077.777 | K18: 1800582.477 | L18: 63504.69981 | O18: 15224113.13 | P18: 15622739.74 | Q18: 397931.8395
A19: $ indicates as on July 31, 2017
A20: Source: SEBI. | G20: ` | K20: `

Sheet 55
A1: Table 55: Number of Schemes and Folios by Investment Objective
A2: Type | B2: 2016-17 | J2: 2017-18$
B3: No. of Schemes | F3: No. of Folios | J3: No. of Schemes | N3: No. of Folios
B4: Open | C4: Closed | D4: Interval | E4: Total | F4: Open | G4: Closed | H4: Interval | I4: Total | J4: Open | K4: Closed | L4: Interval | M4: Total | N4: Open | O4: Closed | P4: Interval | Q4: Total
A5: A. Income/Debt Oriented Schemes (i+ii+iii+iv) | B5: 349 | C5: 1262 | D5: 64 | E5: 1675 | F5: 8870830 | G5: 1119944 | H5: 8881 | I5: 9999655 | J5: 347 | K5: 1019 | L5: 57 | M5: 1423 | N5: 9205488 | O5: 1170489 | P5: 8201 | Q5: 10384178
A6: i. Liquid/Money Market | B6: 52 | C6: 0 | D6: 0 | E6: 52 | F6: 788860 | G6: 0 | H6: 0 | I6: 788860 | J6: 51 | K6: 0 | L6: 0 | M6: 51 | N6: 879028 | O6: 0 | P6: 0 | Q6: 879028
A7: ii. Gilt | B7: 41 | C7: 0 | D7: 0 | E7: 41 | F7: 86182 | G7: 0 | H7: 0 | I7: 86182 | J7: 41 | K7: 0 | L7: 0 | M7: 41 | N7: 90842 | O7: 0 | P7: 0 | Q7: 90842
A8: iii. Debt (other than assured return) | B8: 256 | C8: 1255 | D8: 64 | E8: 1575 | F8: 7995788 | G8: 1119893 | H8: 8881 | I8: 9124562 | J8: 255 | K8: 1011 | L8: 57 | M8: 1323 | N8: 8235618 | O8: 1170432 | P8: 8201 | Q8: 9414251
A9: iv. Debt (assured return) | B9: 0 | C9: 0 | D9: 0 | E9: 0 | F9: 0 | G9: 0 | H9: 0 | I9: 0 | J9: 0 | K9: 0 | L9: 0 | M9: 0 | N9: 0 | O9: 0 | P9: 0 | Q9: 0
A10: v. Infrastructure Development | B10: 0 | C10: 7 | D10: 0 | E10: 7 | F10: 0 | G10: 51 | H10: 0 | I10: 51 | J10: 0 | K10: 8 | L10: 0 | M10: 8 | N10: 0 | O10: 57 | P10: 0 | Q10: 57
A11: B. Growth/Equity Oriented Schemes (i+ii) | B11: 358 | C11: 126 | D11: 0 | E11: 484 | F11: 39340247 | G11: 1485964 | H11: 0 | I11: 40826211 | J11: 358 | K11: 135 | L11: 0 | M11: 493 | N11: 42123121 | O11: 1646309 | P11: 0 | Q11: 43769430
A12: i. ELSS | B12: 43 | C12: 21 | D12: 0 | E12: 64 | F12: 7881090 | G12: 570836 | H12: 0 | I12: 8451926 | J12: 43 | K12: 22 | L12: 0 | M12: 65 | N12: 8263135 | O12: 563025 | P12: 0 | Q12: 8826160
A13: ii. Others | B13: 315 | C13: 105 | D13: 0 | E13: 420 | F13: 31459157 | G13: 915128 | H13: 0 | I13: 32374285 | J13: 315 | K13: 113 | L13: 0 | M13: 428 | N13: 33859986 | O13: 1083284 | P13: 0 | Q13: 34943270
A14: C. Balanced Schemes | B14: 30 | C14: 0 | D14: 0 | E14: 30 | F14: 3548912 | G14: 0 | H14: 0 | I14: 3548912 | J14: 31 | K14: 0 | L14: 0 | M14: 31 | N14: 4271756 | O14: 0 | P14: 0 | Q14: 4271756
A15: D. Exchange Traded Fund (i+ii) | B15: 63 | C15: 0 | D15: 0 | E15: 63 | F15: 915127 | G15: 0 | H15: 0 | I15: 915127 | J15: 65 | K15: 0 | L15: 0 | M15: 65 | N15: 893233 | O15: 0 | P15: 0 | Q15: 893233
A16: i. Gold ETF | B16: 12 | C16: 0 | D16: 0 | E16: 12 | F16: 364110 | G16: 0 | H16: 0 | I16: 364110 | J16: 12 | K16: 0 | L16: 0 | M16: 12 | N16: 358785 | O16: 0 | P16: 0 | Q16: 358785
A17: ii. Other ETFs | B17: 51 | C17: 0 | D17: 0 | E17: 51 | F17: 551017 | G17: 0 | H17: 0 | I17: 551017 | J17: 53 | K17: 0 | L17: 0 | M17: 53 | N17: 534448 | O17: 0 | P17: 0 | Q17: 534448
A18: E. Fund of Funds Investing Overseas | B18: 29 | C18: 0 | D18: 0 | E18: 29 | F18: 109726 | G18: 0 | H18: 0 | I18: 109726 | J18: 29 | K18: 0 | L18: 0 | M18: 29 | N18: 102267 | O18: 0 | P18: 0 | Q18: 102267
A19: Total (A+B+C+D+E) | B19: 829 | C19: 1388 | D19: 64 | E19: 2281 | F19: 52784842 | G19: 2605908 | H19: 8881 | I19: 55399631 | J19: 830 | K19: 1154 | L19: 57 | M19: 2041 | N19: 56595865 | O19: 2816798 | P19: 8201 | Q19: 59420864
A20: Note: Data for No. of Schemes also includes serial plans.
A21: $ indicates as on July 31, 2017
A22: Source: SEBI.

Sheet 56
A1: Table 56: Trends in Transactions on Stock Exchanges by Mutual Funds (₹ crore)
A2: Year/ Month | B2: Equity | E2: Debt | H2: Total
B3: Gross Purchase | C3: Gross Sales | D3: Net Purchase/Sales | E3: Gross Purchase | F3: Gross Sales | G3: Net Purchase/Sales | H3: Gross Purchase | I3: Gross Sales | J3: Net Purchase/Sales
A4: 2016-17 | B4: 376874.41 | C4: 320315.76 | D4: 56558.65 | E4: 1605937.1 | F4: 1286083.61 | G4: 319853.49 | H4: 1982811.51 | I4: 1606399.37 | J4: 376412.14
A5: 2017-18$ | B5: 186964.05 | C5: 145456.17 | D5: 41507.88 | E5: 580948.04 | F5: 462495.37 | G5: 118452.67 | H5: 767912.09 | I5: 607951.54 | J5: 159960.55
A6: 2017-04-04 | B6: 42813.5 | C6: 31569.25 | D6: 11244.25 | E6: 134337.1 | F6: 78404.21 | G6: 55932.89 | H6: 177150.6 | I6: 109973.46 | J6: 67177.14
A7: 2017-05-04 | B7: 51059.27 | C7: 41701.6 | D7: 9357.67 | E7: 156917.4 | F7: 147403.03 | G7: 9514.37 | H7: 207976.67 | I7: 189104.63 | J7: 18872.04
A8: 2017-06-04 | B8: 42822.77 | C8: 33716.66 | D8: 9106.11 | E8: 147545.01 | F8: 134927.1 | G8: 12617.91 | H8: 190367.78 | I8: 168643.76 | J8: 21724.02
A9: 2017-07-04 | B9: 50268.51 | C9: 38468.66 | D9: 11799.85 | E9: 142148.53 | F9: 101761.03 | G9: 40387.5 | H9: 192417.04 | I9: 140229.69 | J9: 52187.35
A10: $ indicates as on July 31, 2017
A11: Source: SEBI

Sheet 57
A1: Table 57: Asset Under Management by Portfolio Manager
A2: Year/Month | B2: 2016-17 | E2: 2017-18$
A3: Particulars | B3: Discretionary | C3: Non-Discretionary | D3: Advisory | E3: Discretionary# | F3: Non-Discretionary | G3: Advisory*
A4: No. of Clients | B4: 70994 | C4: 4674 | D4: 1482 | E4: 85949 | F4: 5049 | G4: 1556
A5: AUM (` in crore)
A6: Listed Equity | B6: 73912.86 | C6: 13623.49 | E6: 89835.88 | F6: 14773.25
A7: Unlisted Equity | B7: 683.15 | C7: 42.78 | E7: 581.06 | F7: 46.76
A8: Plain Debt | B8: 866612.64 | C8: 52883.64 | E8: 918944.84 | F8: 55910.7
A9: Structured Debt | B9: 281.6 | C9: 544.18 | D9: 188385 | E9: 441.59 | F9: 546 | G9: 189595.04
A10: Equity Derivative | B10: 188.19 | C10: -0.02 | E10: 216.79 | F10: 0
A11: Mutual Fund | B11: 8687.9 | C11: 7563.2 | E11: 9195.19 | F11: 7914.29
A12: Others | B12: 16669.64 | C12: 404.12 | E12: 17272.56 | F12: 484.63
A13: Total | B13: 967036 | C13: 75061.39 | E13: 1036487.9 | F13: 79675.63
A14: Notes: 1. *Value of Assets for which Advisory Services are being given. 2. #Of the above AUM Rs. 901791.360 Crore is contributed by funds from EPFO/PFs. 3. The above data is based on the monthly reports received from portfolio managers.
A15: $ indicates as on July 31, 2017
A16: Source: SEBI.

Sheet 58
A1: Table 58: Progress Report of NSDL & CDSl as on end of July-2017 (Listed Companies)
A2: Parameter | B2: Unit | C2: NSDL | H2: CDSL
C3: 2017-07-01 | D3: 2017-06-01 | E3: 2016-07-01 | F3: % Change during the year | G3: % Change during the month | H3: 2017-07-01 | I3: 2017-06-01 | J3: 2016-07-01 | K3: % Change during the year | L3: % Change during the month
A4: Number of companies signed up to make their shares available for dematerialization | B4: Number | C4: 5764 | D4: 5929 | E4: 6198 | F4: -7.002258793 | G4: -2.782931354 | H4: 6569 | I4: 6562 | J4: 6428 | K4: 2.193528314 | L4: 0.1066747943
A5: Number of Depository Participants (registered) | B5: Number | C5: 268 | D5: 268 | E5: 267 | F5: 0.3745318352 | G5: 0 | H5: 590 | I5: 590 | J5: 582 | K5: 1.374570447 | L5: 0
A6: Number of Stock Exchanges (connected) | B6: Number | C6: 3 | D6: 3 | E6: 4 | F6: -25 | G6: 0 | H6: 3 | I6: 3 | J6: 3 | K6: 0 | L6: 0
A7: Number of Investors Accounts | B7: Lakh | C7: 160.23 | D7: 158.99 | E7: 148.36 | F7: 8.000808843 | G7: 0.7799232656 | H7: 129.5166 | I7: 127.50757 | J7: 112.28063 | K7: 15.35079559 | L7: 1.575616256
A8: Quantity of Shares dematerialized | B8: crore | C8: 46137.7036 | D8: 45796.77017 | E8: 42855.04729 | F8: 7.65990595 | G8: 0.7444486312 | H8: 13568.96372 | I8: 13445.9166 | J8: 12670.47 | K8: 7.091242208 | L8: 0.9151263168
A9: Value of Shares dematerialized | B9: ₹ crore | C9: 11412085.05 | D9: 10808454.66 | E9: 9403513.201 | F9: 21.35980252 | G9: 5.584798284 | H9: 1645673.28 | I9: 1536000.957 | J9: 1300448.78 | K9: 26.54656649 | L9: 7.140120754
A10: Quantity of Securities dematerialized # | B10: crore | C10: 48824.66689 | D10: 48469.54054 | E10: 45059.15205 | F10: 8.356825807 | G10: 0.7326794302 | H10: 14380.56572 | I10: 14235.38963 | J10: 13157.64 | K10: 9.294415377 | L10: 1.01982513
A11: Value of Securities dematerialized # | B11: ₹ crore | C11: 13761793.84 | D11: 13126174.54 | E11: 11308837.19 | F11: 21.69061778 | G11: 4.842380439 | H11: 1726656.96 | I11: 1616697.602 | J11: 1363427.247 | K11: 26.64093104 | L11: 6.801479606
A12: Quantity of shares settled during the month | B12: crore | C12: 1118.423104 | D12: 911.5426023 | E12: 894.7099303 | F12: 25.00398917 | G12: 22.69564819 | H12: 788.8920042 | I12: 558.9685366 | J12: 651.0404647 | K12: 21.17403556 | L12: 41.13352587
A13: Average Quantity of shares settled daily (quantity of shares settled during the month (divided by 30)) | B13: crore | C13: 37.28077015 | D13: 30.38475341 | E13: 29.82366434 | F13: 25.00398917 | G13: 22.69564819 | H13: 25.44812917 | I13: 18.63228455 | J13: 21.70134882 | K13: 17.2651957 | L13: 36.58083149
A14: Value of shares settled during the month in dematerialized form | B14: ₹ crore | C14: 249884.3073 | D14: 274292.6056 | E14: 204111.6637 | F14: 22.42529546 | G14: -8.898635159 | H14: 73329.48147 | I14: 60537.01146 | J14: 56525.16986 | K14: 29.7289007 | L14: 21.13165103
A15: Average Value of shares settled daily (value of shares settled during the month (divided by 30)) | B15: ₹ crore | C15: 8329.476911 | D15: 9143.086852 | E15: 6803.722122 | F15: 22.42529546 | G15: -8.898635159 | H15: 2365.467144 | I15: 2017.900382 | J15: 1884.172329 | K15: 25.54409745 | L15: 17.22417842
A16: Training Programmes conducted for representatives of Corporates, DPs and Brokers | B16: Number | C16: 10 | D16: 10 | E16: 10 | F16: 0 | G16: 0 | H16: 123 | I16: 156 | J16: 63 | K16: 95.23809524 | L16: -21.15384615
A17: The ratio of dematerialized equity shares to the total outstanding shares (market value) | B17: percent | C17: 85.39 | D17: 85.49 | E17: 85.63 | F17: -0.2802756043 | G17: -0.1169727454 | H17: 13.13954641 | I17: 11.13220826 | J17: 12.72 | K17: 3.298320872 | L17: 18.03180559
A18: Notes: 1. Shares includes only equity shares. 2. Securities include common equity shares, preference shares, debenture, MF units, etc. 3. No. of days taken for calculating Daily Average is 30 days instead of Actual settlement days. 4. Quantity and value of shares mentioned are single sided. 5. #Source for listed securities information: Issuer/ NSE/BSE.
A19: Source: NSDL and CDSL.

Sheet 59
A1: Table 59: Progress of Dematerialisation at NSDL and CDSL (Listed and Unlisted Companies)
A2: Year/ Month | B2: NSDL | G2: CDSL
B3: Companies Live | C3: DPs Live | D3: DPs Locations | E3: Demat Quantity (million securities) | F3: Demat Value (₹ crore) | G3: Companies Live | H3: DPs Live | I3: DPs Locations | J3: Demat Quantity (million securities) | K3: Demat Value (₹ crore)
A4: 2016-17 | B4: 17835 | C4: 264 | D4: 27389 | E4: 1317620 | F4: 14648687 | G4: 9887 | H4: 588 | I4: 17489 | J4: 255227.4 | K4: 1773585.34
A5: 2017-18$ | B5: 18526 | C5: 268 | D5: 27529 | E5: 133635.4605 | F5: 15786686.36 | G5: 10080 | H5: 590 | I5: 17265 | J5: 256968.9806 | K5: 1874673.429
A6: 2017-04-01 | B6: 18039 | C6: 265 | D6: 27380 | E6: 1336753.74 | F6: 12660053.33 | G6: 9934 | H6: 589 | I6: 17481 | J6: 253520.911 | K6: 1830695.08
A7: 2017-05-01 | B7: 18233 | C7: 268 | D7: 27395 | E7: 1349820.23 | F7: 15139573.82 | G7: 9968 | H7: 589 | I7: 17415 | J7: 254730.0435 | K7: 1799049.731
A8: 2017-06-01 | B8: 18396 | C8: 268 | D8: 27417 | E8: 1362664.81 | F8: 15185478.46 | G8: 10017 | H8: 590 | I8: 17387 | J8: 256094.3919 | K8: 1766361.563
A9: 2017-07-01 | B9: 18526 | C9: 268 | D9: 27529 | E9: 1382175.59 | F9: 15786686.36 | G9: 10080 | H9: 590 | I9: 17265 | J9: 256968.9806 | K9: 1874673.429
A10: Notes : 1. For CDSL, the current and historical data of Companies Live has been revised to exclude MF schemes count. 2. The Companies Live figure includes only the number of mutual fund companies and not the mutual fund schemes. 3. DPs Locations' represents the total live (main DPs and branch DPs as well as non-live (back office connected collection centres).
A12: $ indicates as on July 31, 2017
A13: Source: NSDL and CDSL.
K15: `

Sheet 60
A1: Table 60: Depository Statistics for July-2017
A2: Particulars | B2: Unit | C2: Debt | E2: Equity | G2: Others | I2: Total
C3: Listed | D3: Unlisted | E3: Listed | F3: Unlisted | G3: Listed | H3: Unlisted | I3: Listed | J3: Unlisted
A4: NSDL
A5: Issuers(debt)/ Companies(equity), who have issued the active instument | B5: Number | C5: 781 | D5: 1264 | E5: 5764 | F5: 10039 | G5: 63 | H5: 3590 | I5: 6608 | J5: 14893
A6: Active Instruments | B6: Number | C6: 12245 | D6: 4793 | E6: 11539 | F6: 10559 | G6: 7213 | H6: 29330 | I6: 30997 | J6: 44682
A7: Dematerialised Quantity | B7: Lakh | C7: 107093.1684 | D7: 295683.0824 | E7: 4613770.36 | F7: 6242646.185 | G7: 161603.1608 | H7: 2400960.005 | I7: 4882466.689 | J7: 8939289.272
A8: Dematerialised Value | B8: ₹ crore | C8: 2262733.156 | D8: 329082.4544 | E8: 11412085.05 | F8: 602945.2067 | G8: 86975.63758 | H8: 1092864.855 | I8: 13761793.84 | J8: 2024892.516
A9: Quantity settled during the month | B9: Lakh | C9: 4297.91811 | D9: 569.34343 | E9: 111842.3104 | F9: 22.90446 | G9: 1798.122059 | H9: 1428.501527 | I9: 117938.3506 | J9: 2020.749417
A10: Value Settled during the month | B10: ₹ crore | C10: 360501.9912 | D10: 29538.18348 | E10: 249884.3073 | F10: 29.23141485 | G10: 3062.702996 | H10: 281.7827045 | I10: 613449.0015 | J10: 29849.19759
A11: CDSL
A12: Issuers(debt)/ Companies(equity), who have issued the active instument | B12: Number | C12: 571 | D12: 316 | E12: 6569 | F12: 2572 | G12: 2464 | H12: 388 | I12: 9604 | J12: 3276
A13: Active Instruments | B13: Number | C13: 9785 | D13: 1491 | E13: 6685 | F13: 2726 | G13: 18594 | H13: 1450 | I13: 35064 | J13: 5667
A14: Dematerialised Quantity | B14: Lakh | C14: 2994.60807 | D14: 29991.80464 | E14: 1356896.372 | F14: 971130.8681 | G14: 78165.59181 | H14: 130510.5619 | I14: 1438056.572 | J14: 1131633.235
A15: Dematerialised Value | B15: ₹ crore | C15: 51622.7879 | D15: 25963.0062 | E15: 1645673.28 | F15: 103788.1999 | G15: 29360.892 | H15: 18265.2627 | I15: 1726656.96 | J15: 148016.4688
A16: Quantity settled during the month | B16: Lakh | C16: 56.29118 | D16: 0 | E16: 78889.20042 | F16: 0 | G16: 7982.883988 | H16: 0 | I16: 86928.37559 | J16: 0
A17: Value Settled during the month | B17: ₹ crore | C17: 1454.529473 | D17: 0 | E17: 73329.48147 | F17: 0 | G17: 4629.160361 | H17: 0 | I17: 79413.1713 | J17: 0
A18: Note: The categories included in Others are Preference Shares, Mutual Fund Units, Warrants, PTCs, Treasury Bills, CPs, CDs and Government Securities.
A19: Source: NSDL and CDSL.

Sheet 61
A1: ='[1]Table Index'!A3 -> Table 61 : Number of Commodities Permitted and traded at Exchanges
A2: Exchanges | B2: Particulars | C2: Agriculture | D2: Metals other than bullion | E2: Bullion | F2: Energy
A3: NCDEX | B3: Permitted for trading | C3: 22 | D3: 2 | E3: 1 | F3: 1
B4: Contracts floated | C4: 20 | D4: 1 | E4: 1 | F4: 0
B5: Traded | C5: 18 | D5: 0 | E5: 0 | F5: 0
A6: MCX | B6: Permitted for trading | C6: 9 | D6: 5 | E6: 2 | F6: 2
B7: Contracts floated | C7: 7 | D7: 5 | E7: 2 | F7: 2
B8: Traded | C8: 6 | D8: 5 | E8: 2 | F8: 2
A9: NMCE | B9: Permitted for trading | C9: 12 | D9: 0 | E9: 0 | F9: 0
B10: Contracts floated | C10: 12 | D10: 0 | E10: 0 | F10: 0
B11: Traded | C11: 7 | D11: 0 | E11: 0 | F11: 0
A12: COC, Hapur (Regional Exchange) | B12: Permitted for trading | C12: 1 | D12: 0 | E12: 0 | F12: 0
B13: Contracts floated | C13: 1 | D13: 0 | E13: 0 | F13: 0
B14: Traded | C14: 1 | D14: 0 | E14: 0 | F14: 0
A15: Source: NCDEX, MCX, NMCE and COC Hapur.

Sheet 62
A1: ='[1]Table Index'!A4 -> Table 62: Trends in Commodity Indices
A3: Year/ Month | B3: MCX COMDEX | F3: NCDEX Dhaanya
B4: Open | C4: High | D4: Low | E4: Close | F4: Open | G4: High | H4: Low | I4: Close
A5: 2016-17 | B5: 2730.58 | C5: 3435.43 | D5: 2673.76 | E5: 3242.79 | F5: 2869.73 | G5: 3411.86 | H5: 2896.54 | I5: 3080.79
A6: 2017-18$ | B6: 3244.07 | C6: 3291.16 | D6: 2966.02 | E6: 3174.63 | F6: 3107.24 | G6: 3185.09 | H6: 2794.83 | I6: 2971.27
A7: 2017-04-01 | B7: 3244.07 | C7: 3291.16 | D7: 3110.03 | E7: 3148.19 | F7: 3107.24 | G7: 3185.09 | H7: 3013.79 | I7: 3019.45
A8: 2017-05-02 | B8: 3147.24 | C8: 3186.87 | D8: 2995.12 | E8: 3110.18 | F8: 3033.29 | G8: 3039.36 | H8: 2795.32 | I8: 2807.32
A9: 2017-06-03 | B9: 3109.91 | C9: 3116.85 | D9: 2966.02 | E9: 3056.81 | F9: 2821.07 | G9: 2907.61 | H9: 2794.83 | I9: 2875.74
A10: 2017-07-04 | B10: 3061.59 | C10: 3188.9 | D10: 2976.32 | E10: 3174.63 | F10: 2896.51 | G10: 3000.64 | H10: 2850.97 | I10: 2971.27
A11: $ indicates as on July 31, 2017
A12: Source: MCX and NCDEX

Sheet 63
A1: ='[1]Table Index'!A5 -> Table 63: Trends in Commodity Futures at MCX
A2: Year/ Month | B2: No.of Trading days | C2: Agriculture | F2: Metals | I2: Bullion | L2: Energy | O2: Total | R2: Open interest at the end of the period
C3: Volume ('000 tonnes) | D3: No. of contracts | E3: Turnover (` crore) | F3: Volume ('000 tonnes) | G3: No of contracts | H3: Turnover (` crore) | I3: Volume ('000 tonnes) | J3: No of contracts | K3: Turnover (`crore) | L3: Volume ('000 tonnes)* | M3: No of contracts | N3: Turnover (`crore) | O3: Volume ('000 tonnes) | P3: No of contracts | Q3: Turnover (`crore) | R3: Volume ('000 tonnes) | S3: No of contracts | T3: Value (` crore)
T4: (Rs.crore)
A5: 2016-17 | B5: 260 | C5: 15947.23798 | D5: 3087740 | E5: 139312.4643 | F5: 93077.85775 | G5: 64421776 | H5: 1753887.382 | I5: 207.3174054 | J5: 37151550 | K5: 2040270.47 | L5: 674224.5528 | M5: 117849477 | N5: 1932190.901 | O5: 783456.9659 | P5: 222510543 | Q5: 5865661.217 | R5: 539.5617268 | S5: 284204 | T5: 9229.76769
A6: 2017-18$ | B6: =SUM(B7:B10) -> 85 | C6: =SUM(C7:C10) -> 3905.07031 | D6: 741031 | E6: 33695.96109 | F6: 29150.6014 | G6: 19965860 | H6: 569526.6987 | I6: 56.35934781 | J6: 9553794 | K6: 475457.6309 | L6: 205458.6837 | M6: 36212088 | N6: 567470.8952 | O6: 238570.7148 | P6: 66472773 | Q6: 1646151.186 | R6: 468.0610163 | S6: 313150 | T6: 10263.78277
A7: 2017-04-01 | B7: 19 | C7: 1079.14241 | D7: 195664 | E7: 9267.313548 | F7: 6867.47915 | G7: 4866800 | H7: 135571.8829 | I7: 10.69306777 | J7: 1908513 | K7: 100564.9968 | L7: 39029.26932 | M7: 6962917 | N7: 118855.9395 | O7: 46986.58395 | P7: 13933894 | Q7: 364260.1328 | R7: 553.3746268 | S7: 323663 | T7: 9003.386471
A8: 2017-05-02 | B8: 23 | C8: 1099.9832 | D8: 203738 | E8: 9589.152051 | F8: 6807.9145 | G8: 4826541 | H8: 130356.9046 | I8: 13.99577191 | J8: 2435833 | K8: 123722.6986 | L8: 56277.38417 | M8: 9755773 | N8: 157675.116 | O8: 64199.27764 | P8: 17221885 | Q8: 421343.8712 | R8: 514.2798986 | S8: 329663 | T8: 8848.429089
A9: 2017-06-03 | B9: 22 | C9: 852.82058 | D9: 162233 | E9: 7142.621791 | F9: 7512.0076 | G9: 5163533 | H9: 145600.1683 | I9: 15.06321453 | J9: 2475978 | K9: 121474.2381 | L9: 53456.70064 | M9: 9454043 | N9: 141609.3166 | O9: 61836.59203 | P9: 17255787 | Q9: 415826.3447 | R9: 605.3695921 | S9: 343340 | T9: 10151.02375
A10: 2017-07-04 | B10: 21 | C10: 873.12412 | D10: 179396 | E10: 7696.873703 | F10: 7963.20015 | G10: 5108986 | H10: 157997.743 | I10: 16.6072936 | J10: 2733470 | K10: 129695.6974 | L10: 56695.32961 | M10: 10039355 | N10: 149330.5231 | O10: 65548.26117 | P10: 18061207 | Q10: 444720.8371 | R10: 468.0610163 | S10: 313150 | T10: 10263.78277
A11: $ indicates as on July 31, 2017
A12: * Natural Gas voulmes are in mm BTU and is not included for computing the Total Voulme and Total Open Interest in 000 tonnes
A13: Source: MCX

Sheet 64
A1: ='[1]Table Index'!A6 -> Table 64: Trends in Commodity Futures at NCDEX
A2: Year/ Month | B2: No.of Trading days | C2: Agriculture | F2: Bullion | I2: Total | L2: Open interest at the end of the period
C3: Volume ('000 tonnes) | D3: No. of contracts | E3: Turnover (` crore) | F3: Volume ('000 tonnes) | G3: No of contracts | H3: Turnover (` crore) | I3: Volume ('000 tonnes) | J3: No of contracts | K3: Turnover (` crore) | L3: Volume ('000 tonnes) | M3: No. of Contracts | N3: Value (` crore)
N4: (Rs.crore)
A5: 2016-17 | B5: 260 | C5: 128789.688 | D5: 17750779 | E5: 596529.7277 | F5: 0.001182 | G5: 1182 | H5: 322.25477 | I5: 128789.6892 | J5: 17751961 | K5: 596851.9824 | L5: 1065.356 | M5: 127272 | N5: 4467.9
A6: 2017-18$ | B6: =SUM(B7:B10) -> 83 | C6: =SUM(C7:C10) -> 38563.441 | D6: =SUM(D7:D10) -> 4488308 | E6: =SUM(E7:E10) -> 165934.8026 | F6: =SUM(F7:F10) -> 0 | G6: =SUM(G7:G10) -> 0 | H6: 0 | I6: =SUM(I7:I10) -> 38563.441 | J6: =SUM(J7:J10) -> 4488308 | K6: 165934.8026 | L6: 782.824 | M6: 95341 | N6: 3412.83
A7: 2017-04-01 | B7: 19 | C7: 9237.851 | D7: 1084152 | E7: 43954.75728 | F7: 0 | G7: 0 | H7: 0 | I7: 9237.851 | J7: 1084152 | K7: 43954.75728 | L7: 1035.741 | M7: 118879 | N7: 4605.26
A8: 2017-05-02 | B8: 22 | C8: 10125.658 | D8: 1173570 | E8: 43262.84151 | F8: 0 | G8: 0 | H8: 0 | I8: 10125.658 | J8: 1173570 | K8: 43262.84151 | L8: 1002.683 | M8: 116185 | N8: 3914.99
A9: 2017-06-03 | B9: 21 | C9: 10074.546 | D9: 1165261 | E9: 39094.04682 | F9: 0 | G9: 0 | H9: 0 | I9: 10074.546 | J9: 1165261 | K9: 39094.04682 | L9: 880.562 | M9: 105304 | N9: 3582.22
A10: 2017-07-04 | B10: 21 | C10: 9125.386 | D10: 1065325 | E10: 39623.15697 | F10: 0 | G10: 0 | H10: 0 | I10: 9125.386 | J10: 1065325 | K10: 39623.15697 | L10: 782.824 | M10: 95341 | N10: 3412.83
A11: $ indicates as on July 31, 2017
A12: Source: NCDEX

Sheet 65
A1: ='[1]Table Index'!A7 -> Table 65: Trends in Commodity Futures at NMCE
A2: Year/ Month | B2: No.of Trading days | C2: Agriculture | F2: Open interest at the end of the period
C3: Volume ('000 tonnes) | D3: No. of contracts | E3: Turnover (` crore) | F3: Volume ('000 tonnes) | G3: No of contracts | H3: Value (` crore)
H4: (Rs.crore)
A5: 2016-17 | B5: 247 | C5: 5564.19085 | D5: 1230289 | E5: 28441.53827 | F5: 4.815625 | G5: 3328 | H5: 51.2250702
A6: 2017-18$ | B6: =SUM(B7:B10) -> 82 | C6: =SUM(C7:C10) -> 2391.89085 | D6: 615735 | E6: 10901.12799 | F6: 4.123975 | G6: 2398 | H6: 34.8031516
A7: 2017-04-01 | B7: 18 | C7: 470.041675 | D7: 135463 | E7: 2366.897159 | F7: 3.870275 | G7: 2710 | H7: 40.9497228
A8: 2017-05-02 | B8: 22 | C8: 600.54985 | D8: 157039 | E8: 2769.505565 | F8: 4.088575 | G8: 2661 | H8: 35.5575648
A9: 2017-06-03 | B9: 21 | C9: 699.019325 | D9: 171796 | E9: 3013.361713 | F9: 4.546525 | G9: 3025 | H9: 41.0600476
A10: 2017-07-04 | B10: 21 | C10: 622.28 | D10: 151437 | E10: 2751.363557 | F10: 4.123975 | G10: 2398 | H10: 34.8031516
A11: ='62'!A11 -> $ indicates as on July 31, 2017
A12: Source: NMCE
E29: `

Sheet 66
A1: ='[1]Table Index'!A8 -> Table 66: Category-wise Share in Turnover at MCX and NCDEX (percent)
A2: Year/ Month | B2: Percentage Share in Turnover at MCX | F2: Percentage Share in Turnover at NCDEX
B3: Agriculture | C3: Metals | D3: Bullion | E3: Energy | F3: Agriculture | G3: Bullion
A4: 2016-17 | B4: 2.375051323 | C4: 29.90093217 | D4: 34.78329883 | E4: 32.94071768 | F4: 99.94 | G4: 0.06
A5: 2017-18$ | B5: 2.046954215 | C5: 34.59747219 | D5: 28.88298687 | E5: 34.47258673 | F5: 100 | G5: 0
A6: 2017-04-01 | B6: 2.544147084 | C6: 37.21842462 | D6: 27.60801628 | E6: 32.62941201 | F6: 100 | G6: 0
A7: 2017-05-02 | B7: 2.27584942 | C7: 30.93836495 | D7: 29.36383014 | E7: 37.42195549 | F7: 100 | G7: 0
A8: 2017-06-03 | B8: 1.717693427 | C8: 35.01465698 | D8: 29.21273257 | E8: 34.05491702 | F8: 100 | G8: 0
A9: 2017-07-04 | B9: 1.730720277 | C9: 35.52739826 | D9: 29.16339568 | E9: 33.57848578 | F9: 100 | G9: 0
A10: ='62'!A11 -> $ indicates as on July 31, 2017
A11: Source: MCX and NCDEX

Sheet 67
A1: ='[1]Table Index'!A9 -> Table 67: Participant-wise Percentage Share of Turnover & Open Interest at MCX
A2: Year/ Month | B2: Turnover | F2: Open Interest at the end of period
B3: Agriculture Commodities | D3: Non-Agriculture Commodities | F3: Agriculture Commodities | H3: Non-Agriculture Commodities
B4: Pro | C4: Client | D4: Pro | E4: Client | F4: Pro | G4: Client | H4: Pro | I4: Client
A5: 2016-17 | B5: 35.27513074 | C5: 64.72486926 | D5: 19.63672339 | E5: 80.36327661 | F5: 10.71612495 | G5: 89.28387505 | H5: 18.22599286 | I5: 81.77400714
A6: 2017-18$ | B6: 34.70652387 | C6: 65.29347613 | D6: 19.65651942 | E6: 80.34348058 | F6: 15.56310225 | G6: 84.43689775 | H6: 22.35842409 | I6: 77.64157591
A7: 2017-04-01 | B7: 36.46897388 | C7: 63.53102612 | D7: 19.66153265 | E7: 80.33846735 | F7: 10.85887698 | G7: 89.14112302 | H7: 21.80548186 | I7: 78.19451814
A8: 2017-05-02 | B8: 36.43119258 | C8: 63.56880742 | D8: 20.03027124 | E8: 79.96972876 | F8: 13.86472948 | G8: 86.13527052 | H8: 20.54165681 | I8: 79.45834319
A9: 2017-06-03 | B9: 30.58482446 | C9: 69.41517554 | D9: 18.59179746 | E9: 81.40820254 | F9: 12.8230559 | G9: 87.1769441 | H9: 21.02822007 | I9: 78.97177993
A10: 2017-07-04 | B10: 34.26068736 | C10: 65.73931264 | D10: 20.29598275 | E10: 79.70401725 | F10: 15.56310225 | G10: 84.43689775 | H10: 22.35842409 | I10: 77.64157591
A11: ='62'!A11 -> $ indicates as on July 31, 2017
A12: 1. All trades executed under client codes other than *OWN* (proprietary account) is treated as client trades and is computed at client Level.
A13: 2. All Commodities falling under the category of Energy, Bullion and Metals are treated as Non-Agri., wheresas other commodities are treated as Agri.
A14: 3. Open Interest provided is at end of the respective FY or Month as applicable and computed at client level. The OI value is considered before marking of delivery on the expiry date.
A15: Source: MCX

Sheet 68
A1: ='[1]Table Index'!A10 -> Table 68: Partcipant-wise Percentage Share of Turnover & Open Interest at NCDEX
A2: Year/ Month | B2: Turnover (Percent) | G2: Open Interest at the end of period (Percent)
B3: Agriculture Commodities | E3: Non-Agriculture Commodities | G3: Agriculture Commodities | J3: Non-Agriculture Commodities
B4: Pro | C4: Client | D4: Hedgers | E4: Pro | F4: Client | G4: Pro | H4: Client | I4: Hedgers | J4: Pro | K4: Client
A5: 2016-17 | B5: 41.5601082 | C5: 58.16545824 | D5: 0.2744335556 | E5: 73.63811558 | F5: 26.36188442 | G5: 20.65897009 | H5: 78.32909632 | I5: 1.011933594 | J5: 0 | K5: 0
A6: 2017-18$ | B6: 40.86232161 | C6: 58.96572696 | D6: 0.1719514294 | E6: 0 | F6: 0 | G6: 21.27458669 | H6: 77.77677889 | I6: 0.9486344181 | J6: 0 | K6: 0
A7: 2017-04-01 | B7: 39.48011147 | C7: 60.29572613 | D7: 0.2241624083 | E7: 0 | F7: 0 | G7: 21.21515009 | H7: 77.73193323 | I7: 1.052916681 | J7: 0 | K7: 0
A8: 2017-05-02 | B8: 41.62563879 | C8: 58.16441205 | D8: 0.2099491603 | E8: 0 | F8: 0 | G8: 22.4933864 | H8: 76.45290105 | I8: 1.053712547 | J8: 0 | K8: 0
A9: 2017-06-03 | B9: 40.81189417 | C9: 58.97496702 | D9: 0.213138807 | E9: 0 | F9: 0 | G9: 19.86134323 | H9: 79.20694347 | I9: 0.9317133039 | J9: 0 | K9: 0
A10: 2017-07-04 | B10: 41.61195531 | C10: 58.35613742 | D10: 0.03190726325 | E10: 0 | F10: 0 | G10: 21.27458669 | H10: 77.77677889 | I10: 0.9486344181 | J10: 0 | K10: 0
A11: ='62'!A11 -> $ indicates as on July 31, 2017
A12: Source: NCDEX

Sheet 69
A1: ='[1]Table Index'!A11 -> Table 69: Participant-wise Percentage Share of Turnover & Open Interest at NMCE
A2: Year/ Month | B2: Turnover | D2: Open Interest at the end of Period
B3: Pro | C3: Client | D3: Pro | E3: Client
A4: 2016-17 | B4: 4.801351646 | C4: 95.19864835 | D4: 0.9642873795 | E4: 99.03571262
A5: 2017-18$ | B5: 1.783032905 | C5: 98.2169671 | D5: -0.9 | E5: 99.1
A6: 2017-04-01 | B6: 2.921760323 | C6: 97.07823968 | D6: 0.9444626773 | E6: 99.05553732
A7: 2017-05-02 | B7: 1.622257383 | C7: 98.37774262 | D7: 1.298771481 | E7: 98.70122852
A8: 2017-06-03 | B8: 0.9928109732 | C8: 99.00718903 | D8: 0.8506122724 | E8: 99.14938773
A9: 2017-07-04 | B9: 1.830733806 | C9: 98.16926619 | D9: 0.9365380837 | E9: 99.06346192
A10: ='62'!A11 -> $ indicates as on July 31, 2017
A11: Note: Profile of participants as hedgers or otherwise is not available with the Exchange
A12: Source: NMCE

Sheet 70
A1: ='[1]Table Index'!A12 -> Table 70: Commodity-wise monthly turnover and trading volume at MCX
A2: Sr.No | B2: Name of the Commodity | C2: 2017-18$ | E2: 2016-07-01 | G2: 2017-06-01 | I2: 2017-07-01
C3: Volume ('000 tonnes) | D3: Value (` crore) | E3: Volume ('000 tonnes) | F3: Value (` crore) | G3: Volume ('000 tonnes) | H3: Value (` crore) | I3: Volume ('000 tonnes) | J3: Value (` crore)
A4: A | B4: Bullion
A5: 1 | B5: Gold | C5: 0.904163815 | D5: 258803.9851 | E5: 0.442794027 | F5: 138545.6668 | G5: 0.219614528 | H5: 63364.95407 | I5: 0.242477604 | J5: 68399.95472
A6: 2 | B6: Silver | C6: 55.455184 | D6: 216653.6457 | E6: 24.474455 | F6: 115485.0385 | G6: 14.8436 | H6: 58109.28398 | I6: 16.364816 | J6: 61295.74268
B7: Total for A | C7: 56.35934782 | D7: 475457.6309 | E7: 24.91724903 | F7: 254030.7053 | G7: 15.06321453 | H7: 121474.2381 | I7: 16.6072936 | J7: 129695.6974
A8: B | B8: Metals other than Bullion
A9: 1 | B9: Aluminium | C9: 3692.536 | D9: 45568.74616 | E9: 995.826 | F9: 10954.35417 | G9: 838.733 | H9: 10220.75615 | I9: 1056.653 | J9: 13029.4385
A10: 2 | B10: Copper | C10: 3529.79925 | D10: 132138.2349 | E10: 1142.12525 | F10: 37799.95737 | G10: 1002.21725 | H10: 37166.67132 | I10: 831.1735 | J10: 32607.61677
A11: 3 | B11: Lead | C11: 8075.54 | D11: 114297.752 | E11: 1921.267 | F11: 23784.50183 | G11: 2026.663 | H11: 28019.86416 | I11: 2072.911 | J11: 30461.84264
A12: 4 | B12: Nickel | C12: 926.27215 | D12: 55896.49429 | E12: 357.47305 | F12: 24695.46188 | G12: 229.26035 | H12: 13295.54114 | I12: 223.89365 | J12: 13848.13276
A13: 5 | B13: Zinc | C13: 12926.454 | D13: 221625.4714 | E13: 3792.328 | F13: 55835.43257 | G13: 3415.134 | H13: 56897.33549 | I13: 3778.569 | J13: 68050.71229
B14: Total for B | C14: 29150.6014 | D14: 569526.6987 | E14: 8209.0193 | F14: 153069.7078 | G14: 7512.0076 | H14: 145600.1683 | I14: 7963.20015 | J14: 157997.743
A15: C | B15: Agricultural commodities
A16: 1 | B16: Cardamom | C16: 2.1522 | D16: 237.764497 | E16: 1.4091 | F16: 127.939092 | G16: 0.6086 | H16: 61.722298 | I16: 0.4166 | J16: 44.802306
A17: 2 | B17: Castorseed | C17: 0.05 | D17: 0.2316 | E17: Na | F17: Na | G17: Na | H17: Na | I17: Na | J17: Na
A18: 3 | B18: Cotton | C18: 1170.15675 | D18: 14227.60507 | E18: 562.207 | F18: 7176.853525 | G18: 243.5505 | H18: 2910.32005 | I18: 173.536 | J18: 2005.566775
A19: 4 | B19: CPO | C19: 2635.35 | D19: 12945.91225 | E19: 931.36 | F19: 4634.75152 | G19: 592.64 | H19: 2864.37632 | I19: 672.88 | J19: 3250.39946
A20: 5 | B20: Kapas | C20: 0.008 | D20: 0.041866 | E20: 0.012 | F20: 0.056722 | G20: Na | H20: Na | I20: Na | J20: Na
A21: 6 | B21: Mentha Oil | C21: 63.44136 | D21: 6054.789755 | E21: 37.13868 | F21: 3404.391617 | G21: 14.18148 | H21: 1296.431053 | I21: 23.69952 | J21: 2334.847882
A22: 7 | B22: Pepper | C22: 1.132 | D22: 53.53412 | E22: Na | F22: Na | G22: Na | H22: Na | I22: 1.132 | J22: 53.53412
A23: 8 | B23: RBD Palmolein | C23: 32.78 | D23: 176.08193 | E23: Na | F23: Na | G23: 1.84 | H23: 9.77207 | I23: 1.46 | J23: 7.72316
B24: Total for C | C24: 3905.07031 | D24: 33695.96109 | E24: 1532.12678 | F24: 15343.99248 | G24: 852.82058 | H24: 7142.621791 | I24: 873.12412 | J24: 7696.873703
A25: D | B25: Energy
A26: 1 | B26: Crude Oil | C26: 205458.6837 | D26: 463544.2725 | E26: 56469.72251 | F26: 125947.5198 | G26: 53456.70064 | H26: 115114.318 | I26: 56695.32961 | J26: 124680.8766
A27: 2 | B27: Natural Gas (trln. Btu) | C27: 5180.03125 | D27: 103926.6227 | E27: 1495.7875 | F27: 27917.84363 | G27: 1365.39 | H27: 26494.99868 | I27: 1286.59875 | J27: 24649.64647
B28: Total for D* | C28: =SUM(C26:C27) -> 210638.715 | D28: 567470.8952 | E28: 57965.51001 | F28: 153865.3634 | G28: 54822.09064 | H28: 141609.3166 | I28: 56695.32961 | J28: =SUM(J26:J27) -> 149330.5231
A29: Grand Total (A+B+C+D) | C29: =SUM(C7+C14+C24+C26) -> 238570.7148 | D29: =SUM(D7+D14+D24+D28) -> 1646151.186 | E29: 66235.78584 | F29: =SUM(F7+F14+F24+F28) -> 576309.769 | G29: 61836.59203 | H29: =SUM(H7+H14+H24+H28) -> 415826.3447 | I29: 65548.26117 | J29: =SUM(J7+J14+J24+J28) -> 444720.8371
A30: ='62'!A11 -> $ indicates as on July 31, 2017
A31: Note : *Natural Gas volumes are in Trillion BTU and is not included for computing the Total Volume in '000 tonnes
A32: Conversion factors: Cotton (1 Bale=170 kg), Crude Oil (1 Tonne = 7.33Barrels)
A33: Source : MCX

Sheet 71
A1: ='[1]Table Index'!A13 -> Table 71: Commodity-wise monthly turnover and trading volume at NCDEX
A2: Sr.No | B2: Name of Agri. Commodity | C2: 2017-18$ | E2: 2016-07-01 | G2: 2017-06-01 | I2: 2017-07-01
C3: Volume in 1000 tons | D3: Value (` crore) | E3: Volume in 1000 tons | F3: Value (` crore) | G3: Volume in 1000 tons | H3: Value (` crore) | I3: Volume in 1000 tons | J3: Value (` crore)
A4: 1 | B4: Barley | C4: 137.31 | D4: 202.69 | E4: 72.77 | F4: 116.86 | G4: 30.92 | H4: 43.6 | I4: 29.37 | J4: 42.58
A5: 2 | B5: Castorseed | C5: 3412.01 | D5: 15483.42 | E5: Na | F5: Na | G5: 886.98 | H5: 3841.24 | I5: 676.48 | J5: 3036.8
A6: 3 | B6: Chana | C6: 474.59 | D6: 2374.1 | E6: 4.282 | F6: 36.09 | G6: Na | H6: Na | I6: 474.59 | J6: 2374.1
A7: 5 | B7: Cotton seed oil cake | C7: 5725.31 | D7: 10442.07 | E7: 1646.69 | F7: 4288.31 | G7: 1900.53 | H7: 3235.26 | I7: 1110.58 | J7: 1783.15
A8: 6 | B8: Cotton | C8: Na | D8: Na | E8: 0.089 | F8: 4.45 | G8: Na | H8: Na | I8: Na | J8: Na
A9: 8 | B9: Coriander | C9: 1388.47 | D9: 8136.94 | E9: 189.02 | F9: 1470.73 | G9: 279.82 | H9: 1385.82 | I9: 220.56 | J9: 1099.18
A10: 9 | B10: Guar seed | C10: 8285.522 | D10: 29925.36 | E10: 4051.968 | F10: 15089.99 | G10: 2192.16 | H10: 7417.01 | I10: 1941.25 | J10: 6628.47
A11: 10 | B11: Guargum | C11: 2083.8 | D11: 16063.32 | E11: 745.892 | F11: 5100.87 | G11: 530.935 | H11: 3845.67 | I11: 414.34 | J11: 2934.99
A12: 11 | B12: Jeera | C12: 874.614 | D12: 16460.17 | E12: 474.582 | F12: 9056.81 | G12: 165.912 | H12: 3074.82 | I12: 207.228 | J12: 3989.51
A13: 12 | B13: Kapas | C13: 991.08 | D13: 4576.35 | E13: 175.291 | F13: 3530.25 | G13: 342.684 | H13: 1523.97 | I13: 256.208 | J13: 1108.07
A14: 13 | B14: Maize | C14: 185.89 | D14: 249.81 | E14: 226.95 | F14: 354.47 | G14: 57.46 | H14: 74.88 | I14: 61.63 | J14: 83.39
A15: 14 | B15: Pepper | C15: 1.215 | D15: 57.5 | E15: Na | F15: Na | G15: Na | H15: Na | I15: 1.215 | J15: 57.5
A16: 15 | B16: Rape/Mustard Seed | C16: 4176.73 | D16: 15393.17 | E16: 2432.96 | F16: 11978.33 | G16: 1043.53 | H16: 3723.76 | I16: 977.44 | J16: 3579.92
A17: 16 | B17: Rape/Mustard oilcake | C17: 14.69 | D17: 26.68 | E17: Na | F17: Na | G17: 0.78 | H17: 1.31 | I17: 0.04 | J17: 0.07
A18: 18 | B18: Sugar | C18: 11.85 | D18: 44.12 | E18: 224.93 | F18: 845.26 | G18: 0.63 | H18: 2.31 | I18: 1.12 | J18: 3.95
A19: 19 | B19: Soybean | C19: 5912.35 | D19: 17246.45 | E19: 1629.05 | F19: 6088.68 | G19: 1519.92 | H19: 4283.67 | I19: 1331.15 | J19: 4033.48
A20: 20 | B20: Refined Soy oil | C20: 3848.39 | D20: 24292.02 | E20: 1912.2 | F20: 12173.32 | G20: 892.68 | H20: 5631.47 | I20: 1088.7 | J20: 7021.46
A21: 21 | B21: Soymeal | C21: 0.77 | D21: 1.89 | E21: Na | F21: Na | G21: Na | H21: Na | I21: Na | J21: Na
A22: 22 | B22: Degummed Soy Oil | C22: 10.16 | D22: 59.48 | E22: Na | F22: Na | G22: 7.17 | H22: 41.87 | I22: 2.99 | J22: 17.61
A23: 23 | B23: Turmeric | C23: 697.35 | D23: 4358.16 | E23: 265.625 | F23: 2166.78 | G23: 145.975 | H23: 844.4 | I23: 234.745 | J23: 1670.48
A24: 24 | B24: Wheat | C24: 331.34 | D24: 541.05 | E24: 117.57 | F24: 206.33 | G24: 76.46 | H24: 122.97 | I24: 95.75 | J24: 158.43
B25: Total | C25: =SUM(C4:C24) -> 38563.441 | D25: 165934.75 | E25: 14169.869 | F25: 72507.53 | G25: 10074.546 | H25: 39094.03 | I25: 9125.386 | J25: 39623.14
A26: ='62'!A11 -> $ indicates as on July 31, 2017
A27: Source: NCDEX

Sheet 72
A1: ='[1]Table Index'!A14 -> Table 72: Commodity-wise monthly turnover and trading volume at NMCE
A2: Sr.No | B2: Name of the Commodity | C2: 2017-18$ | E2: 2016-07-01 | G2: 2017-06-01 | I2: 2017-07-01
C3: Volume ('000 tonnes) | D3: Value (` crore) | E3: Volume ('000 tonnes) | F3: Value (` crore) | G3: Volume ('000 tonnes) | H3: Value (` crore) | I3: Volume ('000 tonnes) | J3: Value (` crore)
A4: 1 | B4: Castorseed | C4: 270.48 | D4: 1219.53462 | E4: 124.43 | F4: 419.397857 | G4: 82.76 | H4: 357.60341 | I4: 71.75 | J4: 323.06342
A5: 2 | B5: Guarseed | C5: 345.661 | D5: 1246.755297 | E5: 5.478 | F5: 19.654926 | G5: 97.711 | H5: 331.298435 | I5: 78.642 | J5: 268.322081
A6: 3 | B6: Isabgulseed | C6: 199.19925 | D6: 2280.287367 | E6: 49.167 | F6: 566.966304 | G6: 57.641625 | H6: 644.489584 | I6: 49.491 | J6: 555.373344
A7: 4 | B7: Pepper Mini | C7: 0.2126 | D7: 11.3597752 | E7: 0 | F7: 0 | G7: 0.0547 | H7: 2.798804 | I7: 0.06 | J7: 3.0417996
A8: 5 | B8: Rape/Mustardseed | C8: 863.06 | D8: 2748.17948 | E8: 134.01 | F8: 559.299195 | G8: 255.13 | H8: 784.43 | I8: 229.02 | J8: 706.66351
A9: 6 | B9: Rawjute | C9: 642.62 | D9: 2445.579514 | E9: 75.92 | F9: 440.225921 | G9: 190.74 | H9: 705.693847 | I9: 173.43 | J9: 626.290688
A10: 7 | B10: Rubber | C10: 70.658 | D10: 949.431941 | E10: 15.411 | F10: 212.979346 | G10: 14.982 | H10: 187.049528 | I10: 19.887 | J10: 268.608714
B11: Total | C11: =SUM(C4:C10) -> 2391.89085 | D11: 10901.12799 | E11: 404.416 | F11: 2218.523549 | G11: 699.019325 | H11: 3013.363608 | I11: 622.28 | J11: 2751.363557
A12: ='62'!A11 -> $ indicates as on July 31, 2017
A13: Source : NMCE

Sheet 73
A1: Table 73: Macro Economic Indicators
A2: I. GDP at constant prices (2011-12 prices) for 2016-17 (`crore)* | E2: 12189854
A3: II. Gross Saving as a percent of Gross national Disposable Income at current market prices in 2015-16 | E3: 31.6
A4: III. Gross Capital Formation as a percent of GDP at current market prices in 2016-17@ | E4: 27.1
A5: IV. Monetary and Banking Indicators | B5: March | C5: April | D5: May | E5: June | F5: July
B6: 2017 | C6: 2017 | D6: 2017 | E6: 2017 | F6: 2017
A7: Cash Reserve Ratio (percent) | B7: 4 | C7: 4 | D7: 4 | E7: 4 | F7: 4
A8: Repo Rate (percent) | B8: 6.25 | C8: 6.25 | D8: 6.25 | E8: 6.25 | F8: 6.25
A9: Money Supply (M3) (` crore) | B9: 12839080 | C9: 12682860 | D9: 12722950 | E9: 12809450 | F9: 12857420
A10: Aggregate Deposit (` crore) | B10: 10805150 | C10: 10591720 | D10: 10551180 | E10: 10605620 | F10: 10625440
A11: Bank Credit (` crore) | B11: 7881890 | C11: 7631500 | D11: 7593550 | E11: 7664000 | F11: 7688810
A12: V. Interest Rate
A13: Call Money Rate (Weighted Average) | B13: 5.97 | C13: 6 | D13: 6.04 | E13: 6.07 | F13: 6.08
A14: 91-Day-Treasury Bill (Primary Yield) | B14: 5.82 | C14: 6.19 | D14: 6.85 | E14: 6.27 | F14: 6.15
A15: Base rate (percent) | B15: 9.25/9.60 | C15: 9.10/9.60 | D15: 9.10/9.60 | E15: 9.10/9.60 | F15: 9.00/9.55
A16: Term Deposit Rate > 1 year (Maximum) | B16: 6.50-7.00 | C16: 6.50/7.00 | D16: 6.25/6.90 | E16: 6.25/6.90 | F16: 6.25/6.90
A17: VI. Capital Market Indicators (`crore)
A18: Turnover (BSE+NSE) | B18: 845346.6959 | C18: 547180.5946 | D18: 679607.62 | E18: 572239.2579 | F18: =88395.24+543944.473641612 -> 632339.7136
A19: Market Cap-BSE | B19: 12154525.46 | C19: 12484962.9 | D19: 12580118.73 | E19: 12596811.99 | F19: 13262245.53
A20: Market Cap-NSE | B20: 11978420.9 | C20: 12303874.75 | D20: 12416788.86 | E20: 12430129.17 | F20: 13121441.34
A21: Net FPI Investment in Equity | B21: 30906 | C21: 2394.49 | D21: 7711.41 | E21: 3616.82 | F21: 5160.71
A22: VII. Exchange Rate and Reserves
A23: Forex Reserves (USD million) | B23: 369954.7 | C23: 372732 | D23: 378763.5 | E23: 386539.4 | F23: 392867.8
A24: Re/ Dollar | B24: 64.84 | C24: 64.22 | D24: 64.59 | E24: 64.74 | F24: 64.15
A25: Re/Euro | B25: 69.25 | C25: 69.88 | D25: 72.33 | E25: 74 | F25: 74.98
A26: Forward Premia of USD 6-month | B26: 4.9 | C26: 5.61 | D26: 4.71 | E26: 4.7 | F26: 4.6
A27: VIII. Public Borrowing and Inflation
A28: Govt. Market Borrowing-Gross (` crore) 2017-18 | B28: 582000 | C28: 48000 | D28: 108000 | E28: 168000 | F28: =2340*100 -> 234000
A29: Wholesale Price Index (2011-12=100) | B29: 185.3! | C29: 113.2 | D29: 112.8 | E29: 112.7 | F29: 113.9
A30: Consumer Price Index (2012 =100) | B30: 130.9 | C30: 131.1 | D30: 131.4 | E30: 132.1 | F30: 134.2
A31: IX. Index of Industrial Production (y-o-y) percent (Base year 2011-12 = 100)
A32: General | B32: 131.5 | C32: 117.6 | D32: 124.3 | E32: 119.6 | F32: NA
A33: Mining | B33: 127.2 | C33: 99 | D33: 100.5 | E33: 98.8 | F33: NA
A34: Manufacturing | B34: 130.6 | C34: 117.6 | D34: 125.1 | E34: 120.6 | F34: NA
A35: Electricity | B35: 147.9 | C35: 150.6 | D35: 158.7 | E35: 147.4 | F35: NA
A36: X. External Sector Indicators (USD million)
A37: Exports | B37: 29232.05 | C37: 24635.09 | D37: 24014.62 | E37: 23562.62 | F37: 22543.8
A38: Imports | B38: 39669.22 | C38: 37884.28 | D38: 37856.34 | E38: 36522.48 | F38: 33993.61
A39: Trade Balance | B39: -10437.17 | C39: -13249.19 | D39: -13841.72 | E39: -12959.86 | F39: =F37-F38 -> -11449.81
A40: Notes: 1. * : Provisional Estimates; Data as per the new series released by MOSPI
A41: 2. CPI Data ia being released on Base 2012=100 from January 2015 by MOSPI
A42: 3. @ First Revised Estimates
A43: 4. ! Base year is 2004-05 (2004-05=100)
A44: Source : RBI, MOSPI, Ministry of Commerce & Industry.
